account_party,address,code,date,document_number,expense_code_name,expense_code_name_short,id,party_cell,party_cell_code,party_cell_geoobject,purpose,source_bank_account_number,source_bank_account_type,sum,target_legal_personality,target_legal_personality_code,target_type
БАТЬКІВЩИНА,"Івано-Франківська область, Калуш, вулиця Підвальна, 20",79,2019-12-28,296_1,"Оренда будинків і приміщень та експлуатаційні витрати (прибирання, страхування орендованих будинків, охорона, сигналізація, ремонт, вивіз сміття, тощо)",Оренда нерухомості,296979,Івано-Франківська обласна організація,25789520,Івано-Франківська область,"за оренду приміщення Калуської міської""ВО Батьківщина""",26007300867,current,1160.26,Фонд Комунальної власності територіальної громади м. Калуша,25668684,юридична особа
БАТЬКІВЩИНА,"Івано-Франківська область, Калуш, вулиця Підвальна, 20",79,2019-12-28,296,"Оренда будинків і приміщень та експлуатаційні витрати (прибирання, страхування орендованих будинків, охорона, сигналізація, ремонт, вивіз сміття, тощо)",Оренда нерухомості,296978,Івано-Франківська обласна організація,25789520,Івано-Франківська область,"за оренду приміщення Калуської міської""ВО Батьківщина""",26007300867,current,1160.26,Фонд Комунальної власності територіальної громади м. Калуша,25668684,юридична особа
БАТЬКІВЩИНА,"Київ, вулиця Єреванська, 1",70,2019-12-28,TR.3091649.740648.2667,Банківські послуги,Інші витрати,295830,Київська обласна організація,21710792,Київська область,комісія банку,26004924426650,current,50.00,"АБ ""Укргазбанк""",23697280,юридична особа
БАТЬКІВЩИНА,"Київ, вулиця Єреванська, 1",70,2019-12-28,TR.3091649.113411.2667,Банківські послуги,Інші витрати,295829,Київська обласна організація,21710792,Київська область,за розрахункове обслуговування,26004924426650,current,3.00,"АБ ""Укргазбанк""",23697280,юридична особа
БАТЬКІВЩИНА,"Київ, вулиця Єреванська, 1",70,2019-12-28,TR.2274789.869293929,Банківські послуги,Інші витрати,295803,Бориспільська міська організація,25951133,Київська область,Розрахункове обслуговування,26007212004327,current,60.00,"АБ ""Укргазбанк""",23697280,юридична особа
БАТЬКІВЩИНА,"Київ, вулиця Єреванська, 1",70,2019-12-28,TR.7019800. 408550054,Банківські послуги,Інші витрати,295744,Івано-Франківська обласна організація,25789520,Івано-Франківська область,за розрахункове обслуговування по рахунку,26007300867,current,0.80,"АБ ""Укргазбанк""",23697280,юридична особа
БАТЬКІВЩИНА,"Житомирська область, Житомир, вулиця Велика Бердичівська, 22",70,2019-12-28,7146517,Банківські послуги,Інші витрати,295623,Житомирська обласна організація,25776533,Житомирська область,Послуги банку,UA873223020000026001001929301,current,50.00,"ПАТ ""Айбокс Банк""",21570492,юридична особа
БАТЬКІВЩИНА,"Київ, вулиця Єреванська, 1",70,2019-12-28,TR.2696184.248688177,Банківські послуги,Інші витрати,295576,Бердичівська міська організація,25776991,Житомирська область,розрахункове обслуговування,UA813204780000026003924423074,current,7.76,"АБ ""Укргазбанк""",23697280,юридична особа
БАТЬКІВЩИНА,"Івано-Франківська область, Івано-Франківськ, вулиця Василіянок, 62А",70,2019-12-28,TR.7019800. 698092.2667,Банківські послуги,Інші витрати,295493,Івано-Франківська обласна організація,25789520,Івано-Франківська область,Пдлата за розрахункове обслуговування за місяць грудень 2019р. По р/р 26007300867,26007300867,current,60.00,"Івано-Франківська обласна організація Всеукраїнське обʼєднання ""Батьківщина""",25789520,юридична особа
БАТЬКІВЩИНА,"Волинська область, Луцьк, Набережна вулиця, 2",70,2019-12-28,TR.9384279.704998.2667,Банківські послуги,Інші витрати,295330,Волинська обласна організація,25787544,Волинська область,оплата за розрахунково-касове обслуговування,26001924857727,current,46.96,"Волинська обласна організація Всеукраїнське обʼєднання ""Батьківщина""",25787544,юридична особа
БАТЬКІВЩИНА,"Харківська область, Чугуїв, вулиця Перемоги, 1",79,2019-12-27,4468,"Оренда будинків і приміщень та експлуатаційні витрати (прибирання, страхування орендованих будинків, охорона, сигналізація, ремонт, вивіз сміття, тощо)",Оренда нерухомості,297294,Харківська обласна організація,25792203,Харківська область,"оплата за оренду приміщення за листопад 2019р.,відшкодування е/е за листопад 2019р. зг рах№242 від 2019-11-30р. у т.ч. ПДВ 20% - 1007.39 грн.",UA493808050000000026009378667,current,6044.32,Чугуївський учбово-спортивний центр Товариства сприяння обороні України,02723955,юридична особа
БАТЬКІВЩИНА,"Харківська область, Харків, вулиця Новгородська, 11",70,2019-12-27,4446,Банківські послуги,Інші витрати,297280,Харківська обласна організація,25792203,Харківська область,"Комісія банку за зарахування коштів на СКР працівників ХООПП ""ВО ""БАТЬКІВЩИНА"" - Заробітна плата та аванси згідно відомості N 86 від 2019-12-27",UA493808050000000026009378667,current,13.92,"Харківська обласна філія АТ ""Райффайзен банк Аваль""",23321095,юридична особа
БАТЬКІВЩИНА,"Харківська область, Харків, вулиця Привокзальна, 2",79,2019-12-27,4454,"Оренда будинків і приміщень та експлуатаційні витрати (прибирання, страхування орендованих будинків, охорона, сигналізація, ремонт, вивіз сміття, тощо)",Оренда нерухомості,297271,Харківська обласна організація,25792203,Харківська область,сплата за оренду приміщення за грудень 2019р.зг дог №10/3590 від 2018-12-21р. у т.ч. ПДВ 20% - 143.33 грн.,UA493808050000000026009378667,current,860.00,"Харківська дирекція ПАТ ""Укрпошта""",22721970,юридична особа
БАТЬКІВЩИНА,"Харківська область, Харків, вулиця Привокзальна, 2",79,2019-12-27,4455,"Оренда будинків і приміщень та експлуатаційні витрати (прибирання, страхування орендованих будинків, охорона, сигналізація, ремонт, вивіз сміття, тощо)",Оренда нерухомості,297270,Харківська обласна організація,25792203,Харківська область,сплата за оренду приміщення за грудень зг дог №10/1603 від 2018-09-02р. у т.ч. ПДВ 20% - 216.67 грн.,UA493808050000000026009378667,current,1300.00,"Харківська дирекція ПАТ ""Укрпошта""",22721970,юридична особа
БАТЬКІВЩИНА,"Харківська область, Харків, вулиця Привокзальна, 2",79,2019-12-27,4456,"Оренда будинків і приміщень та експлуатаційні витрати (прибирання, страхування орендованих будинків, охорона, сигналізація, ремонт, вивіз сміття, тощо)",Оренда нерухомості,297269,Харківська обласна організація,25792203,Харківська область,відшкодування вартості спож послуг з утримання майна за листопад 2019 р. зг дог №10/1603 від 2018-09-02р. у т.ч. ПДВ 20% - 129.97 грн.,UA493808050000000026009378667,current,779.84,"Харківська дирекція ПАТ ""Укрпошта""",22721970,юридична особа
БАТЬКІВЩИНА,"Харківська область, Харків, вулиця Привокзальна, 2",79,2019-12-27,4457,"Оренда будинків і приміщень та експлуатаційні витрати (прибирання, страхування орендованих будинків, охорона, сигналізація, ремонт, вивіз сміття, тощо)",Оренда нерухомості,297268,Харківська обласна організація,25792203,Харківська область,відшкодування вартості спож послуг з утримання майна за листопад 2019 р. зг дог №10/3590 від 2018-12-21р. у т.ч. ПДВ 20% - 180.65 грн.,UA493808050000000026009378667,current,1083.91,"Харківська дирекція ПАТ ""Укрпошта""",22721970,юридична особа
БАТЬКІВЩИНА,"Сумська область, Охтирка, вулиця Незалежності, 11",79,2019-12-27,55,"Оренда будинків і приміщень та експлуатаційні витрати (прибирання, страхування орендованих будинків, охорона, сигналізація, ремонт, вивіз сміття, тощо)",Оренда нерухомості,297095,Охтирська міська організація,24016891,Сумська область,"Оренда за листопад, грудень 2019 р.",26004055015693,current,4901.90,Ємець Володимир Якович,1997202695,фізична особа
БАТЬКІВЩИНА,"Дніпропетровська область, Дніпровський район, Дніпро́",76,2019-12-27,416,Послуги зв’язку,Послуги зв’язку,297056,Дніпропетровська обласна організація,25788756,Дніпропетровська область,Оплата за послуги доступ до мережі інтернет за 11-12м2019р згідно рахунку №956 від 2019-12-23р Без ПДВ,UA433052990000026007050347236,current,3440.00,Шапоренко Юрій Миколайович,,фізична особа
БАТЬКІВЩИНА,"Харківська область, Харків, проспект Олександрівський, 132, 13",79,2019-12-27,4453,"Оренда будинків і приміщень та експлуатаційні витрати (прибирання, страхування орендованих будинків, охорона, сигналізація, ремонт, вивіз сміття, тощо)",Оренда нерухомості,297053,Харківська обласна організація,25792203,Харківська область,сплата за послуги оренди за листопад 2019 р. зг рах№11 від 09/12/19р.; до зарах на картку 5169330509328719.Податки сплачує Чайка Д.В. самостійно.,UA493808050000000026009378667,current,3500.00,Чайка Дмитро Володимирович,,фізична особа
БАТЬКІВЩИНА,"Харківська область, Ізюм, вулиця Гоголя, 16, 46",79,2019-12-27,4469,"Оренда будинків і приміщень та експлуатаційні витрати (прибирання, страхування орендованих будинків, охорона, сигналізація, ремонт, вивіз сміття, тощо)",Оренда нерухомості,297041,Харківська обласна організація,25792203,Харківська область,"за оренду приміщення за листопад 2019р.-2100,00грн.,комвитрати за жовтень 2019р-2393,00грн. зг рах№120 від 2019-11-04р. Без ПДВ.",UA493808050000000026009378667,current,4493.00,Рузавіна Валентина Миколаївна,2658200081,фізична особа
БАТЬКІВЩИНА,"Харківська область, Харків, проспект Олександрівський, 122, 136",79,2019-12-27,4472,"Оренда будинків і приміщень та експлуатаційні витрати (прибирання, страхування орендованих будинків, охорона, сигналізація, ремонт, вивіз сміття, тощо)",Оренда нерухомості,297038,Харківська обласна організація,25792203,Харківська область,орендна плата за приміщення за листопад 2019р. зг дог №19/1 від 2018-12-28р. Без ПДВ.,UA493808050000000026009378667,current,1600.00,Нечітайло Лілія Вікторівна,,фізична особа
БАТЬКІВЩИНА,"Харківська область, Нововодолазький район, Нова Водолага, вулиця Шахтаря",79,2019-12-27,4473,"Оренда будинків і приміщень та експлуатаційні витрати (прибирання, страхування орендованих будинків, охорона, сигналізація, ремонт, вивіз сміття, тощо)",Оренда нерухомості,297031,Харківська обласна організація,25792203,Харківська область,сплата за оренду приміщення у листопаді 2019 р.зг рах№5 від 2019-12-27р. Без ПДВ.,UA493808050000000026009378667,current,2656.00,Герасименко Ганна Макарівна,,фізична особа
БАТЬКІВЩИНА,"Сумська область, Кролевецький район, Кролевець, вулиця Ярмаркова, 25",79,2019-12-27,95,"Оренда будинків і приміщень та експлуатаційні витрати (прибирання, страхування орендованих будинків, охорона, сигналізація, ремонт, вивіз сміття, тощо)",Оренда нерухомості,296973,Кролевецька районна організація,24016052,Сумська область,"Орендна плата за жовтень - грудень 2019 згідно з рахунком №599 від 11.12.19 / за жовтень, листоапад, грудень 2019",26004055021988,current,937.16,УДКСУ у Кролевецькому районі Сумської області,37824985,юридична особа
БАТЬКІВЩИНА,"Сумська область, Суми, вулиця Троїцька, 8",61,2019-12-27,271,Військовий збір,Податкові платежі,296933,Сумська обласна організація,24011118,Сумська область,*;101;24011118;Військовий збір із заробітної плати за 2 пол. грудня 2019р.;;;,26009055022131,current,90.00,УДКСУ у м. Суми,37970593,юридична особа
БАТЬКІВЩИНА,"Сумська область, Суми, вулиця Троїцька, 8",63,2019-12-27,269,Податок на доходи,Податкові платежі,296932,Сумська обласна організація,24011118,Сумська область,*;101;24011118;ПДФО від заробітної плати за 2 пол.грудня 2019р.;;;,26009055022131,current,1080.00,УДКСУ у м. Суми,37970593,юридична особа
БАТЬКІВЩИНА,"Київська обл., Фастів, вулиця Івана Ступака, 4",79,2019-12-27,34,"Оренда будинків і приміщень та експлуатаційні витрати (прибирання, страхування орендованих будинків, охорона, сигналізація, ремонт, вивіз сміття, тощо)",Оренда нерухомості,296880,Фастівська районна організація,26078703,Київська область,Оренда приміщення,26009053006274,current,800.00,"ТОВ виробниче підприємство фірма ""Пламя""",19419960,юридична особа
БАТЬКІВЩИНА,"Львівська область, Львів, вул. Кульпарківська",79,2019-12-27,59,"Оренда будинків і приміщень та експлуатаційні витрати (прибирання, страхування орендованих будинків, охорона, сигналізація, ремонт, вивіз сміття, тощо)",Оренда нерухомості,296862,Городоцька районна організація,33811878,Львівська область,"За послуги охорони згідно рахунку №13962 від 2019-11-01р. по договору №Лвв/001880-JAV за місяць листопад 2019р., без ПДВ",UA453257960000026000300560756,current,350.00,"ТОВ ""Явір-2000 Львів""",39421816,юридична особа
БАТЬКІВЩИНА,"Сумська область, Суми, вулиця Степана Бандери, 40",79,2019-12-27,268,"Оренда будинків і приміщень та експлуатаційні витрати (прибирання, страхування орендованих будинків, охорона, сигналізація, ремонт, вивіз сміття, тощо)",Оренда нерухомості,296840,Сумська обласна організація,24011118,Сумська область,ПЛАТА ЗА ОРЕНДУ ПРИМІЩЕННЯ ТА ВІДШКОД. КОМ.ВИТРАТ ЗА ГРУДЕНЬ 19Р.ЗГ. РАХ.1655 ВІД 19.12.19,26009055022131,current,700.00,"ТОВ ""Сумське обласне підприємство автомобільного транспорту""",03118618,юридична особа
БАТЬКІВЩИНА,"Харківська область, Харків, вулиця Бакуліна, 18",61,2019-12-27,4448,Військовий збір,Податкові платежі,296829,Харківська обласна організація,25792203,Харківська область,військовий збір з заробітної плати за 2 половину грудня 2019р.,UA493808050000000026009378667,current,32.44,УДКСУ у Шевченківському районі м. Харкова,37999654,юридична особа
БАТЬКІВЩИНА,"Харківська область, Харків, вулиця Бакуліна, 18",63,2019-12-27,4447,Податок на доходи,Податкові платежі,296828,Харківська обласна організація,25792203,Харківська область,податок з доходів фізосіб із зарплати за 2 половину грудня 2019р,UA493808050000000026009378667,current,390.00,УДКСУ у Шевченківському районі м. Харкова,37999654,юридична особа
БАТЬКІВЩИНА,"Харківська область, Харків, вулиця Пушкінська, 46",62,2019-12-27,4449,Сплата ЄСВ,Податкові платежі,296827,Харківська обласна організація,25792203,Харківська область,єдиний страх.внесок з заробітної плати за 2 половину грудня 2019р. 22%,UA493808050000000026009378667,current,476.00,Головне управління ДПС у Харківській о,43143704,юридична особа
БАТЬКІВЩИНА,"Харківська область, Харків, вулиця Бакуліна, 18",61,2019-12-27,4451,Військовий збір,Податкові платежі,296826,Харківська обласна організація,25792203,Харківська область,військовий збір з виплати доходу за оренду приміщення Самсонов Сергій Миколайович,UA493808050000000026009378667,current,33.00,УДКСУ у Шевченківському районі м. Харкова,37999654,юридична особа
БАТЬКІВЩИНА,"Харківська область, Харків, вулиця Бакуліна, 18",63,2019-12-27,4452,Податок на доходи,Податкові платежі,296825,Харківська обласна організація,25792203,Харківська область,податок на доходи фо Самсонов Сергій Миколайович із дохода за оренду приміщення,UA493808050000000026009378667,current,396.00,УДКСУ у Шевченківському районі м. Харкова,37999654,юридична особа
БАТЬКІВЩИНА,"Київ, вулиця Турівська, 31",69,2019-12-27,2308,Організація заходів та інші організаційні послуги,Організація заходів та інші організаційні послуги,296818,Центральний офіс,20069956,Україна,Сплата за технічне супроводження заходу,2600426373,current,345043.60,"ТОВ ""Платформа""",33149694,юридична особа
БАТЬКІВЩИНА,"Київ, вулиця Джона Маккейна, 38А, 27",58,2019-12-27,127,"Виготовлення друкованих матеріалів (плакатів, листівок, буклетів та інших агітаційних матеріалів)",Друкована агітація,296749,Київська міська організація,21709458,Київ,"Оплата за поліграфічні послуги(газета), договір N99 від 2019-12-05, Додаток 4 від 22.12.19,рах 147 від 24.12.19",UA973007110000026006052720575,current,41000.00,ТОВ ʼМЕДІА 98ʼ,38864615,юридична особа
БАТЬКІВЩИНА,"Харківська область, Золочівський район, Золочів, вулиця Українська",79,2019-12-27,4462,"Оренда будинків і приміщень та експлуатаційні витрати (прибирання, страхування орендованих будинків, охорона, сигналізація, ремонт, вивіз сміття, тощо)",Оренда нерухомості,296714,Харківська обласна організація,25792203,Харківська область,орендна плата за нежитлове приміщення за листопад-грудень 2019р.зг дог №22/19 від 2019-01-02р. Без ПДВ.,UA493808050000000026009378667,current,2400.00,"ТОВ ""Золочівська друкарня""",02470477,юридична особа
БАТЬКІВЩИНА,"Житомирська область, Житомир, майдан Перемоги, 10",79,2019-12-27,114,"Оренда будинків і приміщень та експлуатаційні витрати (прибирання, страхування орендованих будинків, охорона, сигналізація, ремонт, вивіз сміття, тощо)",Оренда нерухомості,296709,Бердичівська міська організація,25776991,Житомирська область,за активну електроенергію,UA813204780000026003924423074,current,1216.37,"ТОВ ""ЖИТОМИРСЬКА ОБЛАСНА ЕНЕРГОПОСТАЧАЛЬНА КОМПАНІЯ""",42095943,юридична особа
БАТЬКІВЩИНА,"Дніпропетровська область, Дніпро́, проспект Слобожанський, 127Б",79,2019-12-27,415,"Оренда будинків і приміщень та експлуатаційні витрати (прибирання, страхування орендованих будинків, охорона, сигналізація, ремонт, вивіз сміття, тощо)",Оренда нерухомості,296690,Дніпропетровська обласна організація,25788756,Дніпропетровська область,"Оплата за активну електроенергію за грудень 2019р згідно рахунку №111/63-429/11/12/1 від 2019-12-20р У сумі 14197,43 ПДВ 20%- 2839,48",UA433052990000026007050347236,current,17036.91,"ТОВ ""Дніпровські енергетичні послуги""",42082379,юридична особа
БАТЬКІВЩИНА,"Харківська область, Харків",84,2019-12-27,4445,"Заробітна плата, премії","Заробітна плата, лікарняні, вагітності, відрядження, компенсації",296632,Харківська обласна організація,25792203,Харківська область,"Заробітна плата ХООПП ""ВО ""БАТЬКІВЩИНА"" за 2 половину грудня 2019р. згідно відомості N 86 від 2019-12-27",UA493808050000000026009378667,current,1740.59,Верба Вікторія Володимирівна,,фізична особа
БАТЬКІВЩИНА,"Харківська область, Люботин, вулиця Джерелянська, 2",79,2019-12-27,4466,"Оренда будинків і приміщень та експлуатаційні витрати (прибирання, страхування орендованих будинків, охорона, сигналізація, ремонт, вивіз сміття, тощо)",Оренда нерухомості,296620,Харківська обласна організація,25792203,Харківська область,оренда приміщення за листопад 2019р. зг рах№4/1 від 2019-11-27р. Без ПДВ.,UA493808050000000026009378667,current,1164.00,"ТОВ ""Валентин""",25609363,юридична особа
БАТЬКІВЩИНА,"Харківська область, Люботин, вулиця Джерелянська, 2",79,2019-12-27,4467,"Оренда будинків і приміщень та експлуатаційні витрати (прибирання, страхування орендованих будинків, охорона, сигналізація, ремонт, вивіз сміття, тощо)",Оренда нерухомості,296619,Харківська обласна організація,25792203,Харківська область,компослуги за листопад 2019р. зг рах№4/2 від 2019-11-27р. Без ПДВ.,UA493808050000000026009378667,current,902.18,"ТОВ ""Валентин""",25609363,юридична особа
БАТЬКІВЩИНА,"Львівська область, Львів, вул. Кульпарківська, 156",79,2019-12-27,6,"Оренда будинків і приміщень та експлуатаційні витрати (прибирання, страхування орендованих будинків, охорона, сигналізація, ремонт, вивіз сміття, тощо)",Оренда нерухомості,296579,Дрогобицька міська організація,25257295,Львівська область,Перераховано за охорону приміщення за грудень 2019 р. т. ч. з ПДВ.,UA813257960000026006300558740,current,350.00,"ТОВ ""Явір-2000 Львів""",39421816,юридична особа
БАТЬКІВЩИНА,"Львівська область, Стрий, вулиця Ярослава Лесіва, 3",76,2019-12-27,8,Послуги зв’язку,Послуги зв’язку,296576,Дрогобицька міська організація,25257295,Львівська область,Перераховано за телекомунікаційні послуги за грудень 2019 р. т. ч. з ПДВ.,UA813257960000026006300558740,current,90.00,"ТОВ ""Телерадіокомпанія Телелан""",31475309,юридична особа
БАТЬКІВЩИНА,"Львівська область, Пустомитівський район, Сокільники, вулиця Січових Стрільців, 1",76,2019-12-27,3,Послуги зв’язку,Послуги зв’язку,296573,Дрогобицька міська організація,25257295,Львівська область,Перераховано за телекомунікаційні послуги за листопад 2019 р. т. ч. з ПДВ.,UA813257960000026006300558740,current,76.78,"ТОВ ""Телекомунікаційна компанія""",25239647,юридична особа
БАТЬКІВЩИНА,"Львівська область, Львів, вулиця Золота, 42",79,2019-12-27,7,"Оренда будинків і приміщень та експлуатаційні витрати (прибирання, страхування орендованих будинків, охорона, сигналізація, ремонт, вивіз сміття, тощо)",Оренда нерухомості,296570,Дрогобицька міська організація,25257295,Львівська область,За природній газ згідно договору 41CPLvz1775-18 за грцдень 2019р. В т.ч. ПДВ,UA813257960000026006300558740,current,162.69,"ТОВ ""Львівгаз збут""",39594527,юридична особа
БАТЬКІВЩИНА,"Львівська область, Львів, вулиця Іларіона Свєнціцького, 1",76,2019-12-27,38,Послуги зв’язку,Послуги зв’язку,296569,Новороздільська міська організація,33756901,Львівська область,"Оплата послуг за січень, лютий 2020 року",UA613257960000026002300553222,current,220.00,"ТОВ ""Бізнес і технології""",31442320,юридична особа
БАТЬКІВЩИНА,"Львівська область, Миколаївський район, Миколаїв, бульвар Проектний, 1",76,2019-12-27,35,Послуги зв’язку,Послуги зв’язку,296559,Новороздільська міська організація,33756901,Львівська область,Оплата за телекомунікаційні послуги за листопад 2019 р.,UA613257960000026002300553222,current,73.20,"ТОВ ""Галінтел""",31042889,юридична особа
БАТЬКІВЩИНА,"Рівненська область, Рівне, вулиця Князя Володимира, 71",79,2019-12-27,124,"Оренда будинків і приміщень та експлуатаційні витрати (прибирання, страхування орендованих будинків, охорона, сигналізація, ремонт, вивіз сміття, тощо)",Оренда нерухомості,296555,Рівненська обласна організація,25797672,Рівненська область,оплата за електроенергію,UA413333680000026004301975917,current,900.00,"ТОВ ""Рівненська обласна енергопостачальна компанія""",42101003,юридична особа
БАТЬКІВЩИНА,"Тернопільська область, Тернопіль, бульвар Тараса Шевченка, 23",84,2019-12-27,284,"Заробітна плата, премії","Заробітна плата, лікарняні, вагітності, відрядження, компенсації",296511,Тернопільська обласна організація,25781561,Тернопільська область,заробітної плата та аванси ТОО ВО Батьківщина згідно відомості №23 від 2019-10-16 за грудень 2019 року.,UA203808050000000026005209741,current,5485.89,"Тернопільська обласна організація Всеукраїнське обʼєднання ""Батьківщина""",25781561,юридична особа
БАТЬКІВЩИНА,"Сумська область, Суми, вулиця Троїцька, 1",84,2019-12-27,1,"Заробітна плата, премії","Заробітна плата, лікарняні, вагітності, відрядження, компенсації",296497,Сумська обласна організація,24011118,Сумська область,Зарплата за 2 пол. декабрь 2019,26009055022131,current,4830.00,"Сумська обласна організація Всеукраїнське обʼєднання ""Батьківщина""",24011118,юридична особа
БАТЬКІВЩИНА,"Сумська область, Суми, Набережна вулиця р. Стрілки, 46",79,2019-12-27,32,"Оренда будинків і приміщень та експлуатаційні витрати (прибирання, страхування орендованих будинків, охорона, сигналізація, ремонт, вивіз сміття, тощо)",Оренда нерухомості,296491,Сумська районна організація,36234682,Сумська область,ОРЕНДА ПРИМІЩЕННЯ ЗА 4 квартал 2019Р ЗГІДНО ДОГ14/19 ВІД 31.12.18Р Без ПДВ.,26000055019972,current,4650.00,Сумська обласна організація українського товариства охорони природи,03920445,юридична особа
БАТЬКІВЩИНА,"Харківська область, Барвінківський район, Барвінкове, вул. Центральна, 37, 25",79,2019-12-27,4450,"Оренда будинків і приміщень та експлуатаційні витрати (прибирання, страхування орендованих будинків, охорона, сигналізація, ремонт, вивіз сміття, тощо)",Оренда нерухомості,296472,Харківська обласна організація,25792203,Харківська область,орендна плата за грудень 2019р. зг рах№12 від 24/12/19р. Без ПДВ,UA493808050000000026009378667,current,1771.00,Самсонов Сергій Миколайович,2276414774,фізична особа
БАТЬКІВЩИНА,"Волинська область, Ковель, вулиця Фабрична, 2",79,2019-12-27,144,"Оренда будинків і приміщень та експлуатаційні витрати (прибирання, страхування орендованих будинків, охорона, сигналізація, ремонт, вивіз сміття, тощо)",Оренда нерухомості,296451,Ковельська міська організація,25910039,Волинська область,оплата комунальних послуг,26004055510716,current,607.18,Ремонтне житлово-комунальне підприємство №1,30653356,юридична особа
БАТЬКІВЩИНА,"Київ, бульвар Тараса Шевченка, 18",76,2019-12-27,58,Послуги зв’язку,Послуги зв’язку,296360,Городоцька районна організація,33811878,Львівська область,"за телекоммунікаційні послуги за листопад 2019р., згідно рахунку 4609010000310287 у т.ч.ПДВ 20 % - 47.67",UA453257960000026000300560756,current,286.00,"ПАТ ""Укртелеком""",21560766,юридична особа
БАТЬКІВЩИНА,"Київ, вулиця Миколи Лєскова, 9",70,2019-12-27,bn,Банківські послуги,Інші витрати,296336,Харківська обласна організація,25792203,Харківська область,"Комісія за вих перекази в нац. вал з використанням системи Клієнт-Банк на інші банки за період з 28.11.19 по 26.12.19 №UA493808050000000026009378667(UAH) 79*3=237 грн., без ПДВ",UA493808050000000026009378667,current,237.00,"АТ ""Райффайзен банк Аваль""",14305909,юридична особа
БАТЬКІВЩИНА,"Київ, вулиця Миколи Лєскова, 9",70,2019-12-27,bn,Банківські послуги,Інші витрати,296334,Харківська обласна організація,25792203,Харківська область,"Комісія за користування пакетом послуг з 28.11.19 по 26.12.19 по рах №UA493808050000000026009378667(UAH), без ПДВ",UA493808050000000026009378667,current,150.00,"АТ ""Райффайзен банк Аваль""",14305909,юридична особа
БАТЬКІВЩИНА,"Київ, вулиця Здолбунівська, 7Д",79,2019-12-27,4459,"Оренда будинків і приміщень та експлуатаційні витрати (прибирання, страхування орендованих будинків, охорона, сигналізація, ремонт, вивіз сміття, тощо)",Оренда нерухомості,296327,Харківська обласна організація,25792203,Харківська область,страховий платіж за договором страхування зг рах№2015/413 від 27/12/19р. Без ПДВ.,UA493808050000000026009378667,current,120.00,"ПАТ ""НАСК ""Оранта""",00034186,юридична особа
БАТЬКІВЩИНА,"Київ, вулиця Здолбунівська, 7Д",79,2019-12-27,4465,"Оренда будинків і приміщень та експлуатаційні витрати (прибирання, страхування орендованих будинків, охорона, сигналізація, ремонт, вивіз сміття, тощо)",Оренда нерухомості,296326,Харківська обласна організація,25792203,Харківська область,"за оренду приміщення ,відшкодування витрат за листопад 2019р. зг дог№4/2018 від 2018-12-28р. та рах№6864 від 2019-11-30р. у т.ч. ПДВ 20% - 225.66 грн.",UA493808050000000026009378667,current,1353.95,"ПАТ ""НАСК ""Оранта""",00034186,юридична особа
БАТЬКІВЩИНА,"Харківська область, Краснокутський район, Краснокутськ",79,2019-12-27,4463,"Оренда будинків і приміщень та експлуатаційні витрати (прибирання, страхування орендованих будинків, охорона, сигналізація, ремонт, вивіз сміття, тощо)",Оренда нерухомості,296244,Харківська обласна організація,25792203,Харківська область,за оренду приміщення за листопад 2019р. зг рах№312 від 2019-11-01р. Без ПДВ.,UA493808050000000026009378667,current,2125.00,"ПАТ ""Послуга""",03057199,юридична особа
БАТЬКІВЩИНА,"Львівська область, Львів, вулиця Січових Стрільців, 9",70,2019-12-27,1390392714,Банківські послуги,Інші витрати,296171,Городоцька районна організація,33811878,Львівська область,списання простроченої заборгованості за щомісячної плати за обслуговування ТП Моя громада за жовтень2019 р.,UA453257960000026000300560756,current,48.67,"Львівська обласна філія АТ ""Ощадбанк""",09325703,юридична особа
БАТЬКІВЩИНА,"Київ, вулиця Турівська, 15",84,2019-12-27,2305,"Заробітна плата, премії","Заробітна плата, лікарняні, вагітності, відрядження, компенсації",296167,Центральний офіс,20069956,Україна,Перераховуються кошти на виплатуіз 2 половини заробітної плати за грудень 2019 року,2604826373,state,227776.94,"Центральний офіс Всеукраїнське обʼєднання ""Батьківщина""",20069956,юридична особа
БАТЬКІВЩИНА,"Київ, проспект Георгія Гонгадзе, 5Б",43,2019-12-27,23110,Інші витрати,Інші витрати,296137,Центральний офіс,20069956,Україна,Відрахування із з/плати Смусь М.А. зг. з ВП№48410793викон.лист.№755/11633/14-ц від 2015-01-23р.,2604826373,state,2109.52,Подільський районний відділ державної виконавчої служби м. Київ головного територіального управління юстиції у м. Київ,34482497,юридична особа
БАТЬКІВЩИНА,"Київ, проспект Георгія Гонгадзе, 5Б",43,2019-12-27,2309,Інші витрати,Інші витрати,296136,Центральний офіс,20069956,Україна,Відрахування із з/плати Смусь М.А. зг. з ВП№48410793викон.лист.№755/11633/14-ц від 2015-01-23р.,2604826373,state,2036.65,Подільський районний відділ державної виконавчої служби м. Київ головного територіального управління юстиції у м. Київ,34482497,юридична особа
БАТЬКІВЩИНА,"Київ, проспект Георгія Гонгадзе, 5Б",43,2019-12-27,2307,Інші витрати,Інші витрати,296135,Центральний офіс,20069956,Україна,Відрахування із з/плати Сокольченко С.П. зг. З ВП№41058190 викон.лист.№2/754/150/13 від 2013-04-08,2604826373,state,1362.06,Подільський районний відділ державної виконавчої служби м. Київ головного територіального управління юстиції у м. Київ,34482497,юридична особа
БАТЬКІВЩИНА,"Волинська область, Ковель, вулиця Володимирська, 97",79,2019-12-27,145,"Оренда будинків і приміщень та експлуатаційні витрати (прибирання, страхування орендованих будинків, охорона, сигналізація, ремонт, вивіз сміття, тощо)",Оренда нерухомості,296115,Ковельська міська організація,25910039,Волинська область,оплата комунальних послуг,26004055510716,current,5891.96,"ПТМ ""Ковельтепло""",30514446,юридична особа
БАТЬКІВЩИНА,"Тернопільська область, Тернопіль, вулиця Йосипа Сліпого, 5",70,2019-12-27,bn,Банківські послуги,Інші витрати,296083,Тернопільська обласна організація,25781561,Тернопільська область,послуги банку,UA203808050000000026005209741,current,45.00,"АТ ""Райффайзен банк Аваль""",14305909,юридична особа
БАТЬКІВЩИНА,"Львівська область, Новий Розділ, проспект Тараса Шевченка, 13",79,2019-12-27,37,"Оренда будинків і приміщень та експлуатаційні витрати (прибирання, страхування орендованих будинків, охорона, сигналізація, ремонт, вивіз сміття, тощо)",Оренда нерухомості,295967,Новороздільська міська організація,33756901,Львівська область,Орендна плата за грудень 2019 р.,UA613257960000026002300553222,current,413.23,"Комунальна установа ""Міський буд. культури ""Молодість""",35283105,юридична особа
БАТЬКІВЩИНА,"Львівська область, Новий Розділ, проспект Тараса Шевченка, 13",79,2019-12-27,36,"Оренда будинків і приміщень та експлуатаційні витрати (прибирання, страхування орендованих будинків, охорона, сигналізація, ремонт, вивіз сміття, тощо)",Оренда нерухомості,295966,Новороздільська міська організація,33756901,Львівська область,Орендна плата за листопад 2019 р.,UA613257960000026002300553222,current,413.02,"Комунальна установа ""Міський буд. культури ""Молодість""",35283105,юридична особа
БАТЬКІВЩИНА,"Львівська область, Новий Розділ, проспект Тараса Шевченка, 13",79,2019-12-27,40,"Оренда будинків і приміщень та експлуатаційні витрати (прибирання, страхування орендованих будинків, охорона, сигналізація, ремонт, вивіз сміття, тощо)",Оренда нерухомості,295965,Новороздільська міська організація,33756901,Львівська область,Відшкодування за водопостачання та водовідведення за жовтень - грудень 2019 р.,UA613257960000026002300553222,current,87.60,"Комунальна установа ""Міський буд. культури ""Молодість""",35283105,юридична особа
БАТЬКІВЩИНА,"Львівська область, Новий Розділ, проспект Тараса Шевченка, 13",79,2019-12-27,41,"Оренда будинків і приміщень та експлуатаційні витрати (прибирання, страхування орендованих будинків, охорона, сигналізація, ремонт, вивіз сміття, тощо)",Оренда нерухомості,295964,Новороздільська міська організація,33756901,Львівська область,відшкодування за теплопостачання за грудень 2019 р.,UA613257960000026002300553222,current,1234.80,"Комунальна установа ""Міський буд. культури ""Молодість""",35283105,юридична особа
БАТЬКІВЩИНА,"Львівська область, Новий Розділ, проспект Тараса Шевченка, 13",79,2019-12-27,39,"Оренда будинків і приміщень та експлуатаційні витрати (прибирання, страхування орендованих будинків, охорона, сигналізація, ремонт, вивіз сміття, тощо)",Оренда нерухомості,295963,Новороздільська міська організація,33756901,Львівська область,відшкодування за електроенергію жовтень - грудень 2019 р.,UA613257960000026002300553222,current,201.33,"Комунальна установа ""Міський буд. культури ""Молодість""",35283105,юридична особа
БАТЬКІВЩИНА,"Київ, вулиця Василя Липківського, 16",70,2019-12-27,117177,Банківські послуги,Інші витрати,295960,Шевченківська районна організація,21715980,Київ,За ведення поточного рахунку,UA033065000000026005300003182,current,150.00,"ПАТ ""АБ ""Радабанк""",21322127,юридична особа
БАТЬКІВЩИНА,"Київ, вулиця Михайла Грушевського, 1Д",70,2019-12-27,CRO2VR39GY,Банківські послуги,Інші витрати,295929,Київська міська організація,21709458,Київ,Комісія за виконання платежів,UA973007110000026006052720575,current,3.00,"ПАТ КБ ""Приватбанк""",14360570,юридична особа
БАТЬКІВЩИНА,"Київ, вулиця Михайла Грушевського, 1Д",70,2019-12-27,CEO1MSIAUY,Банківські послуги,Інші витрати,295865,Фастівська районна організація,26078703,Київська область,Комісія за виконання платежів,26009053006274,current,3.00,"ПАТ КБ ""Приватбанк""",14360570,юридична особа
БАТЬКІВЩИНА,"Харківська область, Красноградський район, Красноград",79,2019-12-27,4470,"Оренда будинків і приміщень та експлуатаційні витрати (прибирання, страхування орендованих будинків, охорона, сигналізація, ремонт, вивіз сміття, тощо)",Оренда нерухомості,295819,Харківська обласна організація,25792203,Харківська область,оплата за оренду зг дог№28 від 2016-04-01р. та рах№2192 від 2019-11-11р. у т.ч. ПДВ 20% - 106.45 грн.,UA493808050000000026009378667,current,638.71,Красноградський Комбінат Комунальних Підприємств,03358630,юридична особа
БАТЬКІВЩИНА,"Харківська область, Балаклійський район, Балаклія, вул. Жовтнева",79,2019-12-27,4458,"Оренда будинків і приміщень та експлуатаційні витрати (прибирання, страхування орендованих будинків, охорона, сигналізація, ремонт, вивіз сміття, тощо)",Оренда нерухомості,295752,Харківська обласна організація,25792203,Харківська область,за вивіз тпв за листопад-грудень 2019р. зг рах№2443/004g від 2019-12-31р. у т.ч. ПДВ 20% - 1.81 грн.,UA493808050000000026009378667,current,10.86,"КП Балаклійської районної ради ""Балаклійський житлокомунсервіс""",35659347,юридична особа
БАТЬКІВЩИНА,"Харківська область, Балаклійський район, Балаклія, вул. Жовтнева",79,2019-12-27,4461,"Оренда будинків і приміщень та експлуатаційні витрати (прибирання, страхування орендованих будинків, охорона, сигналізація, ремонт, вивіз сміття, тощо)",Оренда нерухомості,295751,Харківська обласна організація,25792203,Харківська область,відшкодування витрат за послуги з електропостачання у листопаді 2019р. зг рах№2207 від 2019-11-30р. у т.ч. ПДВ 20% - 45.21 грн.,UA493808050000000026009378667,current,271.28,"КП Балаклійської районної ради ""Балаклійський житлокомунсервіс""",35659347,юридична особа
БАТЬКІВЩИНА,"Харківська область, Балаклійський район, Балаклія, вул. Жовтнева",79,2019-12-27,4471,"Оренда будинків і приміщень та експлуатаційні витрати (прибирання, страхування орендованих будинків, охорона, сигналізація, ремонт, вивіз сміття, тощо)",Оренда нерухомості,295750,Харківська обласна організація,25792203,Харківська область,оплата за оренду приміщення за листопад 2019 р. зг рах№2095 від 2019-11-30р. . у т.ч. ПДВ 20% - 114.38 грн.,UA493808050000000026009378667,current,686.27,"КП Балаклійської районної ради ""Балаклійський житлокомунсервіс""",35659347,юридична особа
БАТЬКІВЩИНА,"Львівська область, Дрогобич, вулиця Федьковича, 11",79,2019-12-27,4,"Оренда будинків і приміщень та експлуатаційні витрати (прибирання, страхування орендованих будинків, охорона, сигналізація, ремонт, вивіз сміття, тощо)",Оренда нерухомості,295643,Дрогобицька міська організація,25257295,Львівська область,Перераховано за водопостачання за грудень 2019 р. т. ч. з ПДВ.,UA813257960000026006300558740,current,24.68,"КП ""Дрогобичводоканал""",03348910,юридична особа
БАТЬКІВЩИНА,"Житомирська область, Попільнянський район, Попільня, вулиця Богдана Хмельницького, 13",70,2019-12-27,bn,Банківські послуги,Інші витрати,295627,Попільнянська районна організація,33864810,Житомирська область,Послуги банку,UA153808050000000026009543306,current,150.00,"АТ ""Райффайзен банк Аваль""",14305909,юридична особа
БАТЬКІВЩИНА,"Житомирська область, Попільнянський район, Попільня, вулиця Богдана Хмельницького, 13",70,2019-12-27,bn,Банківські послуги,Інші витрати,295626,Попільнянська районна організація,33864810,Житомирська область,Послуги банку,UA153808050000000026009543306,current,50.00,"АТ ""Райффайзен банк Аваль""",14305909,юридична особа
БАТЬКІВЩИНА,"Харківська область, Балаклійський район, Балаклія",79,2019-12-27,4460,"Оренда будинків і приміщень та експлуатаційні витрати (прибирання, страхування орендованих будинків, охорона, сигналізація, ремонт, вивіз сміття, тощо)",Оренда нерухомості,295622,Харківська обласна організація,25792203,Харківська область,оплата за водопостачання у грудні 2019р. зг рах№5154 від 2019-12-12р. у т.ч. ПДВ 20% - 13.78 грн.,UA493808050000000026009378667,current,82.67,"КП ""Балаклійський водоканал""",33394709,юридична особа
БАТЬКІВЩИНА,"Харківська область, Балаклійський район, Балаклія",79,2019-12-27,4464,"Оренда будинків і приміщень та експлуатаційні витрати (прибирання, страхування орендованих будинків, охорона, сигналізація, ремонт, вивіз сміття, тощо)",Оренда нерухомості,295620,Харківська обласна організація,25792203,Харківська область,оплата за водопостачання у листопаді 2019р. зг рах№4610 від 2019-11-13р. у т.ч. ПДВ 20% - 12.25 грн.,UA493808050000000026009378667,current,73.49,"КП ""Балаклійський водоканал""",33394709,юридична особа
БАТЬКІВЩИНА,"Рівненська область, Рівне, вулиця Степана Бандери, 2",79,2019-12-27,125,"Оренда будинків і приміщень та експлуатаційні витрати (прибирання, страхування орендованих будинків, охорона, сигналізація, ремонт, вивіз сміття, тощо)",Оренда нерухомості,295607,Рівненська обласна організація,25797672,Рівненська область,оплата за водопостачання,UA413333680000026004301975917,current,67.77,Рівнеоблводоканал,03361678,юридична особа
БАТЬКІВЩИНА,"Київ, вулиця Єреванська, 1",70,2019-12-27,TR.2696184.376293960,Банківські послуги,Інші витрати,295575,Бердичівська міська організація,25776991,Житомирська область,розрахункове обслуговування,UA813204780000026003924423074,current,10.00,"АБ ""Укргазбанк""",23697280,юридична особа
БАТЬКІВЩИНА,"Київ, вулиця Михайла Грушевського, 1Д",70,2019-12-27,CRO2VNML7Y,Банківські послуги,Інші витрати,295565,Дніпропетровська обласна організація,25788756,Дніпропетровська область,"Комісія за виконання платежів в національній валюті,згідно з відкритою офертою банку №б\н від 2018-05-17 та тарифів банку без ПДВ",UA433052990000026007050347236,current,3.00,"ПАТ КБ ""Приватбанк""",14360570,юридична особа
БАТЬКІВЩИНА,"Київ, вулиця Турівська, 12",62,2019-12-27,2304,Сплата ЄСВ,Податкові платежі,295426,Центральний офіс,20069956,Україна,Сплата ЕСВ 22% нарахованого із 2 половини заробітної плати за грудень 2019 року,2604826373,state,63150.00,ДПІ у Подільському районі ГУ ДФС у м. Києві,39467012,юридична особа
БАТЬКІВЩИНА,"Сумська область, Суми, Іллінська вулиця, 13",62,2019-12-27,270,Сплата ЄСВ,Податкові платежі,295362,Сумська обласна організація,24011118,Сумська область,"*;101;24011118;сплата ЄСВ 22,00 % від заробітної плати за 2 пол. грудня 2019 р;;;",26009055022131,current,1320.00,ГУ ДПС у Сумській області,43144399,юридична особа
БАТЬКІВЩИНА,"Київ, вулиця Михайла Грушевського, 1Д",70,2019-12-27,CKO2VXIOYY,Банківські послуги,Інші витрати,295342,Ковельська міська організація,25910039,Волинська область,комісія за обслуговування рахунку,26004055510716,current,3.00,"ПАТ КБ ""Приватбанк""",14360570,юридична особа
БАТЬКІВЩИНА,"Львівська область, Городоцький район, Городок, вулиця Леся Мартовича",79,2019-12-27,57,"Оренда будинків і приміщень та експлуатаційні витрати (прибирання, страхування орендованих будинків, охорона, сигналізація, ремонт, вивіз сміття, тощо)",Оренда нерухомості,295245,Городоцька районна організація,33811878,Львівська область,оренда приміщення за листопад згідно рахунку № 214 від 2019-11-20р. без ПДВ.,UA453257960000026000300560756,current,908.41,Відділ культури Городоцької РДА Львівської області,02229333,юридична особа
БАТЬКІВЩИНА,"Львівська область, Дрогобич, площа Ринок, 1",79,2019-12-27,7,"Оренда будинків і приміщень та експлуатаційні витрати (прибирання, страхування орендованих будинків, охорона, сигналізація, ремонт, вивіз сміття, тощо)",Оренда нерухомості,295239,Дрогобицька міська організація,25257295,Львівська область,перераховано за орендну плату за грудень 2019 р. в т. ч. з ПДВ.,UA813257960000026006300558740,current,424.64,Виконавчий комітет Дрогобицької міської ради,38007496,юридична особа
БАТЬКІВЩИНА,"Київ, вулиця Межигірська, 25",63,2019-12-27,2303,Податок на доходи,Податкові платежі,295223,Центральний офіс,20069956,Україна,Податок з доходів фізичних осіб 2 половини заробітної плати за грудень 2019 року,2604826373,state,51670.00,УДКСУ у Подільському районі м. Києва,37975298,юридична особа
БАТЬКІВЩИНА,"Київ, вулиця Межигірська, 25",61,2019-12-27,2302,Військовий збір,Податкові платежі,295222,Центральний офіс,20069956,Україна,Військовий збір із 2 половини заробітної плати за грудень 2019 року,2604826373,state,4310.00,УДКСУ у Подільському районі м. Києва,37975298,юридична особа
БАТЬКІВЩИНА,"Київ, вулиця Миколи Лєскова, 9",70,2019-12-27,bn,Банківські послуги,Інші витрати,295172,Львівська обласна організація,25249083,Львівська область,Комісія за вих. Перекази в нац. Валюті з використанням системи 2019-11-28 по 2019-12-26 р.,UA883808050000000026009223347,current,75.00,"АТ ""Райффайзен банк Аваль""",14305909,юридична особа
БАТЬКІВЩИНА,"Київ, вулиця Миколи Лєскова, 9",70,2019-12-27,bn,Банківські послуги,Інші витрати,295171,Львівська обласна організація,25249083,Львівська область,Комісія за користування пакетом послуг,UA883808050000000026009223347,current,150.00,"АТ ""Райффайзен банк Аваль""",14305909,юридична особа
БАТЬКІВЩИНА,"Київ, вулиця Михайла Грушевського, 1Д",70,2019-12-27,CRO2VOCLFY,Банківські послуги,Інші витрати,295158,Сумська обласна організація,24011118,Сумська область,"Комісія за виконання платежів в національній валюті, згідно з відкритою офертою банку N б/н від 2015-09-21 та тарифів банку, без ПДВ.",26009055022131,current,3.00,"ПАТ КБ ""Приватбанк""",14360570,юридична особа
БАТЬКІВЩИНА,"Київ, вулиця Михайла Грушевського, 1Д",70,2019-12-27,CRO2VO96YY,Банківські послуги,Інші витрати,295157,Сумська обласна організація,24011118,Сумська область,"Комісія за виконання платежів в національній валюті, згідно з відкритою офертою банку N б/н від 2015-09-21 та тарифів банку, без ПДВ.",26009055022131,current,3.00,"ПАТ КБ ""Приватбанк""",14360570,юридична особа
БАТЬКІВЩИНА,"Київ, вулиця Михайла Грушевського, 1Д",70,2019-12-27,CRO2VO96MY,Банківські послуги,Інші витрати,295156,Сумська обласна організація,24011118,Сумська область,"Комісія за виконання платежів в національній валюті, згідно з відкритою офертою банку N б/н від 2015-09-21 та тарифів банку, без ПДВ.",26009055022131,current,3.00,"ПАТ КБ ""Приватбанк""",14360570,юридична особа
БАТЬКІВЩИНА,"Київ, вулиця Михайла Грушевського, 1Д",70,2019-12-27,CRO2VO97JY,Банківські послуги,Інші витрати,295155,Сумська обласна організація,24011118,Сумська область,"Комісія за виконання платежів в національній валюті, згідно з відкритою офертою банку N б/н від 2015-09-21 та тарифів банку, без ПДВ.",26009055022131,current,3.00,"ПАТ КБ ""Приватбанк""",14360570,юридична особа
БАТЬКІВЩИНА,"Київ, вулиця Михайла Грушевського, 1Д",70,2019-12-27,JCRO0M9KVS,Банківські послуги,Інші витрати,295154,Сумська обласна організація,24011118,Сумська область,Уплата комиссии за кассовое обслуживание декабрь 2019,26009055022131,current,12.08,"ПАТ КБ ""Приватбанк""",14360570,юридична особа
БАТЬКІВЩИНА,"Київська обл., Фастів",84,2019-12-27,2306,"Заробітна плата, премії","Заробітна плата, лікарняні, вагітності, відрядження, компенсації",295067,Центральний офіс,20069956,Україна,Заробітна плата за грудень 2019 року,2604826373,state,2934.80,Сіранчук Ольга Григорівна,,фізична особа
БАТЬКІВЩИНА,"Київ, вулиця Богдана Хмельницького, 64",70,2019-12-27,TR.1719305.15402.2694,Банківські послуги,Інші витрати,295061,Центральний офіс,20069956,Україна,Банківське обслуговування,2600426373,current,1822.22,"ПАТ ""Мегабанк""",09804119,юридична особа
БАТЬКІВЩИНА,"Київ, вулиця Богдана Хмельницького, 64",70,2019-12-27,RCO2251_929,Банківські послуги,Інші витрати,295060,Центральний офіс,20069956,Україна,Банківське обслуговування,2600426373,current,8.00,"ПАТ ""Мегабанк""",09804119,юридична особа
БАТЬКІВЩИНА,"Дніпропетровська область, Дніпро́, вулиця Троїцька, 21",79,2019-12-27,417,"Оренда будинків і приміщень та експлуатаційні витрати (прибирання, страхування орендованих будинків, охорона, сигналізація, ремонт, вивіз сміття, тощо)",Оренда нерухомості,294969,Дніпропетровська обласна організація,25788756,Дніпропетровська область,"оплата за водопостачання за 12 м 2019р(частково) згідно договору №12489 від 2016-09-15р у сумі 231,07грн ПДВ -20% 46,21грн",UA433052990000026007050347236,current,277.28,"КП ""Дніпроводоканал""",03341305,юридична особа
БАТЬКІВЩИНА,"Тернопільська область, Тернопіль, вулиця Білецька, 1",62,2019-12-26,288,Сплата ЄСВ,Податкові платежі,297198,Тернопільська обласна організація,25781561,Тернопільська область,Єдиний соціальний внесок за грудень 2019,UA203808050000000026005209741,current,1812.38,Тернопільська ОДПІ ГУ ДФС в Тернопільській області,39502025,юридична особа
БАТЬКІВЩИНА,"Тернопільська область, Тернопіль, вулиця Листопадова, 3",63,2019-12-26,287,Податок на доходи,Податкові платежі,297197,Тернопільська обласна організація,25781561,Тернопільська область,Податок з доходів найманих працівників за грудень 2019,UA203808050000000026005209741,current,1482.84,УДКСУ у м. Тернопіль,37977726,юридична особа
БАТЬКІВЩИНА,"Тернопільська область, Тернопіль, вулиця Листопадова, 3",61,2019-12-26,286,Військовий збір,Податкові платежі,297196,Тернопільська обласна організація,25781561,Тернопільська область,Військовий збір за грудень 2019,UA203808050000000026005209741,current,123.57,УДКСУ у м. Тернопіль,37977726,юридична особа
БАТЬКІВЩИНА,"Львівська область, Львів, вулиця Січових Стрільців, 9",79,2019-12-26,15,"Оренда будинків і приміщень та експлуатаційні витрати (прибирання, страхування орендованих будинків, охорона, сигналізація, ремонт, вивіз сміття, тощо)",Оренда нерухомості,297139,Мостиська районна організація,25257639,Львівська область,оренда приміщення за грудень 2019 року,UA933257960000026009300552505,current,3000.00,"Львівська обласна філія АТ ""Ощадбанк""",09325703,юридична особа
БАТЬКІВЩИНА,"Львівська область, Стрий, вулиця Січових Стрільців, 6",79,2019-12-26,48,"Оренда будинків і приміщень та експлуатаційні витрати (прибирання, страхування орендованих будинків, охорона, сигналізація, ремонт, вивіз сміття, тощо)",Оренда нерухомості,297048,Стрийська міська організація,25254014,Львівська область,"Орендна плата за грудень 2019р. згідно договору оренди від 2019-01-01 р, без ПДВ.",UA263257960000026002300558023,current,1540.00,Стефаненко Лідія Феодосіївна,,фізична особа
БАТЬКІВЩИНА,"Львівська область, Дрогобич, вулиця Михайла Грушевського, 64, 40",79,2019-12-26,35,"Оренда будинків і приміщень та експлуатаційні витрати (прибирання, страхування орендованих будинків, охорона, сигналізація, ремонт, вивіз сміття, тощо)",Оренда нерухомості,297045,Дрогобицька районна організація,25257088,Львівська область,Оренда приміщення за грудень 2019 р.,UA523257960000026009300454012,current,1600.00,Рупняк Дарія Михайлівна,1805311867,фізична особа
БАТЬКІВЩИНА,"Львівська область, Дрогобич, вулиця Михайла Грушевського, 64, 40",79,2019-12-26,34,"Оренда будинків і приміщень та експлуатаційні витрати (прибирання, страхування орендованих будинків, охорона, сигналізація, ремонт, вивіз сміття, тощо)",Оренда нерухомості,297044,Дрогобицька районна організація,25257088,Львівська область,Оренда приміщення за листопад 2019 р.,UA523257960000026009300454012,current,1600.00,Рупняк Дарія Михайлівна,1805311867,фізична особа
БАТЬКІВЩИНА,"Львівська область, Львів, вулиця Липинського, 44",79,2019-12-26,20,"Оренда будинків і приміщень та експлуатаційні витрати (прибирання, страхування орендованих будинків, охорона, сигналізація, ремонт, вивіз сміття, тощо)",Оренда нерухомості,297002,Сколівська районна організація,25257125,Львівська область,оплата за охорону обʼєкту за листопад 2019 року,UA223257960000026002300562848,current,400.00,Управління поліції охорони у Львівській області,40108887,юридична особа
БАТЬКІВЩИНА,"Львівська область, Львів, вулиця Липинського, 44",79,2019-12-26,20,"Оренда будинків і приміщень та експлуатаційні витрати (прибирання, страхування орендованих будинків, охорона, сигналізація, ремонт, вивіз сміття, тощо)",Оренда нерухомості,297001,Сколівська районна організація,25257125,Львівська область,оплата за охорону обʼєкту за грудень 2019 року,UA223257960000026002300562848,current,400.00,Управління поліції охорони у Львівській області,40108887,юридична особа
БАТЬКІВЩИНА,"Львівська область, вулиця Андрея Шептицького, 9",63,2019-12-26,46,Податок на доходи,Податкові платежі,296917,Миколаївська районна організація,25255505,Львівська область,*;11010400;01;ПДФО із оренди приміщення за грудень 2019 р.,UA263257960000026006300552940,current,156.60,УДКСУ у Миколаївському районі,37983768,юридична особа
БАТЬКІВЩИНА,"Львівська область, Львів, вулиця Джохара Дудаєва, 19",43,2019-12-26,299,Інші витрати,Інші витрати,296911,Львівська обласна організація,25249083,Львівська область,За державну реєстрацію змін до відомостей про юридичну особу Пустомитівської РПО,UA883808050000000026009223347,current,580.00,УДКСУ у Галицькому районі м. Львова,38007573,юридична особа
БАТЬКІВЩИНА,"Львівська область, Львів, вулиця Джохара Дудаєва, 19",43,2019-12-26,298,Інші витрати,Інші витрати,296910,Львівська обласна організація,25249083,Львівська область,За державну реєстрацію змін до відомостей про юридичну особу Бродівської РПО,UA883808050000000026009223347,current,580.00,УДКСУ у Галицькому районі м. Львова,38007573,юридична особа
БАТЬКІВЩИНА,"Львівська область, Львів, вулиця Джохара Дудаєва, 19",43,2019-12-26,297,Інші витрати,Інші витрати,296909,Львівська обласна організація,25249083,Львівська область,За державну реєстрацію змін до відомостей про юридичну особу Моршинської МПО,UA883808050000000026009223347,current,580.00,УДКСУ у Галицькому районі м. Львова,38007573,юридична особа
БАТЬКІВЩИНА,"Харківська область, Харків",79,2019-12-26,4436,"Оренда будинків і приміщень та експлуатаційні витрати (прибирання, страхування орендованих будинків, охорона, сигналізація, ремонт, вивіз сміття, тощо)",Оренда нерухомості,296900,Харківська обласна організація,25792203,Харківська область,орендна плата за грудень 2019р. зг рах№359 від 26/12/19р. Без ПДВ,UA493808050000000026009378667,current,887.36,Товстяк Микола Олексійович,,фізична особа
БАТЬКІВЩИНА,"Львівська область, Львів, вул. Кульпарківська",79,2019-12-26,14,"Оренда будинків і приміщень та експлуатаційні витрати (прибирання, страхування орендованих будинків, охорона, сигналізація, ремонт, вивіз сміття, тощо)",Оренда нерухомості,296885,Мостиська районна організація,25257639,Львівська область,послуги охорони приміщення за грудень 2019 року,UA933257960000026009300552505,current,350.00,"ТОВ ""Явір-2000 Львів""",39421816,юридична особа
БАТЬКІВЩИНА,"Львівська область, Львів, вул. Кульпарківська, 20",79,2019-12-26,46,"Оренда будинків і приміщень та експлуатаційні витрати (прибирання, страхування орендованих будинків, охорона, сигналізація, ремонт, вивіз сміття, тощо)",Оренда нерухомості,296874,Стрийська міська організація,25254014,Львівська область,За послуги централізованої охорони за грудень 2019р.згідно рахунку-фактури **14852** по договору //Лвв/001877-JAV від 2019-02-01р.,UA263257960000026002300558023,current,350.00,"ТОВ ""Явір-2000 Львів""",39421816,юридична особа
БАТЬКІВЩИНА,"Львівська область, Львів, вулиця Гоголя, 4",79,2019-12-26,140,"Оренда будинків і приміщень та експлуатаційні витрати (прибирання, страхування орендованих будинків, охорона, сигналізація, ремонт, вивіз сміття, тощо)",Оренда нерухомості,296868,Червоноградська міська організація,25262652,Львівська область,Оплата послуг централізованої охорони приміщення за грудень 2019 р.,UA643257960000026001300585503,current,350.00,"ТОВ ""Явір-2000 Львів""",39421816,юридична особа
БАТЬКІВЩИНА,"Харківська область, Харків, вулиця Бакуліна, 18",63,2019-12-26,4437,Податок на доходи,Податкові платежі,296817,Харківська обласна організація,25792203,Харківська область,податок на доходи фо Товстяк Микола Олексійович із дохода за оренду приміщення,UA493808050000000026009378667,current,198.41,УДКСУ у Шевченківському районі м. Харкова,37999654,юридична особа
БАТЬКІВЩИНА,"Харківська область, Харків, вулиця Бакуліна, 18",61,2019-12-26,4438,Військовий збір,Податкові платежі,296816,Харківська обласна організація,25792203,Харківська область,військовий збір з виплати доходу за оренду приміщення Товстяк Микола Олексійович,UA493808050000000026009378667,current,16.53,УДКСУ у Шевченківському районі м. Харкова,37999654,юридична особа
БАТЬКІВЩИНА,"Харківська область, Харків, вулиця Бакуліна, 18",63,2019-12-26,4440,Податок на доходи,Податкові платежі,296815,Харківська обласна організація,25792203,Харківська область,податок на доходи фо Захарян Юрій Імранович із дохода за оренду приміщення,UA493808050000000026009378667,current,360.00,УДКСУ у Шевченківському районі м. Харкова,37999654,юридична особа
БАТЬКІВЩИНА,"Харківська область, Харків, вулиця Бакуліна, 18",61,2019-12-26,4441,Військовий збір,Податкові платежі,296814,Харківська обласна організація,25792203,Харківська область,військовий збір з виплати доходу за оренду приміщення Захарян Юрій Імранович,UA493808050000000026009378667,current,30.00,УДКСУ у Шевченківському районі м. Харкова,37999654,юридична особа
БАТЬКІВЩИНА,"Харківська область, Харків, вулиця Бакуліна, 18",61,2019-12-26,4443,Військовий збір,Податкові платежі,296813,Харківська обласна організація,25792203,Харківська область,військовий збір з виплати доходу за оренду приміщення Мусійко Аліна Олександрівна,UA493808050000000026009378667,current,37.50,УДКСУ у Шевченківському районі м. Харкова,37999654,юридична особа
БАТЬКІВЩИНА,"Харківська область, Харків, вулиця Бакуліна, 18",63,2019-12-26,4444,Податок на доходи,Податкові платежі,296812,Харківська обласна організація,25792203,Харківська область,податок на доходи фо Мусійко Аліна Олександрівна із дохода за оренду приміщення,UA493808050000000026009378667,current,450.00,УДКСУ у Шевченківському районі м. Харкова,37999654,юридична особа
БАТЬКІВЩИНА,"Київ, вулиця Турівська, 15",79,2019-12-26,2301,"Оренда будинків і приміщень та експлуатаційні витрати (прибирання, страхування орендованих будинків, охорона, сигналізація, ремонт, вивіз сміття, тощо)",Оренда нерухомості,296764,Центральний офіс,20069956,Україна,Сплата за оренду нежилого приміщення,2600426373,current,86000.00,"ТОВ ""МЦ-файнанс""",36473374,юридична особа
БАТЬКІВЩИНА,"Львівська область, Червоноград, вулиця Корольова, 8",76,2019-12-26,143,Послуги зв’язку,Послуги зв’язку,296724,Червоноградська міська організація,25262652,Львівська область,"Телекомунікації ""Кварц"" за грудень 2019 р.",UA643257960000026001300585503,current,133.20,"ТОВ ""Кварц""",30204715,юридична особа
БАТЬКІВЩИНА,"Київ, бульвар Лесі Українки, 27",79,2019-12-26,2300,"Оренда будинків і приміщень та експлуатаційні витрати (прибирання, страхування орендованих будинків, охорона, сигналізація, ремонт, вивіз сміття, тощо)",Оренда нерухомості,296697,Центральний офіс,20069956,Україна,Сплата за оренду приміщення,2600426373,current,257000.00,"ТОВ ""ЕКОТЕХПРОМ""",32248975,юридична особа
БАТЬКІВЩИНА,"Львівська область, Львів, вулиця Кульпарківська, 156",79,2019-12-26,9,"Оренда будинків і приміщень та експлуатаційні витрати (прибирання, страхування орендованих будинків, охорона, сигналізація, ремонт, вивіз сміття, тощо)",Оренда нерухомості,296567,Перемишлянська районна організація,25258981,Львівська область,за послуги згідно рахунку-фактури **14799 ** по договору //ЛВВ/001903-JAV//,UA503257960000026001300558013,current,350.00,"ТОВ ""Явір-2000 Львів""",39421816,юридична особа
БАТЬКІВЩИНА,"Львівська область, Сколівський район, Сколе, вулиця Данила Галицького, 13",79,2019-12-26,19,"Оренда будинків і приміщень та експлуатаційні витрати (прибирання, страхування орендованих будинків, охорона, сигналізація, ремонт, вивіз сміття, тощо)",Оренда нерухомості,296478,Сколівська районна організація,25257125,Львівська область,оплата за електроенергію за листопад 2019 року,UA223257960000026002300562848,current,194.60,Сколівська райспоживспілка,01758012,юридична особа
БАТЬКІВЩИНА,"Львівська область, Сколівський район, Сколе, вулиця Данила Галицького, 13",79,2019-12-26,18,"Оренда будинків і приміщень та експлуатаційні витрати (прибирання, страхування орендованих будинків, охорона, сигналізація, ремонт, вивіз сміття, тощо)",Оренда нерухомості,296477,Сколівська районна організація,25257125,Львівська область,За оренду приміщення за грудень 2019 р.,UA223257960000026002300562848,current,1300.00,Сколівська райспоживспілка,01758012,юридична особа
БАТЬКІВЩИНА,"Львівська область, Радехівський район, Радехів, вулиця Львівська, 31",79,2019-12-26,15,"Оренда будинків і приміщень та експлуатаційні витрати (прибирання, страхування орендованих будинків, охорона, сигналізація, ремонт, вивіз сміття, тощо)",Оренда нерухомості,296423,Радехівська районна організація,25259791,Львівська область,за оренду приміщення згідно договору від 2019-01-02р за листопад 2019 р,UA343257960000026006300560459,current,2000.00,Радехівська райспоживспілка,01757834,юридична особа
БАТЬКІВЩИНА,"Київ, бульвар Тараса Шевченка, 18",76,2019-12-26,22,Послуги зв’язку,Послуги зв’язку,296382,Сколівська районна організація,25257125,Львівська область,оплата за телекомунікаційні послуги за вересень 2019 року,UA223257960000026002300562848,current,205.00,"ПАТ ""Укртелеком""",21560766,юридична особа
БАТЬКІВЩИНА,"Львівська область, вулиця Андрея Шептицького, 9",61,2019-12-26,47,Військовий збір,Податкові платежі,296378,Миколаївська районна організація,25255505,Львівська область,*;25255505;11011000;Військовий збір із оренди приміщення за грудень 2019 р.,UA263257960000026006300552940,current,13.05,УДКСУ у Миколаївському районі,37983768,юридична особа
БАТЬКІВЩИНА,"Київ, бульвар Тараса Шевченка, 18",76,2019-12-26,336,Послуги зв’язку,Послуги зв’язку,296366,Дрогобицька районна організація,25257088,Львівська область,"За телекомунікаційні послуги за листопад 2019, згідно договору №441593",UA523257960000026009300454012,current,250.00,"ПАТ ""Укртелеком""",21560766,юридична особа
БАТЬКІВЩИНА,"Львівська область, Львів, вулиця Січових Стрільців, 9",70,2019-12-26,1246163214,Банківські послуги,Інші витрати,296201,Дрогобицька районна організація,25257088,Львівська область,Погашення нарахованої комісії за внесення готівки,UA523257960000026009300454012,current,20.00,"Львівська обласна філія АТ ""Ощадбанк""",09325703,юридична особа
БАТЬКІВЩИНА,"Тернопільська область, Тернопіль, вулиця Йосипа Сліпого, 5",70,2019-12-26,bn,Банківські послуги,Інші витрати,296082,Тернопільська обласна організація,25781561,Тернопільська область,послуги банку,UA203808050000000026005209741,current,150.00,"АТ ""Райффайзен банк Аваль""",14305909,юридична особа
БАТЬКІВЩИНА,"Тернопільська область, Тернопіль, вулиця Йосипа Сліпого, 5",70,2019-12-26,285,Банківські послуги,Інші витрати,296081,Тернопільська обласна організація,25781561,Тернопільська область,послуги банку,UA203808050000000026005209741,current,16.46,"АТ ""Райффайзен банк Аваль""",14305909,юридична особа
БАТЬКІВЩИНА,"Харківська область, Богодухівський район, Богодухів",79,2019-12-26,4442,"Оренда будинків і приміщень та експлуатаційні витрати (прибирання, страхування орендованих будинків, охорона, сигналізація, ремонт, вивіз сміття, тощо)",Оренда нерухомості,295970,Харківська обласна організація,25792203,Харківська область,"сплата за оренду приміщення за грудень 2019р. зг рах №12 від 2019-12-26р.,до зарах на картку 5168742727709416",UA493808050000000026009378667,current,2012.50,Мусійко Аліна Олександрівна,,фізична особа
БАТЬКІВЩИНА,"Львівська область, Червоноград, вулиця Коновальця, 3",79,2019-12-26,144,"Оренда будинків і приміщень та експлуатаційні витрати (прибирання, страхування орендованих будинків, охорона, сигналізація, ремонт, вивіз сміття, тощо)",Оренда нерухомості,295697,Червоноградська міська організація,25262652,Львівська область,Оплата оренди приміщення за грудень 2019 р.,UA643257960000026001300585503,current,469.40,"КП ""Червонограджитлокомунсервіс""",31616100,юридична особа
БАТЬКІВЩИНА,"Львівська область, Червоноград, вулиця Коновальця, 3",79,2019-12-26,142,"Оренда будинків і приміщень та експлуатаційні витрати (прибирання, страхування орендованих будинків, охорона, сигналізація, ремонт, вивіз сміття, тощо)",Оренда нерухомості,295696,Червоноградська міська організація,25262652,Львівська область,Послуги з утримання багатоквартирним будинком за грудень 2019 р.,UA643257960000026001300585503,current,155.29,"КП ""Червонограджитлокомунсервіс""",31616100,юридична особа
БАТЬКІВЩИНА,"Львівська область, Червоноград, вулиця Коновальця, 3",79,2019-12-26,141,"Оренда будинків і приміщень та експлуатаційні витрати (прибирання, страхування орендованих будинків, охорона, сигналізація, ремонт, вивіз сміття, тощо)",Оренда нерухомості,295692,Червоноградська міська організація,25262652,Львівська область,Вивіз ТПВ за грудень 2019 р.,UA643257960000026001300585503,current,7.26,"КП ""Червонограджитлокомунсервіс""",31616100,юридична особа
БАТЬКІВЩИНА,"Харківська область, Харків",79,2019-12-26,4439,"Оренда будинків і приміщень та експлуатаційні витрати (прибирання, страхування орендованих будинків, охорона, сигналізація, ремонт, вивіз сміття, тощо)",Оренда нерухомості,295478,Харківська обласна організація,25792203,Харківська область,оплата за оренду офісного приміщення за грудень 2019р. зг рах№СФ-0000304/1 від 2019-12-01р. Без ПДВ.,UA493808050000000026009378667,current,1610.00,Захарян Юрій Імранович,,фізична особа
БАТЬКІВЩИНА,"Львівська область, Буський район, Буськ, вулиця Михайла Грушевського, 5",79,2019-12-26,30,"Оренда будинків і приміщень та експлуатаційні витрати (прибирання, страхування орендованих будинків, охорона, сигналізація, ремонт, вивіз сміття, тощо)",Оренда нерухомості,295261,Буська районна організація,25256924,Львівська область,Відшкодування за активну електроенергію та використану воду за грудень 2019 року,UA763257960000026000300553893,current,192.19,Відділ культури та туризму Буської РДА,02229267,юридична особа
БАТЬКІВЩИНА,"Львівська область, Буський район, Буськ, вулиця Евгена Петрушевича, 21",79,2019-12-26,29,"Оренда будинків і приміщень та експлуатаційні витрати (прибирання, страхування орендованих будинків, охорона, сигналізація, ремонт, вивіз сміття, тощо)",Оренда нерухомості,295260,Буська районна організація,25256924,Львівська область,Оренда приміщення за грудень 2019 року,UA763257960000026000300553893,current,579.62,Відділ культури та туризму Буської РДА,02229267,юридична особа
БАТЬКІВЩИНА,"Львівська область, Миколаївський район, Миколаїв",79,2019-12-26,48,"Оренда будинків і приміщень та експлуатаційні витрати (прибирання, страхування орендованих будинків, охорона, сигналізація, ремонт, вивіз сміття, тощо)",Оренда нерухомості,295214,Миколаївська районна організація,25255505,Львівська область,Плата за оренду приміщення згідно договору №1 від 2019-08-01р.за грудень 2019р.,UA263257960000026006300552940,current,700.35,Бутковський Роман Миронович,,фізична особа
БАТЬКІВЩИНА,"Дніпропетровська область, Дніпро́, вулиця Набережна Перемоги, 30",43,2019-12-26,3,Інші витрати,Інші витрати,295200,Інгулецька районна організація,26051259,Дніпропетровська область,Помилково перераховані кошти,26001053514171,current,98.00,"БО ""ВБФ ""ДОПОМАГАТИ ПРОСТО!""",37806835,юридична особа
БАТЬКІВЩИНА,"Київ, вулиця Богдана Хмельницького, 64",70,2019-12-26,RCO22244_742,Банківські послуги,Інші витрати,295057,Центральний офіс,20069956,Україна,Банківське обслуговування,2600426373,current,6.00,"ПАТ ""Мегабанк""",09804119,юридична особа
БАТЬКІВЩИНА,"Львівська область, Львів, вулиця Гоголя, 4, 3",79,2019-12-26,32,"Оренда будинків і приміщень та експлуатаційні витрати (прибирання, страхування орендованих будинків, охорона, сигналізація, ремонт, вивіз сміття, тощо)",Оренда нерухомості,294978,Буська районна організація,25256924,Львівська область,Послуги охорони за грудень 2019 року,UA763257960000026000300553893,current,350.00,"ТОВ ""Явір-2000 Львів""",39421816,юридична особа
БАТЬКІВЩИНА,"Київ, бульвар Тараса Шевченка, 18",76,2019-12-26,31,Послуги зв’язку,Послуги зв’язку,294973,Буська районна організація,25256924,Львівська область,За телекомунікаційні послуги за листопад 2019 року,UA763257960000026000300553893,current,329.45,"ПАТ ""Укртелеком""",21560766,юридична особа
БАТЬКІВЩИНА,"Львівська область, Турківський район, Турка, площа Ринок, 17",79,2019-12-24,80,"Оренда будинків і приміщень та експлуатаційні витрати (прибирання, страхування орендованих будинків, охорона, сигналізація, ремонт, вивіз сміття, тощо)",Оренда нерухомості,297301,Турківська районна організація,25259806,Львівська область,оплата за використання електроенергії за листопад 2019 року згідно рахунку № 80 від 12.12.201 р.,UA333257960000000260033012203,current,23.12,Явірське споживче товариство,05440117,юридична особа
БАТЬКІВЩИНА,"Харківська область, Великобурлуцький район, Великий Бурлук",79,2019-12-24,4433,"Оренда будинків і приміщень та експлуатаційні витрати (прибирання, страхування орендованих будинків, охорона, сигналізація, ремонт, вивіз сміття, тощо)",Оренда нерухомості,297286,Харківська обласна організація,25792203,Харківська область,за оренду приміщення зг рах№12 від 24/12/19р,UA493808050000000026009378667,current,2256.88,Черничка Ігор Михайлович,,фізична особа
БАТЬКІВЩИНА,"Київ, вулиця Старонаводницька, 13, 37",79,2019-12-24,83,"Оренда будинків і приміщень та експлуатаційні витрати (прибирання, страхування орендованих будинків, охорона, сигналізація, ремонт, вивіз сміття, тощо)",Оренда нерухомості,297109,Київська обласна організація,21710792,Київська область,оренда офісу,26004924426650,current,25265.00,Шейніч Тетяна Василівна,,фізична особа
БАТЬКІВЩИНА,"Львівська область, Львів, вулиця Джохара Дудаєва, 19",43,2019-12-24,49,Інші витрати,Інші витрати,296970,Жовківська районна організація,25256485,Львівська область,"Адміністративний збір за проведенння державної реєстрації юридичних осіб, фізичних осіб-підприємців та громадських формувань. Код платежу 22010300, без ПДВ",UA233257960000026005300562340,current,580.00,УДКСУ у Галицькому районі м. Львова,38007573,юридична особа
БАТЬКІВЩИНА,"Львівська область, Львів, вулиця Джохара Дудаєва, 19",43,2019-12-24,1,Інші витрати,Інші витрати,296913,Шевченківська районна організація,25256717,Львівська область,За державну реєстрацію змін до відомостей про юридичну особу,UA733257960000026007300564670,current,580.00,УДКСУ у Галицькому районі м. Львова,38007573,юридична особа
БАТЬКІВЩИНА,"Дніпропетровська область, Дніпро́, вулиця Богдана Хмельницького, 14А",79,2019-12-24,92,"Оренда будинків і приміщень та експлуатаційні витрати (прибирання, страхування орендованих будинків, охорона, сигналізація, ремонт, вивіз сміття, тощо)",Оренда нерухомості,296891,Нікопольська міська організація,25841367,Дніпропетровська область,Орендна плата згідно дог. суборенди нежитлового приміщення №1/2019 від 2019-05-14 р. Без ПДВ.,UA573052990000026007050277920,current,2500.00,"ТОВ ""Техно-нова""",30508406,юридична особа
БАТЬКІВЩИНА,"Львівська область, Львів, вул. Кульпарківська",79,2019-12-24,98,"Оренда будинків і приміщень та експлуатаційні витрати (прибирання, страхування орендованих будинків, охорона, сигналізація, ремонт, вивіз сміття, тощо)",Оренда нерухомості,296871,Старосамбірська районна організація,25261339,Львівська область,Послуги охорони згідно рахунку № 13913 від 01 листопада 2019,UA463257960000026004300570593,current,350.00,"ТОВ ""Явір-2000 Львів""",39421816,юридична особа
БАТЬКІВЩИНА,"Львівська область, Львів, вул. Кульпарківська",79,2019-12-24,99,"Оренда будинків і приміщень та експлуатаційні витрати (прибирання, страхування орендованих будинків, охорона, сигналізація, ремонт, вивіз сміття, тощо)",Оренда нерухомості,296870,Старосамбірська районна організація,25261339,Львівська область,Послуги охорони згідно рахунку № 14625 від 01 грудня 2019,UA463257960000026004300570593,current,350.00,"ТОВ ""Явір-2000 Львів""",39421816,юридична особа
БАТЬКІВЩИНА,"Львівська область, Львів, вулиця Гоголя, 4",79,2019-12-24,87,"Оренда будинків і приміщень та експлуатаційні витрати (прибирання, страхування орендованих будинків, охорона, сигналізація, ремонт, вивіз сміття, тощо)",Оренда нерухомості,296865,Сокальська районна організація,25257579,Львівська область,Послуги охорони за грудень 2019 згідно рахунку №14844 від 2019-12-01 р.,UA463257960000026003300165846,current,350.00,"ТОВ ""Явір-2000 Львів""",39421816,юридична особа
БАТЬКІВЩИНА,"Харківська область, Харків, вулиця Бакуліна, 18",63,2019-12-24,4431,Податок на доходи,Податкові платежі,296811,Харківська обласна організація,25792203,Харківська область,податок на доходи фо Самсонов Сергій Миколайович із дохода за оренду приміщення,UA493808050000000026009378667,current,396.00,УДКСУ у Шевченківському районі м. Харкова,37999654,юридична особа
БАТЬКІВЩИНА,"Харківська область, Харків, вулиця Бакуліна, 18",61,2019-12-24,4432,Військовий збір,Податкові платежі,296810,Харківська обласна організація,25792203,Харківська область,військовий збір з виплати доходу за оренду приміщення Самсонов Сергій Миколайович,UA493808050000000026009378667,current,33.00,УДКСУ у Шевченківському районі м. Харкова,37999654,юридична особа
БАТЬКІВЩИНА,"Харківська область, Харків, вулиця Бакуліна, 18",63,2019-12-24,4434,Податок на доходи,Податкові платежі,296809,Харківська обласна організація,25792203,Харківська область,податок на доходи фо Черничка Ігор Михайлович із дохода за оренду приміщення,UA493808050000000026009378667,current,504.64,УДКСУ у Шевченківському районі м. Харкова,37999654,юридична особа
БАТЬКІВЩИНА,"Харківська область, Харків, вулиця Бакуліна, 18",61,2019-12-24,4435,Військовий збір,Податкові платежі,296808,Харківська обласна організація,25792203,Харківська область,військовий збір з виплати доходу за оренду приміщення Черничка Ігор Михайлович,UA493808050000000026009378667,current,42.05,УДКСУ у Шевченківському районі м. Харкова,37999654,юридична особа
БАТЬКІВЩИНА,"Київ, Столичне шосе, 101",77,2019-12-24,2299,"Оренда, ремонт та обслуговування автомобілів","Оренда, ремонт та обслуговування автомобілів",296636,Центральний офіс,20069956,Україна,Сплата за ремонт автомобіля,2604826373,state,3223.01,"ТОВ ""АКТИВ МОТОРС""",41651712,юридична особа
БАТЬКІВЩИНА,"Львівська область, Старосамбірський район, Старий Самбір, вулиця Лева Галицького, 101",61,2019-12-24,97,Військовий збір,Податкові платежі,296529,Старосамбірська районна організація,25261339,Львівська область,Військовий збір за грудень 2019 року,UA463257960000026004300570593,current,5.00,УДКСУ у Старосамбірському районі Львівській області,36766006,юридична особа
БАТЬКІВЩИНА,"Львівська область, Старосамбірський район, Старий Самбір, вулиця Лева Галицького, 101",63,2019-12-24,96,Податок на доходи,Податкові платежі,296528,Старосамбірська районна організація,25261339,Львівська область,Прибутковий податок за грудень 2019 року,UA463257960000026004300570593,current,180.00,УДКСУ у Старосамбірському районі Львівській області,36766006,юридична особа
БАТЬКІВЩИНА,"Житомирська область, Попільнянський район, Попільня, вулиця Богдана Хмельницького, 29",79,2019-12-24,4,"Оренда будинків і приміщень та експлуатаційні витрати (прибирання, страхування орендованих будинків, охорона, сигналізація, ремонт, вивіз сміття, тощо)",Оренда нерухомості,296504,Попільнянська районна організація,33864810,Житомирська область,оренда приміщення,UA153808050000000026009543306,current,764.92,Територіальний центр соціального обслуговування,33385521,юридична особа
БАТЬКІВЩИНА,"Харківська область, Барвінківський район, Барвінкове, вул. Центральна, 37, 25",79,2019-12-24,4430,"Оренда будинків і приміщень та експлуатаційні витрати (прибирання, страхування орендованих будинків, охорона, сигналізація, ремонт, вивіз сміття, тощо)",Оренда нерухомості,296471,Харківська обласна організація,25792203,Харківська область,орендна плата за листопад 2019р. зг рах№11 від 03/12/19р. Без ПДВ,UA493808050000000026009378667,current,1771.00,Самсонов Сергій Миколайович,2276414774,фізична особа
БАТЬКІВЩИНА,"Волинська область, Рожищенський район, Рожище, вулиця Незалежності, 82",79,2019-12-24,98,"Оренда будинків і приміщень та експлуатаційні витрати (прибирання, страхування орендованих будинків, охорона, сигналізація, ремонт, вивіз сміття, тощо)",Оренда нерухомості,296458,Рожищенська районна організація,25909970,Волинська область,оплата оренди за грудень 2019 року рах.00011,26006055512381,current,932.06,Рожищенська районна друкарня,02465967,юридична особа
БАТЬКІВЩИНА,"Волинська область, Рожищенський район, Рожище, вулиця Незалежності, 82",79,2019-12-24,99,"Оренда будинків і приміщень та експлуатаційні витрати (прибирання, страхування орендованих будинків, охорона, сигналізація, ремонт, вивіз сміття, тощо)",Оренда нерухомості,296457,Рожищенська районна організація,25909970,Волинська область,оплата ком.послуг рах.00011,26006055512381,current,396.61,Рожищенська районна друкарня,02465967,юридична особа
БАТЬКІВЩИНА,"Київ, бульвар Тараса Шевченка, 18",76,2019-12-24,79,Послуги зв’язку,Послуги зв’язку,296390,Турківська районна організація,25259806,Львівська область,оплата за телекомунікаційні послуги за листопад 2019 р. згідно рахунку-акту № 460201000069012019-11-86 від 2019-11-30 р.,UA333257960000000260033012203,current,287.66,"ПАТ ""Укртелеком""",21560766,юридична особа
БАТЬКІВЩИНА,"Київ, бульвар Тараса Шевченка, 18",76,2019-12-24,47,Послуги зв’язку,Послуги зв’язку,296388,Стрийська міська організація,25254014,Львівська область,Оплата рах.-акт 460700000045202019-11-13 за телекомунікаційні послуги за листопад 2019р. Згідно договору від 2017-04-26р.4607000000452013 в т.ч. ПДВ 20%,UA263257960000026002300558023,current,71.51,"ПАТ ""Укртелеком""",21560766,юридична особа
БАТЬКІВЩИНА,"Київ, бульвар Тараса Шевченка, 18",76,2019-12-24,100,Послуги зв’язку,Послуги зв’язку,296385,Старосамбірська районна організація,25261339,Львівська область,Телекомунікаційні послуги за жовтень 2019р,UA463257960000026004300570593,current,285.00,"ПАТ ""Укртелеком""",21560766,юридична особа
БАТЬКІВЩИНА,"Львівська область, Львів, вулиця Яна Матейка, 8",84,2019-12-24,292,"Заробітна плата, премії","Заробітна плата, лікарняні, вагітності, відрядження, компенсації",296363,Львівська обласна організація,25249083,Львівська область,Заробітна плата за грудень 2019 року відомості № 26 від 2019-12-24 р.,UA883808050000000026009223347,current,5071.50,"ЛОДАТ ""Райффайзен банк Аваль"" м. Львів",20846070,юридична особа
БАТЬКІВЩИНА,"Львівська область, Львів, вулиця Джохара Дудаєва, 19",63,2019-12-24,295,Податок на доходи,Податкові платежі,296362,Львівська обласна організація,25249083,Львівська область,"*;11010100;01; податок на доходи фізичних осіб, із заробітної плати за грудень 2019 року. Перераховано повністю",UA883808050000000026009223347,current,1134.00,УДКСУ у Галицькому районі м. Львова,38007573,юридична особа
БАТЬКІВЩИНА,"Львівська область, Львів, вулиця Джохара Дудаєва, 19",61,2019-12-24,294,Військовий збір,Податкові платежі,296361,Львівська обласна організація,25249083,Львівська область,"*25249083; 11010100; військовий збір з заробітної платиза грудень 2019 року, перераховано повністю",UA883808050000000026009223347,current,94.50,УДКСУ у Галицькому районі м. Львова,38007573,юридична особа
БАТЬКІВЩИНА,"Луганська область, Рубіжне, вулиця Менделєєва, 14, 20",79,2019-12-24,246,"Оренда будинків і приміщень та експлуатаційні витрати (прибирання, страхування орендованих будинків, охорона, сигналізація, ремонт, вивіз сміття, тощо)",Оренда нерухомості,296313,Лисичанська міська організація,25926767,Луганська область,за оренду офісу за 4 кв 2019 р.,UA253047950000026002053730540,current,4800.00,"ПП ""РОМАЛЕКС""",35283016,юридична особа
БАТЬКІВЩИНА,"Луганська область, Рубіжне, вулиця Менделєєва, 14, 20",79,2019-12-24,245,"Оренда будинків і приміщень та експлуатаційні витрати (прибирання, страхування орендованих будинків, охорона, сигналізація, ремонт, вивіз сміття, тощо)",Оренда нерухомості,296312,Лисичанська міська організація,25926767,Луганська область,"за оренду офісу за 2,3 кв 2019 р.",UA253047950000026002053730540,current,9600.00,"ПП ""РОМАЛЕКС""",35283016,юридична особа
БАТЬКІВЩИНА,"Львівська область, Старосамбірський район, Спас",79,2019-12-24,95,"Оренда будинків і приміщень та експлуатаційні витрати (прибирання, страхування орендованих будинків, охорона, сигналізація, ремонт, вивіз сміття, тощо)",Оренда нерухомості,295933,Старосамбірська районна організація,25261339,Львівська область,Оплата оренди приміщення за грудень 2019 рік,UA463257960000026004300570593,current,1000.00,Маляр Ярослав Михайлович,,фізична особа
БАТЬКІВЩИНА,"Львівська область, Львів, вулиця Яна Матейка, 8",70,2019-12-24,293,Банківські послуги,Інші витрати,295875,Львівська обласна організація,25249083,Львівська область,"комісія банку за зарахування коштів на СКР працівників ЛОПО ""ВО""Батьківщина""- заробітна плата за грудень 2019 року згідно відомості № 26 від 2019-12-24 р.",UA883808050000000026009223347,current,40.57,"ЛОДАТ ""Райффайзен банк Аваль"" м. Львів",20846070,юридична особа
БАТЬКІВЩИНА,"Київ, вулиця Михайла Грушевського, 1Д",70,2019-12-24,4FO209YZ1Y,Банківські послуги,Інші витрати,295842,Рокитнянська районна організація,26078651,Київська область,комісія банку,26009053160853,current,111.30,"ПАТ КБ ""Приватбанк""",14360570,юридична особа
БАТЬКІВЩИНА,"Київ, вулиця Михайла Грушевського, 1Д",70,2019-12-24,4FO209YZ1Y,Банківські послуги,Інші витрати,295841,Рокитнянська районна організація,26078651,Київська область,комісія банку,26009053160853,current,14.00,"ПАТ КБ ""Приватбанк""",14360570,юридична особа
БАТЬКІВЩИНА,"Київ, вулиця Михайла Грушевського, 1Д",70,2019-12-24,COO2VAU7JY,Банківські послуги,Інші витрати,295771,Білоцерківська районна організація,26002120,Київська область,Комісія за обслуговування рахунку,26008053004103,current,3.00,"ПАТ КБ ""Приватбанк""",14360570,юридична особа
БАТЬКІВЩИНА,"Київ, вулиця Михайла Грушевського, 1Д",70,2019-12-24,COO2VBSIAY,Банківські послуги,Інші витрати,295433,Нікопольська міська організація,25841367,Дніпропетровська область,"Комісія за виконання платежів в національній валюті, згідно з відкритою офертою банку № б/н від 2016-04-23 та тарифів банку, без ПДВ.",UA573052990000026007050277920,current,3.00,"ПАТ КБ ""Приватбанк""",14360570,юридична особа
БАТЬКІВЩИНА,"Київ, вулиця Михайла Грушевського, 1Д",70,2019-12-24,COO2VBSIAX,Банківські послуги,Інші витрати,295432,Нікопольська міська організація,25841367,Дніпропетровська область,"Комісія за викон. платежу 92 від 2019-12-24, 2500.00 в нац. валюті в післяопераційний час, згідно з відкритою офертою банку № б/н від 2019-04-23 без ПДВ.",UA573052990000026007050277920,current,5.00,"ПАТ КБ ""Приватбанк""",14360570,юридична особа
БАТЬКІВЩИНА,"Львівська область, Львів, вулиця Стрийська, 35",62,2019-12-24,296,Сплата ЄСВ,Податкові платежі,295351,Львівська обласна організація,25249083,Львівська область,*;201;25249083 ЄСВ з заробітної плати за грудень 2019 року 22%. Перераховано повністю,UA883808050000000026009223347,current,1386.00,ГОЛОВНЕ УПРАВЛІННЯ ДФС У ЛЬВІВСЬКІЙ ОБЛАСТІ,43143039,юридична особа
БАТЬКІВЩИНА,"Сумська область, Білопільський район, Білопілля",79,2019-12-24,103,"Оренда будинків і приміщень та експлуатаційні витрати (прибирання, страхування орендованих будинків, охорона, сигналізація, ремонт, вивіз сміття, тощо)",Оренда нерухомості,295185,Білопільська районна організація,37158372,Сумська область,плата за користування земельною ділянкою за 4й квартал 2019 року,26006055026215,current,100.31,Білопільська районна рада,23825758,юридична особа
БАТЬКІВЩИНА,"Сумська область, Білопільський район, Білопілля",79,2019-12-24,102,"Оренда будинків і приміщень та експлуатаційні витрати (прибирання, страхування орендованих будинків, охорона, сигналізація, ремонт, вивіз сміття, тощо)",Оренда нерухомості,295184,Білопільська районна організація,37158372,Сумська область,відшкодування витрат за розподіл природного газу за листопад 2019 р,26006055026215,current,37.90,Білопільська районна рада,23825758,юридична особа
БАТЬКІВЩИНА,"Сумська область, Білопільський район, Білопілля",79,2019-12-24,101,"Оренда будинків і приміщень та експлуатаційні витрати (прибирання, страхування орендованих будинків, охорона, сигналізація, ремонт, вивіз сміття, тощо)",Оренда нерухомості,295183,Білопільська районна організація,37158372,Сумська область,Відшкодування витрат за природній газ за листопад 2019,26006055026215,current,533.97,Білопільська районна рада,23825758,юридична особа
БАТЬКІВЩИНА,"Київ, вулиця Михайла Грушевського, 1Д",70,2019-12-24,COO2V5MFLY,Банківські послуги,Інші витрати,295102,Білопільська районна організація,37158372,Сумська область,"Комісія за виконання платежів в національній валюті, згідно з відкритою офертою банку N б/н від 2016-04-22",26006055026215,current,3.00,"ПАТ КБ ""Приватбанк""",14360570,юридична особа
БАТЬКІВЩИНА,"Київ, вулиця Михайла Грушевського, 1Д",70,2019-12-24,COO2V5M5UY,Банківські послуги,Інші витрати,295101,Білопільська районна організація,37158372,Сумська область,"Комісія за виконання платежів в національній валюті, згідно з відкритою офертою банку N б/н від 2016-04-22",26006055026215,current,3.00,"ПАТ КБ ""Приватбанк""",14360570,юридична особа
БАТЬКІВЩИНА,"Київ, вулиця Михайла Грушевського, 1Д",70,2019-12-24,COO2V5MAJY,Банківські послуги,Інші витрати,295100,Білопільська районна організація,37158372,Сумська область,"Комісія за виконання платежів в національній валюті, згідно з відкритою офертою банку N б/н від 2016-04-22",26006055026215,current,3.00,"ПАТ КБ ""Приватбанк""",14360570,юридична особа
БАТЬКІВЩИНА,"Київ, вулиця Богдана Хмельницького, 64",70,2019-12-24,RCO1938_594,Банківські послуги,Інші витрати,295056,Центральний офіс,20069956,Україна,Банківське обслуговування,2600426373,current,3.00,"ПАТ ""Мегабанк""",09804119,юридична особа
БАТЬКІВЩИНА,"Київська обл., Біла Церква, Северина Наливайка, 14",79,2019-12-24,53,"Оренда будинків і приміщень та експлуатаційні витрати (прибирання, страхування орендованих будинків, охорона, сигналізація, ремонт, вивіз сміття, тощо)",Оренда нерухомості,294966,Білоцерківська районна організація,26002120,Київська область,Оренда приміщення,26008053004103,current,6150.00,Київська обласна (регіональна) торгово-промислова палата,25657534,юридична особа
БАТЬКІВЩИНА,"Львівська область, Львів, вулиця Січових Стрільців, 9",70,2019-12-23,7955384114,Банківські послуги,Інші витрати,297210,Самбірська районна організація,33408061,Львівська область,сплата комісії згідно тарифу,UA483257960000026001300554169,current,2.00,"Львівська обласна філія АТ ""Ощадбанк""",09325703,юридична особа
БАТЬКІВЩИНА,"Львівська область, Львів, вулиця Січових Стрільців, 9",70,2019-12-23,1,Банківські послуги,Інші витрати,297194,Шевченківська районна організація,25256717,Львівська область,Погашення нарахуваної комісії за,UA733257960000026007300564670,current,20.00,"Львівська обласна філія АТ ""Ощадбанк""",09325703,юридична особа
БАТЬКІВЩИНА,"Львівська область, Львів, вулиця Січових Стрільців, 9",70,2019-12-23,7955431114,Банківські послуги,Інші витрати,297160,Самбірська міська організація,33865132,Львівська область,сплата комісії згідно тарифу,UA253257960000026002300562309,current,2.00,"Львівська обласна філія АТ ""Ощадбанк""",09325703,юридична особа
БАТЬКІВЩИНА,"Львівська область, Львів, вулиця Липинського, 44",79,2019-12-23,283,"Оренда будинків і приміщень та експлуатаційні витрати (прибирання, страхування орендованих будинків, охорона, сигналізація, ремонт, вивіз сміття, тощо)",Оренда нерухомості,297017,Львівська обласна організація,25249083,Львівська область,оплата рах. № ЦПГ - 020345 від 2019-12-01 р. за охорону об’єкта за грудень 2019 року,UA883808050000000026009223347,current,650.00,Управління поліції охорони у Львівській області,40108887,юридична особа
БАТЬКІВЩИНА,"Львівська область, Львів, вулиця Липинського, 44",79,2019-12-23,282,"Оренда будинків і приміщень та експлуатаційні витрати (прибирання, страхування орендованих будинків, охорона, сигналізація, ремонт, вивіз сміття, тощо)",Оренда нерухомості,297016,Львівська обласна організація,25249083,Львівська область,оплата рах. № ЦПГ - 020346 від 2019-12-01 р. За охорону об’єкта за грудень 2019 року,UA883808050000000026009223347,current,200.00,Управління поліції охорони у Львівській області,40108887,юридична особа
БАТЬКІВЩИНА,"Сумська область, Суми, вулиця Троїцька, 8",43,2019-12-23,267,Інші витрати,Інші витрати,296931,Сумська обласна організація,24011118,Сумська область,Адміністративний збір за проведення змін державної реєстрації юридичної особи Сумської ОПО ВО &quot;Батьківщина&quot; (24011118),26009055022131,current,580.00,УДКСУ у м. Суми,37970593,юридична особа
БАТЬКІВЩИНА,"Львівська область, Львів, вулиця Золота, 42",79,2019-12-23,290,"Оренда будинків і приміщень та експлуатаційні витрати (прибирання, страхування орендованих будинків, охорона, сигналізація, ремонт, вивіз сміття, тощо)",Оренда нерухомості,296739,Львівська обласна організація,25249083,Львівська область,оплата рах № 69154316 від 2019-12-16 р. За природній газ за грудень 2019 року,UA883808050000000026009223347,current,302.45,"ПАТ ""Львівгаз""",03349039,юридична особа
БАТЬКІВЩИНА,"Львівська область, Львів, вулиця Золота, 42",79,2019-12-23,289,"Оренда будинків і приміщень та експлуатаційні витрати (прибирання, страхування орендованих будинків, охорона, сигналізація, ремонт, вивіз сміття, тощо)",Оренда нерухомості,296738,Львівська обласна організація,25249083,Львівська область,оплата рах № 69148791 від 2019-12-17 р. За природній газ за грудень 2019 року,UA883808050000000026009223347,current,3121.56,"ТОВ ""Львівгаз збут""",39594527,юридична особа
БАТЬКІВЩИНА,"Львівська область, Львів, проспект Червоної Калини, 45",76,2019-12-23,286,Послуги зв’язку,Послуги зв’язку,296651,Львівська обласна організація,25249083,Львівська область,оплата згідно договору № 161809 від 2016-02-25 р. за телекомунікаційні послуги за грудень 2019 р.,UA883808050000000026009223347,current,243.00,"ТОВ ""Бізнес і технології""",31442320,юридична особа
БАТЬКІВЩИНА,"Київ, вулиця Магнітогорська, 1",76,2019-12-23,284,Послуги зв’язку,Послуги зв’язку,296599,Львівська обласна організація,25249083,Львівська область,оплата акту надання послуг № 191284/13-12-109584355 від 2019-11-30 р. за Аналогове ТВ за грудень 2019 року,UA883808050000000026009223347,current,370.00,"ТОВ ""Воля-кабель""",30777913,юридична особа
БАТЬКІВЩИНА,"Львівська область, Львів, вулиця Козельницька, 3",79,2019-12-23,291,"Оренда будинків і приміщень та експлуатаційні витрати (прибирання, страхування орендованих будинків, охорона, сигналізація, ремонт, вивіз сміття, тощо)",Оренда нерухомості,296561,Львівська обласна організація,25249083,Львівська область,"оплата згідно догов. 69069 за активну електроенергію, авансовий платіж на січень 2019 року",UA883808050000000026009223347,current,600.00,"ТОВ ""Львівенергозбут""",42092130,юридична особа
БАТЬКІВЩИНА,"Волинська область, Рожищенський район, Рожище, вулиця Незалежності, 82",79,2019-12-23,96,"Оренда будинків і приміщень та експлуатаційні витрати (прибирання, страхування орендованих будинків, охорона, сигналізація, ремонт, вивіз сміття, тощо)",Оренда нерухомості,296456,Рожищенська районна організація,25909970,Волинська область,оплата оренди за листопад 2019 року рах.00099,26006055512381,current,932.06,Рожищенська районна друкарня,02465967,юридична особа
БАТЬКІВЩИНА,"Волинська область, Рожищенський район, Рожище, вулиця Незалежності, 82",79,2019-12-23,94,"Оренда будинків і приміщень та експлуатаційні витрати (прибирання, страхування орендованих будинків, охорона, сигналізація, ремонт, вивіз сміття, тощо)",Оренда нерухомості,296455,Рожищенська районна організація,25909970,Волинська область,оплата оренди за жовтень 2019р. Рах.№СФ-00093,26006055512381,current,932.06,Рожищенська районна друкарня,02465967,юридична особа
БАТЬКІВЩИНА,"Волинська область, Рожищенський район, Рожище, вулиця Незалежності, 82",79,2019-12-23,97,"Оренда будинків і приміщень та експлуатаційні витрати (прибирання, страхування орендованих будинків, охорона, сигналізація, ремонт, вивіз сміття, тощо)",Оренда нерухомості,296454,Рожищенська районна організація,25909970,Волинська область,оплата ком.послуг рах.00099,26006055512381,current,610.00,Рожищенська районна друкарня,02465967,юридична особа
БАТЬКІВЩИНА,"Волинська область, Рожищенський район, Рожище, вулиця Незалежності, 82",79,2019-12-23,95,"Оренда будинків і приміщень та експлуатаційні витрати (прибирання, страхування орендованих будинків, охорона, сигналізація, ремонт, вивіз сміття, тощо)",Оренда нерухомості,296453,Рожищенська районна організація,25909970,Волинська область,оплата ком.послуг рах.00093,26006055512381,current,280.60,Рожищенська районна друкарня,02465967,юридична особа
БАТЬКІВЩИНА,"Київ, бульвар Тараса Шевченка, 18",76,2019-12-23,285,Послуги зв’язку,Послуги зв’язку,296372,Львівська обласна організація,25249083,Львівська область,оплата зг. Дог. №1382019-11-63 за телекомунікаційні послуги за листопад 2019 року,UA883808050000000026009223347,current,712.52,"ПАТ ""Укртелеком""",21560766,юридична особа
БАТЬКІВЩИНА,"Закарпатська область, Іршавський район, Іршава, пл. Народна, 7",79,2019-12-23,118,"Оренда будинків і приміщень та експлуатаційні витрати (прибирання, страхування орендованих будинків, охорона, сигналізація, ремонт, вивіз сміття, тощо)",Оренда нерухомості,296102,Закарпатська обласна організація,25446205,Закарпатська область,"оренда приміщення, комуналні витрати",26003000619517,current,740.00,"Підприємство споживчої кооперації ""Коопунівермаг Іршавської районної споживчої спілки""",01750884,юридична особа
БАТЬКІВЩИНА,"Київ, вулиця Михайла Грушевського, 1Д",70,2019-12-23,CNO2V03TOY,Банківські послуги,Інші витрати,295941,Оболонська районна організація,25895860,Київ,За виконання платежу,UA613007110000026006052619761,current,3.00,"ПАТ КБ ""Приватбанк""",14360570,юридична особа
БАТЬКІВЩИНА,"Київ, вулиця Михайла Грушевського, 1Д",70,2019-12-23,CNO2V02PJY,Банківські послуги,Інші витрати,295940,Оболонська районна організація,25895860,Київ,За виконання платежу,UA613007110000026006052619761,current,3.00,"ПАТ КБ ""Приватбанк""",14360570,юридична особа
БАТЬКІВЩИНА,"Львівська область, Львів, вулиця Зелена, 64",79,2019-12-23,287,"Оренда будинків і приміщень та експлуатаційні витрати (прибирання, страхування орендованих будинків, охорона, сигналізація, ремонт, вивіз сміття, тощо)",Оренда нерухомості,295913,Львівська обласна організація,25249083,Львівська область,оплата зг. Догов. № 705664 від 12.2019 р. За водопостачання в грудні 2019 року,UA883808050000000026009223347,current,20.66,"ЛМК ""Львівводоканал""",03348471,юридична особа
БАТЬКІВЩИНА,"Львівська область, Львів, вулиця Зелена, 64",79,2019-12-23,288,"Оренда будинків і приміщень та експлуатаційні витрати (прибирання, страхування орендованих будинків, охорона, сигналізація, ремонт, вивіз сміття, тощо)",Оренда нерухомості,295911,Львівська обласна організація,25249083,Львівська область,оплата зг. Догов..№ 705664 від 12.2019 р. За водовідведення в грудні 2019 року,UA883808050000000026009223347,current,10.80,"ЛМК ""Львівводоканал""",03348471,юридична особа
БАТЬКІВЩИНА,"Львівська область, Львів, вулиця Тиха, 5",79,2019-12-23,280,"Оренда будинків і приміщень та експлуатаційні витрати (прибирання, страхування орендованих будинків, охорона, сигналізація, ремонт, вивіз сміття, тощо)",Оренда нерухомості,295902,Львівська обласна організація,25249083,Львівська область,оплата зг.рах. №179/12 від 2019-12-01 р. за експлуатаційні внески за грудень 2019 року,UA883808050000000026009223347,current,352.32,"ЛКП ""Княже місто""",20774241,юридична особа
БАТЬКІВЩИНА,"Київ, вулиця Михайла Грушевського, 1Д",70,2019-12-23,CNO2V4D31Y,Банківські послуги,Інші витрати,295898,Голосіївська районна організація,21716820,Київ,Комісія за виконання платежів,UA293007110000026002052614362,current,3.00,"ПАТ КБ ""Приватбанк""",14360570,юридична особа
БАТЬКІВЩИНА,"Київ, вулиця Михайла Грушевського, 1Д",70,2019-12-23,CNO2V4A98Y,Банківські послуги,Інші витрати,295897,Голосіївська районна організація,21716820,Київ,Комісія за виконання платежів,UA293007110000026002052614362,current,3.00,"ПАТ КБ ""Приватбанк""",14360570,юридична особа
БАТЬКІВЩИНА,"Львівська область, Львів, проспект В'ячеслава Чорновола, 59",79,2019-12-23,281,"Оренда будинків і приміщень та експлуатаційні витрати (прибирання, страхування орендованих будинків, охорона, сигналізація, ремонт, вивіз сміття, тощо)",Оренда нерухомості,295895,Львівська обласна організація,25249083,Львівська область,оплата зг. Договору рах. № 179 від 2019-12-01 року за надані послуги за грудень 2019 року за експлуатаційні витрати,UA883808050000000026009223347,current,300.00,"Львівська регіональна господарська спілка підприємств побутового обслуговування населення ""Львівоблсервіс""",05454007,юридична особа
БАТЬКІВЩИНА,"Київ, Голосіївський проспект, 17",79,2019-12-23,191,"Оренда будинків і приміщень та експлуатаційні витрати (прибирання, страхування орендованих будинків, охорона, сигналізація, ремонт, вивіз сміття, тощо)",Оренда нерухомості,295650,Голосіївська районна організація,21716820,Київ,"Плата за електропостачання 2019. Договір № 48 - т від 2019-11-11 ПДВ у сумі 64,20 грн.",UA293007110000026002052614362,current,385.21,КП “Дирекція з управління та обслуговування житлового фонду Голосіївського пайону”,32375554,юридична особа
БАТЬКІВЩИНА,"Київ, Голосіївський проспект, 17",79,2019-12-23,190,"Оренда будинків і приміщень та експлуатаційні витрати (прибирання, страхування орендованих будинків, охорона, сигналізація, ремонт, вивіз сміття, тощо)",Оренда нерухомості,295649,Голосіївська районна організація,21716820,Київ,"Плата за оренду приміщення 2019. Договір №26-18 від 2018-04-19. ПДВ в сумі 83,33 грн",UA293007110000026002052614362,current,500.00,КП “Дирекція з управління та обслуговування житлового фонду Голосіївського пайону”,32375554,юридична особа
БАТЬКІВЩИНА,"Київ, вулиця Північна, 22",79,2019-12-23,113,"Оренда будинків і приміщень та експлуатаційні витрати (прибирання, страхування орендованих будинків, охорона, сигналізація, ремонт, вивіз сміття, тощо)",Оренда нерухомості,295603,Оболонська районна організація,25895860,Київ,"Оренда нежитлового приміщення за листопад,грудень 2019 року згідно договора № 04204 від 2019-05-30 року.",UA613007110000026006052619761,current,13706.65,"КП ""Керуюча компанія з облуговування житлового фонду Оболонського району м. Києва""",39611267,юридична особа
БАТЬКІВЩИНА,"Волинська область, Камінь-Каширський район, Камінь-Каширський, вулиця Шевченка, 5",79,2019-12-23,164,"Оренда будинків і приміщень та експлуатаційні витрати (прибирання, страхування орендованих будинків, охорона, сигналізація, ремонт, вивіз сміття, тощо)",Оренда нерухомості,295505,Волинська обласна організація,25787544,Волинська область,"орендна плата за жовтень, листопад, грудень 2019 року згідно угоди",26001924857727,current,6900.00,Камінь-Каширська районна спілка споживчих товариств,01744317,юридична особа
БАТЬКІВЩИНА,"Київ, вулиця Михайла Грушевського, 1Д",70,2019-12-23,CNO2UZOZEY,Банківські послуги,Інші витрати,295406,Царичанська районна організація,25841670,Дніпропетровська область,"Комісія за виконання платежів в національній валюті, згідно з відкритою офертою банку № б/н від 2016-05-20 та тарифів банку, без ПДВ",UA433052990000026000050269195,current,3.00,"ПАТ КБ ""Приватбанк""",14360570,юридична особа
БАТЬКІВЩИНА,"Київ, вулиця Єреванська, 1",70,2019-12-23,TR.9384279.661926247,Банківські послуги,Інші витрати,295325,Волинська обласна організація,25787544,Волинська область,погашення комісіі за рко,26001924857727,current,0.80,"АБ ""Укргазбанк""",23697280,юридична особа
БАТЬКІВЩИНА,"Київ, бульвар Тараса Шевченка, 18",76,2019-12-23,84,Послуги зв’язку,Послуги зв’язку,295296,Царичанська районна організація,25841670,Дніпропетровська область,"За телекомунікаційні послуги по о/р 1203060000002240 за листопад 2019 р. 0569032102 у сумі 201,55, ПДВ-20% 40,31 грн.",UA433052990000026000050269195,current,241.86,"ПАТ ""Укртелеком""",21560766,юридична особа
БАТЬКІВЩИНА,"Київ, вулиця Михайла Грушевського, 1Д",70,2019-12-23,CNO2V0M5PY,Банківські послуги,Інші витрати,295153,Сумська обласна організація,24011118,Сумська область,"Комісія за виконання платежів в національній валюті, згідно з відкритою офертою банку N б/н від 2015-09-21 та тарифів банку, без ПДВ.",26009055022131,current,3.00,"ПАТ КБ ""Приватбанк""",14360570,юридична особа
БАТЬКІВЩИНА,"Київ, вулиця Богдана Хмельницького, 64",70,2019-12-23,RCO1939_560,Банківські послуги,Інші витрати,295055,Центральний офіс,20069956,Україна,Банківське обслуговування,2600426373,current,10.00,"ПАТ ""Мегабанк""",09804119,юридична особа
БАТЬКІВЩИНА,"Київ, вулиця Турівська, 15",82,2019-12-23,2297,"Гонорари, в тому числі за надані консультаційні послуги","Гонорари, в тому числі за надані консультаційні послуги",294994,Центральний офіс,20069956,Україна,Сплата за надання правової допомоги,2604826373,state,90000.00,"АО ""Адвокатська контора ""Фінкель та Гімпельсон""",33887088,юридична особа
БАТЬКІВЩИНА,"Київ, вулиця Турівська, 15",82,2019-12-23,2298,"Гонорари, в тому числі за надані консультаційні послуги","Гонорари, в тому числі за надані консультаційні послуги",294991,Центральний офіс,20069956,Україна,Сплата за надання правової допомоги,2600426373,current,90000.00,"АО ""Адвокатська контора ""Фінкель та Гімпельсон""",33887088,юридична особа
БАТЬКІВЩИНА,"Київ, вулиця Електротехнічна, 16",79,2019-12-23,114,"Оренда будинків і приміщень та експлуатаційні витрати (прибирання, страхування орендованих будинків, охорона, сигналізація, ремонт, вивіз сміття, тощо)",Оренда нерухомості,294970,Оболонська районна організація,25895860,Київ,Послуги згідно договора №12189/1-5-05СА від 2019-06-20 року.,UA613007110000026006052619761,current,50.00,"ПрАТ ""Акціонерна компанія ""Київводоканал""",03327629,юридична особа
БАТЬКІВЩИНА,"Львівська область, Львів, вулиця Гоголя, 4",79,2019-12-21,59,"Оренда будинків і приміщень та експлуатаційні витрати (прибирання, страхування орендованих будинків, охорона, сигналізація, ремонт, вивіз сміття, тощо)",Оренда нерухомості,296860,Стрийська районна організація,26127011,Львівська область,За послуги охорони за грудень 2019 р. зг. рахунку- фактури **14853** від 01 грудня 2019 р. по договору № Лвв/001907- JAV від 2019-02-01 р. без ПДВ,UA643257960000026006300560404,current,350.00,"ТОВ ""Явір-2000 Львів""",39421816,юридична особа
БАТЬКІВЩИНА,"Житомирська область, Ружинський район, Ружин, вулиця Бірюкова, буд. 2",79,2019-12-21,7,"Оренда будинків і приміщень та експлуатаційні витрати (прибирання, страхування орендованих будинків, охорона, сигналізація, ремонт, вивіз сміття, тощо)",Оренда нерухомості,296462,Ружинська районна організація,25924290,Житомирська область,оренда приміщення,UA323116470000026008300968964,current,1120.46,Ружинське комунальне ремонтно-експлуатаційне підприємство,32226332,юридична особа
БАТЬКІВЩИНА,"Київська обл., Біла Церква, вулиця Партизанська, 18",49,2019-12-21,30,Публікування матеріалів у друкованих ЗМІ,Реклама в друкованих ЗМІ,296439,Білоцерківська міська організація,25822507,Київська область,"За інформаційні послуги по рах. № 84 від 2019-11-07р., № 95 від 2019-12-12р., № 96 від 2019-12-18р. Без ПДВ",26004300264318,current,1750.50,"РГ ""Громадська думка""",13723251,юридична особа
БАТЬКІВЩИНА,"Київ, бульвар Тараса Шевченка, 18",76,2019-12-21,27,Послуги зв’язку,Послуги зв’язку,295982,Білоцерківська міська організація,25822507,Київська область,"За телекомунікаційні послуги за листопад - грудень 2019р. згідно рах. № 320400123042132019-10-00 у т.ч. ПДВ 20% - 4,17",26004300264318,current,25.00,"ПАТ ""Укртелеком""",21560766,юридична особа
БАТЬКІВЩИНА,"Київська обл., Біла Церква, вулиця Богдана Хмельницького, 5",76,2019-12-21,29,Послуги зв’язку,Послуги зв’язку,295978,Білоцерківська міська організація,25822507,Київська область,"послуги доступу до мережі Інтернет за листопад - грудень 2019р. у т.ч. ПДВ 20% - 120,00",26004300264318,current,720.00,"ПАТ ""Белком""",31248114,юридична особа
БАТЬКІВЩИНА,"Київська обл., Біла Церква, вулиця Вернадського, 10",79,2019-12-21,26,"Оренда будинків і приміщень та експлуатаційні витрати (прибирання, страхування орендованих будинків, охорона, сигналізація, ремонт, вивіз сміття, тощо)",Оренда нерухомості,295792,Білоцерківська міська організація,25822507,Київська область,"За утримання будинку і прибудинкової території за листопад 2019 по дог. № 14БП від 2019-03-01р. у т.ч. ПДВ 20% - 126,97",26004300264318,current,761.80,"КП Білоцерківської міської ради ""Житлово-експлуатаційна контора №6""",19420911,юридична особа
БАТЬКІВЩИНА,"Київська обл., Біла Церква, вулиця Вернадського, 10",79,2019-12-21,25,"Оренда будинків і приміщень та експлуатаційні витрати (прибирання, страхування орендованих будинків, охорона, сигналізація, ремонт, вивіз сміття, тощо)",Оренда нерухомості,295791,Білоцерківська міська організація,25822507,Київська область,"За комунальні послуги за листопад 2019 по дог. № 14к від 2019-03-01р. у т.ч. ПДВ 20% - 241,20",26004300264318,current,1447.21,"КП Білоцерківської міської ради ""Житлово-експлуатаційна контора №6""",19420911,юридична особа
БАТЬКІВЩИНА,"Київська обл., Біла Церква, вулиця Ярослава Мудрого, 36",79,2019-12-21,28,"Оренда будинків і приміщень та експлуатаційні витрати (прибирання, страхування орендованих будинків, охорона, сигналізація, ремонт, вивіз сміття, тощо)",Оренда нерухомості,295193,Білоцерківська міська організація,25822507,Київська область,"Оренда нежитлового приміщення грудень 2019р. по дог. № 366 від 2017-04-30р. у т.ч. ПДВ 20% - 61,67",26004300264318,current,370.00,Білоцерківське УДКСУ Київської області,38009832,юридична особа
БАТЬКІВЩИНА,"Львівська область, Стрий, вулиця Красівського, 30Б, 12",79,2019-12-21,58,"Оренда будинків і приміщень та експлуатаційні витрати (прибирання, страхування орендованих будинків, охорона, сигналізація, ремонт, вивіз сміття, тощо)",Оренда нерухомості,294981,Стрийська районна організація,26127011,Львівська область,За оренду нежитлового приміщення за грудень 2019 р. рахунок-фактура № 16122019 від 16 грудня 2019 р згідно угоди від 01лютого 2019 р.( без ПДВ),UA643257960000026006300560404,current,2000.00,Одинак Віктор Тимофійович,,фізична особа
БАТЬКІВЩИНА,"Кіровоградська область, Голованівський район, Голованівськ, вул. Суворова",79,2019-12-20,1273,"Оренда будинків і приміщень та експлуатаційні витрати (прибирання, страхування орендованих будинків, охорона, сигналізація, ремонт, вивіз сміття, тощо)",Оренда нерухомості,297259,Кіровоградська обласна організація,24146984,Кіровоградська область,за оренду приміщенння Голованівської парторганізації,26004312273001,current,1600.00,Чушкіна Надія Василівна,,фізична особа
БАТЬКІВЩИНА,"Кіровоградська область, Онуфріївський район, Онуфріївка, вул. Центральна, 44",79,2019-12-20,1281,"Оренда будинків і приміщень та експлуатаційні витрати (прибирання, страхування орендованих будинків, охорона, сигналізація, ремонт, вивіз сміття, тощо)",Оренда нерухомості,297252,Кіровоградська обласна організація,24146984,Кіровоградська область,за оренду приміщенння Онуфріївської парторганізації,26004312273001,current,700.00,Пашко Наталія Віталіївна,,фізична особа
БАТЬКІВЩИНА,"Кіровоградська область, Компаніївський район, Компаніївка, вул. Вишнева",79,2019-12-20,1276,"Оренда будинків і приміщень та експлуатаційні витрати (прибирання, страхування орендованих будинків, охорона, сигналізація, ремонт, вивіз сміття, тощо)",Оренда нерухомості,297249,Кіровоградська обласна організація,24146984,Кіровоградська область,оренда приміщенння Компаніївської парторганізації,26004312273001,current,1400.00,Нога Аза Олександрівна,,фізична особа
БАТЬКІВЩИНА,"Кіровоградська область, Вільшанський район, Вільшанка, вул. Центральна",79,2019-12-20,1271,"Оренда будинків і приміщень та експлуатаційні витрати (прибирання, страхування орендованих будинків, охорона, сигналізація, ремонт, вивіз сміття, тощо)",Оренда нерухомості,297245,Кіровоградська обласна організація,24146984,Кіровоградська область,за оренду приміщенння Вільшанської парторганізації,26004312273001,current,2000.00,Задорожній Олег Дмитрович,,фізична особа
БАТЬКІВЩИНА,"Чернігівська область, Срібнянський район, Срібне, вул. Миру",79,2019-12-20,531,"Оренда будинків і приміщень та експлуатаційні витрати (прибирання, страхування орендованих будинків, охорона, сигналізація, ремонт, вивіз сміття, тощо)",Оренда нерухомості,297242,Чернігівська обласна організація,25785516,Чернігівська область,оплата за оренду жовтень-листопад 2019,26009050016918,current,1113.88,"Філія ""Срібнянський райавтодор""",26226718,юридична особа
БАТЬКІВЩИНА,"Харківська область, Харків, вулиця Тюрінська, 40",74,2019-12-20,4429,"Придбання канцтоварів, паперу, інших предметів і матеріалів, а також госп товари",Придбання канцтоварів та госп. товарів,297240,Харківська обласна організація,25792203,Харківська область,сплата за канцтовари зг рах№Сч-0025133 від 20/12/19р. у т.ч. ПДВ 20% - 305.35 грн.,UA493808050000000026009378667,current,1832.08,"ФІЛІЯ ТОВАРИСТВА З ОБМЕЖЕНОЮ ВІДПОВІДАЛЬНІСТЮ ""ТОРГОВИЙ ДІМ ""ЛОКСИ ""ХЕЛПЕР""",38633337,юридична особа
БАТЬКІВЩИНА,"Кіровоградська область, Кропивницький, Арсенія Тарковського, 67",79,2019-12-20,1288,"Оренда будинків і приміщень та експлуатаційні витрати (прибирання, страхування орендованих будинків, охорона, сигналізація, ремонт, вивіз сміття, тощо)",Оренда нерухомості,297239,Кіровоградська обласна організація,24146984,Кіровоградська область,перерах. Коштів за природний газ,26004312273001,current,87.32,"Філія ПАТ ""НАК ""Нафтогаз України"" у Кіровоградській області",42472294,юридична особа
БАТЬКІВЩИНА,"Київська обл., Таращанський район, Тараща, вулиця Шевченка",79,2019-12-20,13,"Оренда будинків і приміщень та експлуатаційні витрати (прибирання, страхування орендованих будинків, охорона, сигналізація, ремонт, вивіз сміття, тощо)",Оренда нерухомості,297083,Таращанська районна організація,25822878,Київська область,оренда офісу,26008300277970,current,500.00,Білокобильський Юрій Олександрович,,фізична особа
БАТЬКІВЩИНА,"Львівська область, Львів, вулиця Липинського, 44",79,2019-12-20,34,"Оренда будинків і приміщень та експлуатаційні витрати (прибирання, страхування орендованих будинків, охорона, сигналізація, ремонт, вивіз сміття, тощо)",Оренда нерухомості,297005,Жидачівська районна організація,25252659,Львівська область,"За охорону обʼєкту з/д рах. №СТР-019298 від 01.12.19 р., у т.ч.ПДВ20%-66,67",UA903257960000026002300561430,current,400.00,Управління поліції охорони у Львівській області,40108887,юридична особа
БАТЬКІВЩИНА,"Кіровоградська область, Благовіщенський район, Благовіщенське",79,2019-12-20,1269,"Оренда будинків і приміщень та експлуатаційні витрати (прибирання, страхування орендованих будинків, охорона, сигналізація, ремонт, вивіз сміття, тощо)",Оренда нерухомості,296968,Кіровоградська обласна організація,24146984,Кіровоградська область,за оренду приміщенння Благовіщенської парторганізації,26004312273001,current,850.00,Ульяновське райспоживтоваривство,01756881,юридична особа
БАТЬКІВЩИНА,"Сумська область, Суми, вулиця Степана Бандери, 40",79,2019-12-20,266,"Оренда будинків і приміщень та експлуатаційні витрати (прибирання, страхування орендованих будинків, охорона, сигналізація, ремонт, вивіз сміття, тощо)",Оренда нерухомості,296839,Сумська обласна організація,24011118,Сумська область,ПЛАТА ЗА ОРЕНДУ ПРИМІЩЕННЯ ТА ВІДШКОД. КОМ.ВИТРАТ ЗА ГРУДЕНЬ 19Р.ЗГ. РАХ.1655 ВІД 19.12.19,26009055022131,current,390.25,"ТОВ ""Сумське обласне підприємство автомобільного транспорту""",03118618,юридична особа
БАТЬКІВЩИНА,"Київ, вулиця Джона Маккейна, 38А, 27",58,2019-12-20,113,"Виготовлення друкованих матеріалів (плакатів, листівок, буклетів та інших агітаційних матеріалів)",Друкована агітація,296748,Київська міська організація,21709458,Київ,"Оплата за поліграфічні послуги(плакат), договір N99 від 2019-12-05, Додаток 3 від 16.12.19,рах 137 від 16.12.19",UA973007110000026006052720575,current,1278.00,ТОВ ʼМЕДІА 98ʼ,38864615,юридична особа
БАТЬКІВЩИНА,"Київ, вулиця Юрія Іллєнка, 31",79,2019-12-20,117,"Оренда будинків і приміщень та експлуатаційні витрати (прибирання, страхування орендованих будинків, охорона, сигналізація, ремонт, вивіз сміття, тощо)",Оренда нерухомості,296727,Київська міська організація,21709458,Київ,Оплата за електроенергію по Дог.N81419017ПВ від 2018-12-06 зг. Рахунку N81419017/1/1/П1 від 2019-11-13. За січень 2020р.,UA973007110000026006052720575,current,632.51,"ТОВ ""КИЇВСЬКІ ЕНЕРГЕТИЧНІ ПОСЛУГИ""",41916045,юридична особа
БАТЬКІВЩИНА,"Київ, вулиця Юрія Іллєнка, 31",79,2019-12-20,104,"Оренда будинків і приміщень та експлуатаційні витрати (прибирання, страхування орендованих будинків, охорона, сигналізація, ремонт, вивіз сміття, тощо)",Оренда нерухомості,296726,Київська міська організація,21709458,Київ,Оплата за електроенергію по Дог.N81419017ПВ від 2018-12-06 зг. Рахунку N81419017/11/1/П1 від 2019-09-17. За вересень 2019р,UA973007110000026006052720575,current,158.90,"ТОВ ""КИЇВСЬКІ ЕНЕРГЕТИЧНІ ПОСЛУГИ""",41916045,юридична особа
БАТЬКІВЩИНА,"Київ, вулиця Юрія Іллєнка, 31",79,2019-12-20,116,"Оренда будинків і приміщень та експлуатаційні витрати (прибирання, страхування орендованих будинків, охорона, сигналізація, ремонт, вивіз сміття, тощо)",Оренда нерухомості,296725,Київська міська організація,21709458,Київ,Оплата за електроенергію по Дог.N81419017ПВ від 2018-12-06 зг. Рахунку N81419017/12/1/П1 від 2019-09-17. За грудень 2019р,UA973007110000026006052720575,current,543.49,"ТОВ ""КИЇВСЬКІ ЕНЕРГЕТИЧНІ ПОСЛУГИ""",41916045,юридична особа
БАТЬКІВЩИНА,"Київ, бульвар Лесі Українки, 26",79,2019-12-20,118,"Оренда будинків і приміщень та експлуатаційні витрати (прибирання, страхування орендованих будинків, охорона, сигналізація, ремонт, вивіз сміття, тощо)",Оренда нерухомості,296694,Київська міська організація,21709458,Київ,"Оплата за оренду нежилого приміщення, договір б/н від 2016-11-01. За жовтень 2019 р.",UA973007110000026006052720575,current,400.00,"ТОВ ""Екотехром""",32248974,юридична особа
БАТЬКІВЩИНА,"Київ, бульвар Лесі Українки, 26",79,2019-12-20,119,"Оренда будинків і приміщень та експлуатаційні витрати (прибирання, страхування орендованих будинків, охорона, сигналізація, ремонт, вивіз сміття, тощо)",Оренда нерухомості,296693,Київська міська організація,21709458,Київ,"Оплата за оренду нежилого приміщення, договір б/н від 2016-11-01. За листопад 2019 р.",UA973007110000026006052720575,current,400.00,"ТОВ ""Екотехром""",32248974,юридична особа
БАТЬКІВЩИНА,"Львівська область, Стрий, вулиця Остапа Нижанківського, 5, 3",76,2019-12-20,57,Послуги зв’язку,Послуги зв’язку,296640,Стрийська районна організація,26127011,Львівська область,За телекомунікаційні послуги за грудень місяць 2019 р. зг.рах. № 0000026 від 09 грудня 2019 р.згідно договору 11464 від 2019-01-31 без ПДВ,UA643257960000026006300560404,current,75.00,"ТОВ ""Атлант- КПК""",39501058,юридична особа
БАТЬКІВЩИНА,"Чернігівська область, Менський район, Мена",79,2019-12-20,538,"Оренда будинків і приміщень та експлуатаційні витрати (прибирання, страхування орендованих будинків, охорона, сигналізація, ремонт, вивіз сміття, тощо)",Оренда нерухомості,296553,Чернігівська обласна організація,25785516,Чернігівська область,оренда листопад 2019,26009050016918,current,1726.03,"ТОВ ""Олімп""",30485625,юридична особа
БАТЬКІВЩИНА,"Кіровоградська область, Кропивницький",79,2019-12-20,1289,"Оренда будинків і приміщень та експлуатаційні витрати (прибирання, страхування орендованих будинків, охорона, сигналізація, ремонт, вивіз сміття, тощо)",Оренда нерухомості,296551,Кіровоградська обласна організація,24146984,Кіровоградська область,перерахунок коштів за вивіз ТПВ,26004312273001,current,265.57,"ТОВ ""ЕКОСТАЙЛ",38852241,юридична особа
БАТЬКІВЩИНА,"Кіровоградська область, Кропивницький",76,2019-12-20,1290,Послуги зв’язку,Послуги зв’язку,296545,Кіровоградська обласна організація,24146984,Кіровоградська область,інтернет послуги,26004312273001,current,120.00,"ТОВ ""Шторм""",35519981,юридична особа
БАТЬКІВЩИНА,"Кіровоградська область, Новоархангельський район, Новоархангельськ, вулиця Слави, 6",79,2019-12-20,1278,"Оренда будинків і приміщень та експлуатаційні витрати (прибирання, страхування орендованих будинків, охорона, сигналізація, ремонт, вивіз сміття, тощо)",Оренда нерухомості,296539,Кіровоградська обласна організація,24146984,Кіровоградська область,за оренду приміщенння Новоархангельської парторганізації,26004312273001,current,1300.00,"ТОВ ""Світанок""",03055131,юридична особа
БАТЬКІВЩИНА,"Кіровоградська область, Новгородківський район, Новгородка, вул. Вишнева",79,2019-12-20,1277,"Оренда будинків і приміщень та експлуатаційні витрати (прибирання, страхування орендованих будинків, охорона, сигналізація, ремонт, вивіз сміття, тощо)",Оренда нерухомості,296534,Кіровоградська обласна організація,24146984,Кіровоградська область,за оренду приміщенння Новгородківської парторганізації,26004312273001,current,1300.00,"ТОВ ""РАЙАГРОПРОМЕНЕРГО""",05526706,юридична особа
БАТЬКІВЩИНА,"Кіровоградська область, Новоукраїнський район, Новоукраїнка",79,2019-12-20,1279,"Оренда будинків і приміщень та експлуатаційні витрати (прибирання, страхування орендованих будинків, охорона, сигналізація, ремонт, вивіз сміття, тощо)",Оренда нерухомості,296523,Кіровоградська обласна організація,24146984,Кіровоградська область,за оренду приміщенння Новоукраїнської парторганізації,26004312273001,current,2241.00,"ТОВ ""МППіК""",23221040,юридична особа
БАТЬКІВЩИНА,"Кіровоградська область, Знам'янський район, Дмитрівка",79,2019-12-20,1274,"Оренда будинків і приміщень та експлуатаційні витрати (прибирання, страхування орендованих будинків, охорона, сигналізація, ремонт, вивіз сміття, тощо)",Оренда нерухомості,296520,Кіровоградська обласна організація,24146984,Кіровоградська область,за оренду приміщенння Знамянської рай. парторганізації,26004312273001,current,130.00,"ТДВ ""Колос""",03758772,юридична особа
БАТЬКІВЩИНА,"Сумська область, Суми, вулиця Троїцька, 1",79,2019-12-20,267,"Оренда будинків і приміщень та експлуатаційні витрати (прибирання, страхування орендованих будинків, охорона, сигналізація, ремонт, вивіз сміття, тощо)",Оренда нерухомості,296501,Сумська обласна організація,24011118,Сумська область,ОПЛАТА ЗА ОРЕНДУ ПРИМІЩЕННЯ ТА КОМУНАЛЬНІ ВИТРАТИ ЗА ГРУДЕНЬ ЗГ. ДОГ 213 ВІД 2018-01-02Р.,26009055022131,current,200.00,Сумська обласна спілка споживчих товариств,01765325,юридична особа
БАТЬКІВЩИНА,"Житомирська область, Ружинський район, Ружин, вулиця Бірюкова, буд. 2",79,2019-12-20,6,"Оренда будинків і приміщень та експлуатаційні витрати (прибирання, страхування орендованих будинків, охорона, сигналізація, ремонт, вивіз сміття, тощо)",Оренда нерухомості,296461,Ружинська районна організація,25924290,Житомирська область,оренда приміщення,UA323116470000026008300968964,current,1023.56,Ружинське комунальне ремонтно-експлуатаційне підприємство,32226332,юридична особа
БАТЬКІВЩИНА,"Волинська область, Ковель, вулиця Фабрична, 2",79,2019-12-20,144,"Оренда будинків і приміщень та експлуатаційні витрати (прибирання, страхування орендованих будинків, охорона, сигналізація, ремонт, вивіз сміття, тощо)",Оренда нерухомості,296450,Ковельська міська організація,25910039,Волинська область,оплата оренди за грудень 2019 року рах.№29,26004055510716,current,511.00,Ремонтне житлово-комунальне підприємство №1,30653356,юридична особа
БАТЬКІВЩИНА,"Чернігівська область, Талалаївський район, Талалаївка",79,2019-12-20,536,"Оренда будинків і приміщень та експлуатаційні витрати (прибирання, страхування орендованих будинків, охорона, сигналізація, ремонт, вивіз сміття, тощо)",Оренда нерухомості,296433,Чернігівська обласна організація,25785516,Чернігівська область,оренда за електроенергію листопад 2019,26009050016918,current,531.68,Талалаївське районне споживче товариство,01775200,юридична особа
БАТЬКІВЩИНА,"Чернігівська область, Ріпкинський район, Ріпки, вулиця Українська",79,2019-12-20,534,"Оренда будинків і приміщень та експлуатаційні витрати (прибирання, страхування орендованих будинків, охорона, сигналізація, ремонт, вивіз сміття, тощо)",Оренда нерухомості,296429,Чернігівська обласна організація,25785516,Чернігівська область,оплата за оренду листопад 2019,26009050016918,current,883.48,Відділ культури і туризму Ріпкинської РДА,02231838,юридична особа
БАТЬКІВЩИНА,"Чернігівська область, Ріпкинський район, Ріпки, вулиця Українська",79,2019-12-20,533,"Оренда будинків і приміщень та експлуатаційні витрати (прибирання, страхування орендованих будинків, охорона, сигналізація, ремонт, вивіз сміття, тощо)",Оренда нерухомості,296428,Чернігівська обласна організація,25785516,Чернігівська область,оплата за ком.послуги листопад 2019,26009050016918,current,419.69,Відділ культури і туризму Ріпкинської РДА,02231838,юридична особа
БАТЬКІВЩИНА,"Київ, бульвар Тараса Шевченка, 18",76,2019-12-20,35,Послуги зв’язку,Послуги зв’язку,296403,Жидачівська районна організація,25252659,Львівська область,"За телекомунікаційні послуги з/д рахунку №460401000039062019-11-92,авансовий платіж за грудень 2019р., в т.ч.ПДВ20%-47,50",UA903257960000026002300561430,current,285.00,"ПАТ ""Укртелеком""",21560766,юридична особа
БАТЬКІВЩИНА,"Київ, бульвар Тараса Шевченка, 18",76,2019-12-20,112,Послуги зв’язку,Послуги зв’язку,296399,Оболонська районна організація,25895860,Київ,Телекомунікаційні послуги згідно договора №K.U-52146 від 2016-11-16 року.,UA613007110000026006052619761,current,702.00,"ПАТ ""Укртелеком""",21560766,юридична особа
БАТЬКІВЩИНА,"Київ, бульвар Тараса Шевченка, 18",76,2019-12-20,LHF9G00048,Послуги зв’язку,Послуги зв’язку,296396,Краснопільська районна організація,24015897,Сумська область,оплата за телекомунікаційні послуги за 2019 рік зг дог 86,26002055020259,current,41.55,"ПАТ ""Укртелеком""",21560766,юридична особа
БАТЬКІВЩИНА,"Чернігівська область, Козелецький район, Козелець",79,2019-12-20,537,"Оренда будинків і приміщень та експлуатаційні витрати (прибирання, страхування орендованих будинків, охорона, сигналізація, ремонт, вивіз сміття, тощо)",Оренда нерухомості,296237,Чернігівська обласна організація,25785516,Чернігівська область,оплата за оренду листопад 2019,26009050016918,current,1176.00,"ПрАТ ""Побутсервіс""",03058448,юридична особа
БАТЬКІВЩИНА,"Кіровоградська область, Кропивницький, вулиця Велика Перспективна, 15/7",76,2019-12-20,1293,Послуги зв’язку,Послуги зв’язку,296178,Кіровоградська обласна організація,24146984,Кіровоградська область,послуги стільникового звязку,26004312273001,current,500.00,"ПрАТ ""Київстар""",21673832,юридична особа
БАТЬКІВЩИНА,"Волинська область, Ковель, вулиця Володимирська, 97",79,2019-12-20,146,"Оренда будинків і приміщень та експлуатаційні витрати (прибирання, страхування орендованих будинків, охорона, сигналізація, ремонт, вивіз сміття, тощо)",Оренда нерухомості,296114,Ковельська міська організація,25910039,Волинська область,оплата комунальних послуг,26004055510716,current,3838.51,"ПТМ ""Ковельтепло""",30514446,юридична особа
БАТЬКІВЩИНА,"Волинська область, Ковель, вулиця Володимирська, 97",79,2019-12-20,145,"Оренда будинків і приміщень та експлуатаційні витрати (прибирання, страхування орендованих будинків, охорона, сигналізація, ремонт, вивіз сміття, тощо)",Оренда нерухомості,296113,Ковельська міська організація,25910039,Волинська область,оплата комунальних послуг,26004055510716,current,644.50,"ПТМ ""Ковельтепло""",30514446,юридична особа
БАТЬКІВЩИНА,"Київ, вулиця Михайла Грушевського, 1Д",70,2019-12-20,АТО2_45,Банківські послуги,Інші витрати,296066,Кіровоградська обласна організація,24146984,Кіровоградська область,комісія за обслуговування,26004312273001,current,3.00,"ПАТ КБ ""Приватбанк""",14360570,юридична особа
БАТЬКІВЩИНА,"Київ, вулиця Михайла Грушевського, 1Д",70,2019-12-20,АТО2_44,Банківські послуги,Інші витрати,296065,Кіровоградська обласна організація,24146984,Кіровоградська область,комісія за обслуговування,26004312273001,current,3.00,"ПАТ КБ ""Приватбанк""",14360570,юридична особа
БАТЬКІВЩИНА,"Київ, вулиця Михайла Грушевського, 1Д",70,2019-12-20,АТО2_43,Банківські послуги,Інші витрати,296064,Кіровоградська обласна організація,24146984,Кіровоградська область,комісія за обслуговування,26004312273001,current,3.00,"ПАТ КБ ""Приватбанк""",14360570,юридична особа
БАТЬКІВЩИНА,"Київ, вулиця Михайла Грушевського, 1Д",70,2019-12-20,АТО2_42,Банківські послуги,Інші витрати,296063,Кіровоградська обласна організація,24146984,Кіровоградська область,комісія за обслуговування,26004312273001,current,3.00,"ПАТ КБ ""Приватбанк""",14360570,юридична особа
БАТЬКІВЩИНА,"Київ, вулиця Михайла Грушевського, 1Д",70,2019-12-20,АТО2_41,Банківські послуги,Інші витрати,296062,Кіровоградська обласна організація,24146984,Кіровоградська область,комісія за обслуговування,26004312273001,current,3.00,"ПАТ КБ ""Приватбанк""",14360570,юридична особа
БАТЬКІВЩИНА,"Київ, вулиця Михайла Грушевського, 1Д",70,2019-12-20,АТО2_40,Банківські послуги,Інші витрати,296061,Кіровоградська обласна організація,24146984,Кіровоградська область,комісія за обслуговування,26004312273001,current,3.00,"ПАТ КБ ""Приватбанк""",14360570,юридична особа
БАТЬКІВЩИНА,"Київ, вулиця Михайла Грушевського, 1Д",70,2019-12-20,АТО2_39,Банківські послуги,Інші витрати,296060,Кіровоградська обласна організація,24146984,Кіровоградська область,комісія за обслуговування,26004312273001,current,3.00,"ПАТ КБ ""Приватбанк""",14360570,юридична особа
БАТЬКІВЩИНА,"Київ, вулиця Михайла Грушевського, 1Д",70,2019-12-20,АТО2_38,Банківські послуги,Інші витрати,296059,Кіровоградська обласна організація,24146984,Кіровоградська область,комісія за обслуговування,26004312273001,current,3.00,"ПАТ КБ ""Приватбанк""",14360570,юридична особа
БАТЬКІВЩИНА,"Київ, вулиця Михайла Грушевського, 1Д",70,2019-12-20,АТО2_37,Банківські послуги,Інші витрати,296058,Кіровоградська обласна організація,24146984,Кіровоградська область,комісія за обслуговування,26004312273001,current,3.00,"ПАТ КБ ""Приватбанк""",14360570,юридична особа
БАТЬКІВЩИНА,"Київ, вулиця Михайла Грушевського, 1Д",70,2019-12-20,АТО2_36,Банківські послуги,Інші витрати,296057,Кіровоградська обласна організація,24146984,Кіровоградська область,комісія за обслуговування,26004312273001,current,3.00,"ПАТ КБ ""Приватбанк""",14360570,юридична особа
БАТЬКІВЩИНА,"Київ, вулиця Михайла Грушевського, 1Д",70,2019-12-20,АТО2_35,Банківські послуги,Інші витрати,296056,Кіровоградська обласна організація,24146984,Кіровоградська область,комісія за обслуговування,26004312273001,current,3.00,"ПАТ КБ ""Приватбанк""",14360570,юридична особа
БАТЬКІВЩИНА,"Київ, вулиця Михайла Грушевського, 1Д",70,2019-12-20,АТО2_34,Банківські послуги,Інші витрати,296055,Кіровоградська обласна організація,24146984,Кіровоградська область,комісія за обслуговування,26004312273001,current,3.00,"ПАТ КБ ""Приватбанк""",14360570,юридична особа
БАТЬКІВЩИНА,"Київ, вулиця Михайла Грушевського, 1Д",70,2019-12-20,АТО2_33,Банківські послуги,Інші витрати,296054,Кіровоградська обласна організація,24146984,Кіровоградська область,комісія за обслуговування,26004312273001,current,3.00,"ПАТ КБ ""Приватбанк""",14360570,юридична особа
БАТЬКІВЩИНА,"Київ, вулиця Михайла Грушевського, 1Д",70,2019-12-20,АТО2_32,Банківські послуги,Інші витрати,296053,Кіровоградська обласна організація,24146984,Кіровоградська область,комісія за обслуговування,26004312273001,current,3.00,"ПАТ КБ ""Приватбанк""",14360570,юридична особа
БАТЬКІВЩИНА,"Київ, вулиця Михайла Грушевського, 1Д",70,2019-12-20,АТО2,Банківські послуги,Інші витрати,296052,Кіровоградська обласна організація,24146984,Кіровоградська область,комісія за обслуговування,26004312273001,current,3.00,"ПАТ КБ ""Приватбанк""",14360570,юридична особа
БАТЬКІВЩИНА,"Київ, вулиця Михайла Грушевського, 1Д",70,2019-12-20,CKO2UU7COY,Банківські послуги,Інші витрати,296047,Чернігівська обласна організація,25785516,Чернігівська область,комісія за виконання платежів,26009050016918,current,3.00,"ПАТ КБ ""Приватбанк""",14360570,юридична особа
БАТЬКІВЩИНА,"Київ, вулиця Михайла Грушевського, 1Д",70,2019-12-20,CKO2UU8YXY,Банківські послуги,Інші витрати,296046,Чернігівська обласна організація,25785516,Чернігівська область,комісія за обслуговування рахунку за травень,26009050016918,current,3.00,"ПАТ КБ ""Приватбанк""",14360570,юридична особа
БАТЬКІВЩИНА,"Київ, вулиця Михайла Грушевського, 1Д",70,2019-12-20,CKO2UU5XVY,Банківські послуги,Інші витрати,296045,Чернігівська обласна організація,25785516,Чернігівська область,комісія за виконання платежів,26009050016918,current,3.00,"ПАТ КБ ""Приватбанк""",14360570,юридична особа
БАТЬКІВЩИНА,"Київ, вулиця Михайла Грушевського, 1Д",70,2019-12-20,CKO2UT2LVY,Банківські послуги,Інші витрати,296044,Чернігівська обласна організація,25785516,Чернігівська область,комісія за виконання платежів,26009050016918,current,3.00,"ПАТ КБ ""Приватбанк""",14360570,юридична особа
БАТЬКІВЩИНА,"Київ, вулиця Михайла Грушевського, 1Д",70,2019-12-20,CKO2USXPBY,Банківські послуги,Інші витрати,296041,Чернігівська обласна організація,25785516,Чернігівська область,комісія за виконання платежів,26009050016918,current,3.00,"ПАТ КБ ""Приватбанк""",14360570,юридична особа
БАТЬКІВЩИНА,"Кіровоградська область, Онуфріївський район, Онуфріївка, вул. Центральна",79,2019-12-20,1292,"Оренда будинків і приміщень та експлуатаційні витрати (прибирання, страхування орендованих будинків, охорона, сигналізація, ремонт, вивіз сміття, тощо)",Оренда нерухомості,295976,Кіровоградська обласна організація,24146984,Кіровоградська область,перерахунок коштів за електроенергію,26004312273001,current,407.37,Онуфріївська районна рада,24713041,юридична особа
БАТЬКІВЩИНА,"Кіровоградська область, Олександрівський район, Олександрівка",79,2019-12-20,1280,"Оренда будинків і приміщень та експлуатаційні витрати (прибирання, страхування орендованих будинків, охорона, сигналізація, ремонт, вивіз сміття, тощо)",Оренда нерухомості,295973,Кіровоградська обласна організація,24146984,Кіровоградська область,за оренду приміщенння Олександрівьскої парторганізації,26004312273001,current,200.00,Олександрівське РСТ,01756540,юридична особа
БАТЬКІВЩИНА,"Волинська область, Володимир-Волинський, вулиця Ковельська, 35",79,2019-12-20,161,"Оренда будинків і приміщень та експлуатаційні витрати (прибирання, страхування орендованих будинків, охорона, сигналізація, ремонт, вивіз сміття, тощо)",Оренда нерухомості,295953,Волинська обласна організація,25787544,Волинська область,"орендна плата за листопад, грудень 2019 року згідно рах.512,563",26001924857727,current,2436.65,Володимир-Волинське УДКСУ Волинської області,37950294,юридична особа
БАТЬКІВЩИНА,"Волинська область, Володимир-Волинський, вулиця Ковельська, 35",79,2019-12-20,158,"Оренда будинків і приміщень та експлуатаційні витрати (прибирання, страхування орендованих будинків, охорона, сигналізація, ремонт, вивіз сміття, тощо)",Оренда нерухомості,295951,Волинська обласна організація,25787544,Волинська область,60% орендної плати за грудень 2019 року рах.563,26001924857727,current,567.73,Володимир-Волинське УДКСУ Волинської області,37950294,юридична особа
БАТЬКІВЩИНА,"Волинська область, Володимир-Волинський, вулиця Ковельська, 35",79,2019-12-20,162,"Оренда будинків і приміщень та експлуатаційні витрати (прибирання, страхування орендованих будинків, охорона, сигналізація, ремонт, вивіз сміття, тощо)",Оренда нерухомості,295950,Волинська обласна організація,25787544,Волинська область,"10 % орендна плата за листопад, грудень 2019 року рах.№563,512",26001924857727,current,406.10,Володимир-Волинське УДКСУ Волинської області,37950294,юридична особа
БАТЬКІВЩИНА,"Волинська область, Володимир-Волинський, вулиця Ковельська, 35",79,2019-12-20,159,"Оренда будинків і приміщень та експлуатаційні витрати (прибирання, страхування орендованих будинків, охорона, сигналізація, ремонт, вивіз сміття, тощо)",Оренда нерухомості,295949,Волинська обласна організація,25787544,Волинська область,10% орендної плати за грудень 2019 року рах.№563,26001924857727,current,94.62,Володимир-Волинське УДКСУ Волинської області,37950294,юридична особа
БАТЬКІВЩИНА,"Київ, вулиця Михайла Грушевського, 1Д",70,2019-12-20,CKO2UOP2HY,Банківські послуги,Інші витрати,295939,Оболонська районна організація,25895860,Київ,За виконання платежу,UA613007110000026006052619761,current,3.00,"ПАТ КБ ""Приватбанк""",14360570,юридична особа
БАТЬКІВЩИНА,"Київ, вулиця Михайла Грушевського, 1Д",70,2019-12-20,CKO2UTUWLY,Банківські послуги,Інші витрати,295928,Київська міська організація,21709458,Київ,Комісія за виконання платежів,UA973007110000026006052720575,current,3.00,"ПАТ КБ ""Приватбанк""",14360570,юридична особа
БАТЬКІВЩИНА,"Київ, вулиця Михайла Грушевського, 1Д",70,2019-12-20,CKO2UTUZ3Y,Банківські послуги,Інші витрати,295927,Київська міська організація,21709458,Київ,Комісія за виконання платежів,UA973007110000026006052720575,current,3.00,"ПАТ КБ ""Приватбанк""",14360570,юридична особа
БАТЬКІВЩИНА,"Київ, вулиця Михайла Грушевського, 1Д",70,2019-12-20,CKO2UTK58Y,Банківські послуги,Інші витрати,295926,Київська міська організація,21709458,Київ,Комісія за виконання платежів,UA973007110000026006052720575,current,3.00,"ПАТ КБ ""Приватбанк""",14360570,юридична особа
БАТЬКІВЩИНА,"Кіровоградська область, Маловисківський район, Мала Виска, вул. Центральна",79,2019-12-20,1277,"Оренда будинків і приміщень та експлуатаційні витрати (прибирання, страхування орендованих будинків, охорона, сигналізація, ремонт, вивіз сміття, тощо)",Оренда нерухомості,295925,Кіровоградська обласна організація,24146984,Кіровоградська область,за оренду приміщенння Маловисківської парторганізації,26004312273001,current,800.00,Маловисківське райспоживтоваривство,01756102,юридична особа
БАТЬКІВЩИНА,"Київ, вулиця Михайла Грушевського, 1Д",70,2019-12-20,CKO2UTJXKY,Банківські послуги,Інші витрати,295924,Київська міська організація,21709458,Київ,Комісія за виконання платежів,UA973007110000026006052720575,current,3.00,"ПАТ КБ ""Приватбанк""",14360570,юридична особа
БАТЬКІВЩИНА,"Київ, вулиця Михайла Грушевського, 1Д",70,2019-12-20,CKO2UTK07Y,Банківські послуги,Інші витрати,295922,Київська міська організація,21709458,Київ,Комісія за виконання платежів,UA973007110000026006052720575,current,3.00,"ПАТ КБ ""Приватбанк""",14360570,юридична особа
БАТЬКІВЩИНА,"Київ, вулиця Михайла Грушевського, 1Д",70,2019-12-20,CKO2UT84NY,Банківські послуги,Інші витрати,295920,Київська міська організація,21709458,Київ,Комісія за виконання платежів,UA973007110000026006052720575,current,3.00,"ПАТ КБ ""Приватбанк""",14360570,юридична особа
БАТЬКІВЩИНА,"Київ, вулиця Михайла Грушевського, 1Д",70,2019-12-20,CKO2UT86VY,Банківські послуги,Інші витрати,295919,Київська міська організація,21709458,Київ,Комісія за виконання платежів,UA973007110000026006052720575,current,3.00,"ПАТ КБ ""Приватбанк""",14360570,юридична особа
БАТЬКІВЩИНА,"Київ, вулиця Михайла Грушевського, 1Д",70,2019-12-20,CKO2UT5OZY,Банківські послуги,Інші витрати,295918,Київська міська організація,21709458,Київ,Комісія за виконання платежів,UA973007110000026006052720575,current,3.00,"ПАТ КБ ""Приватбанк""",14360570,юридична особа
БАТЬКІВЩИНА,"Київ, вулиця Михайла Грушевського, 1Д",70,2019-12-20,CKO2UT5R6Y,Банківські послуги,Інші витрати,295917,Київська міська організація,21709458,Київ,Комісія за виконання платежів,UA973007110000026006052720575,current,3.00,"ПАТ КБ ""Приватбанк""",14360570,юридична особа
БАТЬКІВЩИНА,"Київ, вулиця Михайла Грушевського, 1Д",70,2019-12-20,CKO2UT257Y,Банківські послуги,Інші витрати,295916,Київська міська організація,21709458,Київ,Комісія за виконання платежів,UA973007110000026006052720575,current,3.00,"ПАТ КБ ""Приватбанк""",14360570,юридична особа
БАТЬКІВЩИНА,"Чернігівська область, Куликівський район, Куликівка, вул. Шевченка",79,2019-12-20,539,"Оренда будинків і приміщень та експлуатаційні витрати (прибирання, страхування орендованих будинків, охорона, сигналізація, ремонт, вивіз сміття, тощо)",Оренда нерухомості,295846,Чернігівська обласна організація,25785516,Чернігівська область,оплата за оренду листопад 2019,26009050016918,current,600.00,Куликівське районне споживче товариство,01776493,юридична особа
БАТЬКІВЩИНА,"Кіровоградська область, Устинівський район, Устинівка",79,2019-12-20,1282,"Оренда будинків і приміщень та експлуатаційні витрати (прибирання, страхування орендованих будинків, охорона, сигналізація, ремонт, вивіз сміття, тощо)",Оренда нерухомості,295809,Кіровоградська обласна організація,24146984,Кіровоградська область,за оренду приміщенння Устинівської парторганізації,26004312273001,current,800.00,"РГ ""Трудівник Устинівщини""",02473487,юридична особа
БАТЬКІВЩИНА,"Кіровоградська область, Онуфріївський район, Онуфріївка, вул. Центральна",79,2019-12-20,1291,"Оренда будинків і приміщень та експлуатаційні витрати (прибирання, страхування орендованих будинків, охорона, сигналізація, ремонт, вивіз сміття, тощо)",Оренда нерухомості,295806,Кіровоградська обласна організація,24146984,Кіровоградська область,перерахунок коштів за теплопостачання,26004312273001,current,735.61,"Копунальне підприємство ""Онуфріївка-теплокомуненерго""",35279366,юридична особа
БАТЬКІВЩИНА,"Волинська область, Володимир-Волинський, вулиця Тараса Шевченка, 11",79,2019-12-20,163,"Оренда будинків і приміщень та експлуатаційні витрати (прибирання, страхування орендованих будинків, охорона, сигналізація, ремонт, вивіз сміття, тощо)",Оренда нерухомості,295679,Волинська обласна організація,25787544,Волинська область,"30% орендної плати за листопад, грудень 2019 року рах.512,563",26001924857727,current,2030.54,"КП ""Управляюча житлова компанія"" Володимир-Волинської міської ради",03339064,юридична особа
БАТЬКІВЩИНА,"Волинська область, Володимир-Волинський, вулиця Тараса Шевченка, 11",79,2019-12-20,160,"Оренда будинків і приміщень та експлуатаційні витрати (прибирання, страхування орендованих будинків, охорона, сигналізація, ремонт, вивіз сміття, тощо)",Оренда нерухомості,295678,Волинська обласна організація,25787544,Волинська область,30% орендна плата за грудень 2019 року рах.№555,26001924857727,current,473.11,"КП ""Управляюча житлова компанія"" Володимир-Волинської міської ради",03339064,юридична особа
БАТЬКІВЩИНА,"Кіровоградська область, Новомиргородський район, Новомиргород",79,2019-12-20,1286,"Оренда будинків і приміщень та експлуатаційні витрати (прибирання, страхування орендованих будинків, охорона, сигналізація, ремонт, вивіз сміття, тощо)",Оренда нерухомості,295671,Кіровоградська обласна організація,24146984,Кіровоградська область,за оренду приміщення Новомиргородської парторганізації,26004312273001,current,540.02,Новомиргородський новобуд,33333887,юридична особа
БАТЬКІВЩИНА,"Кіровоградська область, Новомиргородський район, Новомиргород",79,2019-12-20,1284,"Оренда будинків і приміщень та експлуатаційні витрати (прибирання, страхування орендованих будинків, охорона, сигналізація, ремонт, вивіз сміття, тощо)",Оренда нерухомості,295670,Кіровоградська обласна організація,24146984,Кіровоградська область,за оренду приміщення Новомиргородської парторганізації,26004312273001,current,260.08,Новомиргородський новобуд,33333887,юридична особа
БАТЬКІВЩИНА,"Кіровоградська область, Новомиргородський район, Новомиргород",79,2019-12-20,1285,"Оренда будинків і приміщень та експлуатаційні витрати (прибирання, страхування орендованих будинків, охорона, сигналізація, ремонт, вивіз сміття, тощо)",Оренда нерухомості,295669,Кіровоградська обласна організація,24146984,Кіровоградська область,за оренду приміщення Новомиргородської парторганізації,26004312273001,current,78.41,Новомиргородський новобуд,33333887,юридична особа
БАТЬКІВЩИНА,"Київ, вулиця Челябінська, 9Г",79,2019-12-20,115,"Оренда будинків і приміщень та експлуатаційні витрати (прибирання, страхування орендованих будинків, охорона, сигналізація, ремонт, вивіз сміття, тощо)",Оренда нерухомості,295661,Київська міська організація,21709458,Київ,Оплата за оренду приміщення по дог. N 1785 від 2010-09-15. Зг. Рах.N 1043 від 10.10.19. за жовтень 2019,UA973007110000026006052720575,current,3806.92,"КП ""Керуюча компанія з обслуговування житлового фонду Дніпровського району м.Києва""",39606435,юридична особа
БАТЬКІВЩИНА,"Київ, вулиця Челябінська, 9Г",79,2019-12-20,105,"Оренда будинків і приміщень та експлуатаційні витрати (прибирання, страхування орендованих будинків, охорона, сигналізація, ремонт, вивіз сміття, тощо)",Оренда нерухомості,295660,Київська міська організація,21709458,Київ,Оплата за оренду приміщення по дог. N 1785 від 2010-09-15. Зг. Рах.N 1043 від 10.10.19. за жовтень 2019,UA973007110000026006052720575,current,951.73,"КП ""Керуюча компанія з обслуговування житлового фонду Дніпровського району м.Києва""",39606435,юридична особа
БАТЬКІВЩИНА,"Київ, вулиця Челябінська, 9Г",79,2019-12-20,106,"Оренда будинків і приміщень та експлуатаційні витрати (прибирання, страхування орендованих будинків, охорона, сигналізація, ремонт, вивіз сміття, тощо)",Оренда нерухомості,295659,Київська міська організація,21709458,Київ,Оплата за оренду приміщення по дог. N 1785 від 2010-09-15. Зг. Рах.N 1043 від 10.10.19. за жовтень 2019,UA973007110000026006052720575,current,4722.00,"КП ""Керуюча компанія з обслуговування житлового фонду Дніпровського району м.Києва""",39606435,юридична особа
БАТЬКІВЩИНА,"Київ, вулиця Челябінська, 9Г",79,2019-12-20,114,"Оренда будинків і приміщень та експлуатаційні витрати (прибирання, страхування орендованих будинків, охорона, сигналізація, ремонт, вивіз сміття, тощо)",Оренда нерухомості,295658,Київська міська організація,21709458,Київ,Оплата за оренду приміщення по дог. N 1785 від 2010-09-15. квітень - вересень 2019.,UA973007110000026006052720575,current,25558.00,"КП ""Керуюча компанія з обслуговування житлового фонду Дніпровського району м.Києва""",39606435,юридична особа
БАТЬКІВЩИНА,"Львівська область, Жидачівський район, Жидачів, вулиця Кобзарева, 19",79,2019-12-20,32,"Оренда будинків і приміщень та експлуатаційні витрати (прибирання, страхування орендованих будинків, охорона, сигналізація, ремонт, вивіз сміття, тощо)",Оренда нерухомості,295463,Жидачівська районна організація,25252659,Львівська область,"Компенсація комунальних послуг орендованого приміщення за електроенергію за жовтень 2019р., згідно рахунку №11 від 30.11.19р.,в т.ч.ПДВ20%-38,56",UA903257960000026002300561430,current,231.36,Жидачівське міське виробниче управління комунального господарства,13814891,юридична особа
БАТЬКІВЩИНА,"Львівська область, Жидачівський район, Жидачів, вулиця Маркіяна Шашкевича, 2",79,2019-12-20,33,"Оренда будинків і приміщень та експлуатаційні витрати (прибирання, страхування орендованих будинків, охорона, сигналізація, ремонт, вивіз сміття, тощо)",Оренда нерухомості,295460,Жидачівська районна організація,25252659,Львівська область,Орендна плата за грудень 2019 р.,UA903257960000026002300561430,current,359.88,Жидачівська міська рада,37942901,юридична особа
БАТЬКІВЩИНА,"Кіровоградська область, Кропивницький, вулиця Єгорова, 56",79,2019-12-20,1287,"Оренда будинків і приміщень та експлуатаційні витрати (прибирання, страхування орендованих будинків, охорона, сигналізація, ремонт, вивіз сміття, тощо)",Оренда нерухомості,295457,Кіровоградська обласна організація,24146984,Кіровоградська область,перерахунок коштів за електроенергію,26004312273001,current,378.00,"КП ""Жек №2""",39318927,юридична особа
БАТЬКІВЩИНА,"Кіровоградська область, Світловодськ, вулиця Героїв України, 96",79,2019-12-20,1268,"Оренда будинків і приміщень та експлуатаційні витрати (прибирання, страхування орендованих будинків, охорона, сигналізація, ремонт, вивіз сміття, тощо)",Оренда нерухомості,295443,Кіровоградська обласна організація,24146984,Кіровоградська область,за оренду приміщенння Світловодської районноїпарторганізації,26004312273001,current,1000.00,"ДП ""ДАХ"" ПАТ ""Будівельне управління№1""",30503717,юридична особа
БАТЬКІВЩИНА,"Кіровоградська область, Світловодськ, вулиця Героїв України, 96",79,2019-12-20,1267,"Оренда будинків і приміщень та експлуатаційні витрати (прибирання, страхування орендованих будинків, охорона, сигналізація, ремонт, вивіз сміття, тощо)",Оренда нерухомості,295442,Кіровоградська обласна організація,24146984,Кіровоградська область,за оренду приміщенння Світловодської міської парторганізації,26004312273001,current,1500.00,"ДП ""ДАХ"" ПАТ ""Будівельне управління№1""",30503717,юридична особа
БАТЬКІВЩИНА,"Кіровоградська область, Добровеличківський район, Добровеличківка",79,2019-12-20,1275,"Оренда будинків і приміщень та експлуатаційні витрати (прибирання, страхування орендованих будинків, охорона, сигналізація, ремонт, вивіз сміття, тощо)",Оренда нерухомості,295437,Кіровоградська обласна організація,24146984,Кіровоградська область,за оренду приміщенння Добровеличківської парторганізації,26004312273001,current,926.00,Добровеличківське райспоживтоваривство,01755812,юридична особа
БАТЬКІВЩИНА,"Чернігівська область, Бобровицький район, Бобровиця, вул. Незалежності, 46",79,2019-12-20,535,"Оренда будинків і приміщень та експлуатаційні витрати (прибирання, страхування орендованих будинків, охорона, сигналізація, ремонт, вивіз сміття, тощо)",Оренда нерухомості,295392,Чернігівська обласна організація,25785516,Чернігівська область,оплата за оренду листопад 2019,26009050016918,current,1400.00,Гуманітарний відділ Бобровицької РДА,42109311,юридична особа
БАТЬКІВЩИНА,"Київ, вулиця Михайла Грушевського, 1Д",70,2019-12-20,CKO2UVSZSX,Банківські послуги,Інші витрати,295341,Ковельська міська організація,25910039,Волинська область,комісія за обслуговування рахунку,26004055510716,current,7.68,"ПАТ КБ ""Приватбанк""",14360570,юридична особа
БАТЬКІВЩИНА,"Київ, вулиця Михайла Грушевського, 1Д",70,2019-12-20,CKO2UVSZSY,Банківські послуги,Інші витрати,295340,Ковельська міська організація,25910039,Волинська область,комісія за обслуговування рахунку,26004055510716,current,3.00,"ПАТ КБ ""Приватбанк""",14360570,юридична особа
БАТЬКІВЩИНА,"Київ, вулиця Михайла Грушевського, 1Д",70,2019-12-20,CKO2UVSUPY,Банківські послуги,Інші витрати,295339,Ковельська міська організація,25910039,Волинська область,комісія за обслуговування рахунку,26004055510716,current,3.00,"ПАТ КБ ""Приватбанк""",14360570,юридична особа
БАТЬКІВЩИНА,"Київ, вулиця Михайла Грушевського, 1Д",70,2019-12-20,CKO2UVSUPX,Банківські послуги,Інші витрати,295338,Ковельська міська організація,25910039,Волинська область,комісія за обслуговування рахунку,26004055510716,current,1.29,"ПАТ КБ ""Приватбанк""",14360570,юридична особа
БАТЬКІВЩИНА,"Кіровоградська область, Гайворонський район, Гайворон, вулиця Великого Кобзаря, 7",79,2019-12-20,1272,"Оренда будинків і приміщень та експлуатаційні витрати (прибирання, страхування орендованих будинків, охорона, сигналізація, ремонт, вивіз сміття, тощо)",Оренда нерухомості,295333,Кіровоградська обласна організація,24146984,Кіровоградська область,за оренду приміщенння Гайворонської парторганізації,26004312273001,current,700.00,Гайворонське Райпо,01755700,юридична особа
БАТЬКІВЩИНА,"Київ, вулиця Єреванська, 1",70,2019-12-20,TR.9384279.999687244,Банківські послуги,Інші витрати,295324,Волинська обласна організація,25787544,Волинська область,погашення комісіі за рко,26001924857727,current,0.80,"АБ ""Укргазбанк""",23697280,юридична особа
БАТЬКІВЩИНА,"Київ, вулиця Єреванська, 1",70,2019-12-20,TR.9384279.144453644,Банківські послуги,Інші витрати,295323,Волинська обласна організація,25787544,Волинська область,погашення комісіі за рко,26001924857727,current,0.80,"АБ ""Укргазбанк""",23697280,юридична особа
БАТЬКІВЩИНА,"Київ, вулиця Єреванська, 1",70,2019-12-20,TR.9384279.337995308,Банківські послуги,Інші витрати,295322,Волинська обласна організація,25787544,Волинська область,погашення комісіі за рко,26001924857727,current,0.80,"АБ ""Укргазбанк""",23697280,юридична особа
БАТЬКІВЩИНА,"Київ, вулиця Єреванська, 1",70,2019-12-20,TR.9384279.684449242,Банківські послуги,Інші витрати,295321,Волинська обласна організація,25787544,Волинська область,погашення комісіі за рко,26001924857727,current,0.80,"АБ ""Укргазбанк""",23697280,юридична особа
БАТЬКІВЩИНА,"Київ, вулиця Єреванська, 1",70,2019-12-20,TR.9384279.990950990.,Банківські послуги,Інші витрати,295320,Волинська обласна організація,25787544,Волинська область,погашення комісіі за рко,26001924857727,current,0.80,"АБ ""Укргазбанк""",23697280,юридична особа
БАТЬКІВЩИНА,"Київ, вулиця Єреванська, 1",70,2019-12-20,TR.9384279.533666324,Банківські послуги,Інші витрати,295319,Волинська обласна організація,25787544,Волинська область,погашення комісіі за рко,26001924857727,current,0.80,"АБ ""Укргазбанк""",23697280,юридична особа
БАТЬКІВЩИНА,"Кіровоградська, Кропивницький, вулиця Гоголя, 72",79,2019-12-20,1283,"Оренда будинків і приміщень та експлуатаційні витрати (прибирання, страхування орендованих будинків, охорона, сигналізація, ремонт, вивіз сміття, тощо)",Оренда нерухомості,295229,Кіровоградська обласна організація,24146984,Кіровоградська область,за оренду приміщення Петрівської парторганізації,26004312273001,current,1284.01,"ПАТ ""Укртелеком""",22211233,юридична особа
БАТЬКІВЩИНА,"Чернігівська область, Варвинський район, Варва, вул.Шевченка, 38",79,2019-12-20,532,"Оренда будинків і приміщень та експлуатаційні витрати (прибирання, страхування орендованих будинків, охорона, сигналізація, ремонт, вивіз сміття, тощо)",Оренда нерухомості,295221,Чернігівська обласна організація,25785516,Чернігівська область,оренда листопад 2019,26009050016918,current,242.26,Варвинська районна рада,24842442,юридична особа
БАТЬКІВЩИНА,"Кіровоградська область, Бобринецький район, Бобринець",79,2019-12-20,1270,"Оренда будинків і приміщень та експлуатаційні витрати (прибирання, страхування орендованих будинків, охорона, сигналізація, ремонт, вивіз сміття, тощо)",Оренда нерухомості,295205,Кіровоградська обласна організація,24146984,Кіровоградська область,за оренду приміщенння Бобринецької парторганізації,26004312273001,current,200.00,Бобринецьке районне споживче товариство,01755628,юридична особа
БАТЬКІВЩИНА,"Київ, вулиця Михайла Грушевського, 1Д",70,2019-12-20,CKO2URJEJY,Банківські послуги,Інші витрати,295152,Сумська обласна організація,24011118,Сумська область,"Комісія за виконання платежів в національній валюті, згідно з відкритою офертою банку N б/н від 2015-09-21 та тарифів банку, без ПДВ.",26009055022131,current,3.00,"ПАТ КБ ""Приватбанк""",14360570,юридична особа
БАТЬКІВЩИНА,"Київ, вулиця Михайла Грушевського, 1Д",70,2019-12-20,CKO2URJDQY,Банківські послуги,Інші витрати,295151,Сумська обласна організація,24011118,Сумська область,"Комісія за виконання платежів в національній валюті, згідно з відкритою офертою банку N б/н від 2015-09-21 та тарифів банку, без ПДВ.",26009055022131,current,3.00,"ПАТ КБ ""Приватбанк""",14360570,юридична особа
БАТЬКІВЩИНА,"Київ, вулиця Михайла Грушевського, 1Д",70,2019-12-20,AS98U3H10P,Банківські послуги,Інші витрати,295109,Краснопільська районна організація,24015897,Сумська область,"Комісія за виконання платежів в національній валюті, згідно з відкритою офертою банку N б/н від 2015-09-16 та тарифів банку, без ПДВ.",26002055020259,current,3.00,"ПАТ КБ ""Приватбанк""",14360570,юридична особа
БАТЬКІВЩИНА,"Волинська область, Луцьк, вулиця Стрілецька, 4А",63,2019-12-19,156,Податок на доходи,Податкові платежі,296949,Волинська обласна організація,25787544,Волинська область,"ПДФО з оренди приміщення Карпець Михайла Миколайовича за жовтень, листопад, грудень 2019 року згідно угоди",26001924857727,current,982.80,УДКСУ у м. Луцьку,38009628,юридична особа
БАТЬКІВЩИНА,"Київ, бульвар Тараса Шевченка, 18",76,2019-12-19,4428,Послуги зв’язку,Послуги зв’язку,296393,Харківська обласна організація,25792203,Харківська область,"абонплата за телефон зг дог №520011 від 2018-11-01р. за листопад 2019р. О/р 6300150005200110, у т.ч. ПДВ 20% - 686.70 грн.",UA493808050000000026009378667,current,4120.18,"ПАТ ""Укртелеком""",21560766,юридична особа
БАТЬКІВЩИНА,"Дніпропетровська область, Дніпро́, проспект Дмитра Яворницького, 67, 10",69,2019-12-19,14,Організація заходів та інші організаційні послуги,Організація заходів та інші організаційні послуги,296301,Дніпровська міська організація,25841338,Дніпропетровська область,Оренда конференц залу 20 грудня 2019 року згідно договору № 80 від 2019-12-18 року. Без ПДВ.,UA573052990000026006050274753,current,7500.00,"ПП ""ГРАНДСІТІ ГОТЕЛЬ""",43185429,юридична особа
БАТЬКІВЩИНА,"Київ, вулиця Борщагівська, 154",77,2019-12-19,2296,"Оренда, ремонт та обслуговування автомобілів","Оренда, ремонт та обслуговування автомобілів",296248,Центральний офіс,20069956,Україна,Страховий платіж за договори страхування,2604826373,state,33020.11,"ПРАТ ""СК""АРСЕНАЛ СТРАХУВАННЯ""",33908322,юридична особа
БАТЬКІВЩИНА,"Київ, вулиця Михайла Грушевського, 34",82,2019-12-19,2295,"Гонорари, в тому числі за надані консультаційні послуги","Гонорари, в тому числі за надані консультаційні послуги",296130,Центральний офіс,20069956,Україна,Сплата за наторіальні послуги,2604826373,state,2000.00,Охрімчук Ольга Володимирівна,3012512880,фізична особа
БАТЬКІВЩИНА,"Київ, вулиця Михайла Грушевського, 1Д",70,2019-12-19,АТО2_31,Банківські послуги,Інші витрати,296051,Кіровоградська обласна організація,24146984,Кіровоградська область,комісія за обслуговування,26004312273001,current,3.00,"ПАТ КБ ""Приватбанк""",14360570,юридична особа
БАТЬКІВЩИНА,"Київ, вулиця Михайла Грушевського, 1Д",70,2019-12-19,АТО2_30,Банківські послуги,Інші витрати,296050,Кіровоградська обласна організація,24146984,Кіровоградська область,комісія за обслуговування,26004312273001,current,3.00,"ПАТ КБ ""Приватбанк""",14360570,юридична особа
БАТЬКІВЩИНА,"Київ, вулиця Михайла Грушевського, 1Д",70,2019-12-19,АТО2,Банківські послуги,Інші витрати,296049,Кіровоградська обласна організація,24146984,Кіровоградська область,комісія за обслуговування,26004312273001,current,3.00,"ПАТ КБ ""Приватбанк""",14360570,юридична особа
БАТЬКІВЩИНА,"Київ, вулиця Антоновича, 105",70,2019-12-19,5932286211,Банківські послуги,Інші витрати,295859,Таращанська районна організація,25822878,Київська область,комісія банку,26008300277970,current,5.00,"Київська обласна філія АТ ""Ощадбанк""",09322277,юридична особа
БАТЬКІВЩИНА,"Житомирська область, Брусилівський район, Брусилів",70,2019-12-19,5926879807,Банківські послуги,Інші витрати,295634,Ружинська районна організація,25924290,Житомирська область,послуги банку,UA323116470000026008300968964,current,20.00,"Житомирська обласна філія АТ ""Ощадбанк""",09311380,юридична особа
БАТЬКІВЩИНА,"Волинська область, Луцьк",79,2019-12-19,157,"Оренда будинків і приміщень та експлуатаційні витрати (прибирання, страхування орендованих будинків, охорона, сигналізація, ремонт, вивіз сміття, тощо)",Оренда нерухомості,295568,Волинська обласна організація,25787544,Волинська область,"орендна плата за жовтень, листопад, грудень 2019 року згідно угоди",26001924857727,current,4395.30,Карпець Михайло Миколайович,,фізична особа
БАТЬКІВЩИНА,"Кіровоградська область, Кропивницький, проспект Винниченка, 1",43,2019-12-19,1266_1,Інші витрати,Інші витрати,295504,Кіровоградська обласна організація,24146984,Кіровоградська область,за реєстрацію змін до відомостей парторганізації згідно статуту,26004312273001,current,580.00,УДКСУ у м. Кропивницькому,38037409,юридична особа
БАТЬКІВЩИНА,"Кіровоградська область, Кропивницький, проспект Винниченка, 1",43,2019-12-19,1266,Інші витрати,Інші витрати,295503,Кіровоградська обласна організація,24146984,Кіровоградська область,за реєстрацію змін до відомостей парторганізації згідно статуту,26004312273001,current,580.00,УДКСУ у м. Кропивницькому,38037409,юридична особа
БАТЬКІВЩИНА,"Кіровоградська область, Кропивницький, проспект Винниченка, 1",43,2019-12-19,1265,Інші витрати,Інші витрати,295502,Кіровоградська обласна організація,24146984,Кіровоградська область,за реєстрацію змін до відомостей парторганізації згідно статуту,26004312273001,current,580.00,УДКСУ у м. Кропивницькому,38037409,юридична особа
БАТЬКІВЩИНА,"Волинська область, Іваничівський район, Іваничі, Вул. Грушевського, 23",63,2019-12-19,153,Податок на доходи,Податкові платежі,295481,Волинська обласна організація,25787544,Волинська область,"пдфо з оренди приміщення Генсецька Наталія Йосипівна за жовтень, листопад, грудень 2019 року згідно угоди",26001924857727,current,540.00,УДКСУ в Іваничівському районі Волинської області,37940181,юридична особа
БАТЬКІВЩИНА,"Київ, вулиця Михайла Грушевського, 1Д",70,2019-12-19,CJO2UN9EHY,Банківські послуги,Інші витрати,295423,Дніпровська міська організація,25841338,Дніпропетровська область,"Комісія за виконання платежів в національній валюті, згідно з відкритою офертою банку N б/н від 2016-04-26 та тарифів банку, без ПДВ.",UA573052990000026006050274753,current,3.00,"ПАТ КБ ""Приватбанк""",14360570,юридична особа
БАТЬКІВЩИНА,"Київ, вулиця Михайла Грушевського, 1Д",70,2019-12-19,CJ02UH9EHX,Банківські послуги,Інші витрати,295422,Дніпровська міська організація,25841338,Дніпропетровська область,"Комісія за викон. платежу 14 від 2019-12-19, 7500.00 в нац. валюті в післяопераційний час, згідно з відкритою офертою банку № б/н від 2016-04-26 без ПДВ",UA573052990000026006050274753,current,15.00,"ПАТ КБ ""Приватбанк""",14360570,юридична особа
БАТЬКІВЩИНА,"Київ, вулиця Михайла Грушевського, 1Д",70,2019-12-19,LHG5K00057,Банківські послуги,Інші витрати,295405,Царичанська районна організація,25841670,Дніпропетровська область,Погашення заборгованості за розрахунково-касове обслуговування згідно угоди РКО 3 б/н від 2016-05-20,UA433052990000026000050269195,current,59.57,"ПАТ КБ ""Приватбанк""",14360570,юридична особа
БАТЬКІВЩИНА,"Волинська область, Іваничівський район, Іваничі",79,2019-12-19,154,"Оренда будинків і приміщень та експлуатаційні витрати (прибирання, страхування орендованих будинків, охорона, сигналізація, ремонт, вивіз сміття, тощо)",Оренда нерухомості,295352,Волинська обласна організація,25787544,Волинська область,"орендна плата за жовтень, листопад, грудень 2019 року згідно угоди",26001924857727,current,2415.00,Генсецька Наталія Йосипівна,,фізична особа
БАТЬКІВЩИНА,"Волинська область, Луцьк, вулиця Стрілецька, 4А",61,2019-12-19,155,Військовий збір,Податкові платежі,295318,Волинська обласна організація,25787544,Волинська область,"військовий збір 1,5% з оренди приміщення Карпець М.М за жовтень, листопад, грудень 2019року згідно угоди",26001924857727,current,81.90,УДКСУ у м. Луцьку,38009628,юридична особа
БАТЬКІВЩИНА,"Волинська область, Іваничівський район, Іваничі, Вул. Грушевського, 23",61,2019-12-19,152,Військовий збір,Податкові платежі,295317,Волинська обласна організація,25787544,Волинська область,"військовий збір 1,5% з оренди приміщення Генсецька Наталія Йосипівна за жовтень, листопад, грудень 2019 року згідно угоди",26001924857727,current,45.00,УДКСУ в Іваничівському районі Волинської області,37940181,юридична особа
БАТЬКІВЩИНА,"Київ, вулиця Єреванська, 1",70,2019-12-19,TR.9384279.616144555,Банківські послуги,Інші витрати,295316,Волинська обласна організація,25787544,Волинська область,погашення комісіі за рко,26001924857727,current,0.80,"АБ ""Укргазбанк""",23697280,юридична особа
БАТЬКІВЩИНА,"Київ, вулиця Єреванська, 1",70,2019-12-19,TR.9384279.819627106,Банківські послуги,Інші витрати,295315,Волинська обласна організація,25787544,Волинська область,погашення комісіі за рко,26001924857727,current,0.80,"АБ ""Укргазбанк""",23697280,юридична особа
БАТЬКІВЩИНА,"Київ, вулиця Єреванська, 1",70,2019-12-19,TR.9384279.978146933,Банківські послуги,Інші витрати,295314,Волинська обласна організація,25787544,Волинська область,погашення комісіі за рко,26001924857727,current,0.80,"АБ ""Укргазбанк""",23697280,юридична особа
БАТЬКІВЩИНА,"Київ, вулиця Єреванська, 1",70,2019-12-19,TR.9384279.405176103,Банківські послуги,Інші витрати,295313,Волинська обласна організація,25787544,Волинська область,погашення комісіі за рко,26001924857727,current,0.80,"АБ ""Укргазбанк""",23697280,юридична особа
БАТЬКІВЩИНА,"Київ, вулиця Єреванська, 1",70,2019-12-19,TR.9384279.997787850,Банківські послуги,Інші витрати,295312,Волинська обласна організація,25787544,Волинська область,погашення комісіі за рко,26001924857727,current,0.80,"АБ ""Укргазбанк""",23697280,юридична особа
БАТЬКІВЩИНА,"Київ, вулиця Єреванська, 1",70,2019-12-19,TR.9384279.510576659,Банківські послуги,Інші витрати,295311,Волинська обласна організація,25787544,Волинська область,погашення комісіі за рко,26001924857727,current,0.80,"АБ ""Укргазбанк""",23697280,юридична особа
БАТЬКІВЩИНА,"Київ, вулиця Богдана Хмельницького, 64",70,2019-12-19,RCO1917_515,Банківські послуги,Інші витрати,295054,Центральний офіс,20069956,Україна,Банківське обслуговування,2600426373,current,4.00,"ПАТ ""Мегабанк""",09804119,юридична особа
БАТЬКІВЩИНА,"Рівненська область, Володимирецький район, Володимирець, вулиця Грушевського, 68",79,2019-12-19,16,"Оренда будинків і приміщень та експлуатаційні витрати (прибирання, страхування орендованих будинків, охорона, сигналізація, ремонт, вивіз сміття, тощо)",Оренда нерухомості,294995,Володимирецька районна організація,25930311,Рівненська область,за оренду приміщення,UA823333910000026009054729281,current,3282.25,"КП ""Аква""",30925565,юридична особа
БАТЬКІВЩИНА,Київ,79,2019-12-18,54,"Оренда будинків і приміщень та експлуатаційні витрати (прибирання, страхування орендованих будинків, охорона, сигналізація, ремонт, вивіз сміття, тощо)",Оренда нерухомості,297298,Полтавська обласна організація,25784681,Полтавська область,орендна плата за 11.2019р.,26007261695,current,2978.50,Ширай Олександр Євгенович,,фізична особа
БАТЬКІВЩИНА,"Чернігівська область, Чернігів, вулиця 1-ї Гвардійської Армії, 39",79,2019-12-18,5,"Оренда будинків і приміщень та експлуатаційні витрати (прибирання, страхування орендованих будинків, охорона, сигналізація, ремонт, вивіз сміття, тощо)",Оренда нерухомості,297290,Борзнянська районна організація,25932087,Чернігівська область,"грошовий внесок на користь ЧОПО ВО""Батьківщина"" від Борзнянської районної організації ВО""Батьківщина""",26009051430073,current,3551.40,"Чернігівська обласна організація Всеукраїнське обʼєднання ""Батьківщина""",25785516,юридична особа
БАТЬКІВЩИНА,"Луганська область, Рубіжне, вулиця Слов'янська, 143",79,2019-12-18,31,"Оренда будинків і приміщень та експлуатаційні витрати (прибирання, страхування орендованих будинків, охорона, сигналізація, ремонт, вивіз сміття, тощо)",Оренда нерухомості,297102,Старобільська районна організація,34962307,Луганська область,"суборенда офіса за жовтень,листопад,грудень 2019р.",UA743204780000026007924857721,current,2010.00,Романовська Наталія Василівна,,фізична особа
БАТЬКІВЩИНА,"Луганська область, Рубіжне, вулиця Слов'янська, 143",79,2019-12-18,30,"Оренда будинків і приміщень та експлуатаційні витрати (прибирання, страхування орендованих будинків, охорона, сигналізація, ремонт, вивіз сміття, тощо)",Оренда нерухомості,297101,Старобільська районна організація,34962307,Луганська область,суборенда офіса за вересень 2019р.,UA743204780000026007924857721,current,636.50,Романовська Наталія Василівна,,фізична особа
БАТЬКІВЩИНА,"Сумська область, Охтирка, вулиця Незалежності, 11",79,2019-12-18,54,"Оренда будинків і приміщень та експлуатаційні витрати (прибирання, страхування орендованих будинків, охорона, сигналізація, ремонт, вивіз сміття, тощо)",Оренда нерухомості,297094,Охтирська міська організація,24016891,Сумська область,Оренда за жовтень 2019 р. згідно рухунку N 17 від 2019-10-01 р.,26004055015693,current,1432.45,Ємець Володимир Якович,1997202695,фізична особа
БАТЬКІВЩИНА,"Полтавська область, Полтава, вулиця Небесної Сотні, 1/23",63,2019-12-18,49,Податок на доходи,Податкові платежі,296963,Полтавська обласна організація,25784681,Полтавська область,"ПДФО 18%, утрим. із зарплати за 11.2019р.",26007261695,current,751.14,УДКСУ у м. Полтаві,38019510,юридична особа
БАТЬКІВЩИНА,"Полтавська область, Полтава, вулиця Небесної Сотні, 1/23",63,2019-12-18,47,Податок на доходи,Податкові платежі,296962,Полтавська обласна організація,25784681,Полтавська область,"ПДФО 18%, утрим. з оренд.плати за 11.2019р.",26007261695,current,666.00,УДКСУ у м. Полтаві,38019510,юридична особа
БАТЬКІВЩИНА,"Київ, вулиця Старокиївська, 26",79,2019-12-18,159,"Оренда будинків і приміщень та експлуатаційні витрати (прибирання, страхування орендованих будинків, охорона, сигналізація, ремонт, вивіз сміття, тощо)",Оренда нерухомості,296886,Криворізька міська організація,25840741,Дніпропетровська область,"Оплата за оренду приміщення за3 кв-л 2019р., з-но Договору N01/05-18 від 2018-05-01р. У сумі 1875.00 грн., ПДВ - 20 % 375.00 грн.",26006053519096,current,2250.00,"ТОВ ""РАНТЬЄ ІСТЕЙТ""",35134784,юридична особа
БАТЬКІВЩИНА,"Київ, вулиця Бульварно-Кудрявська, 51, 8",53,2019-12-18,112,Витрати на розміщення зовнішньої реклами,Зовнішня реклама,296824,Київська міська організація,21709458,Київ,"Оплата за послуги з друку постерів та розм. зовнішньої реклами, договір 12-16 від 16.12.19,Дод N1 від 16.12.19,рах.905 від 13.12.19",UA973007110000026006052720575,current,72000.00,"ТОВ ""РА АРТМАСТЕР""",38519420,юридична особа
БАТЬКІВЩИНА,"Запорізька область, Запоріжжя, Оріхівське шосе, 36",79,2019-12-18,71,"Оренда будинків і приміщень та експлуатаційні витрати (прибирання, страхування орендованих будинків, охорона, сигналізація, ремонт, вивіз сміття, тощо)",Оренда нерухомості,296744,Соломʼянська районна організація,21716903,Київ,Оплата за суборенду нежитлового приміщення по договору №28 від 2018-12-28р.,UA253007110000026009052622829,current,1680.00,"ТОВ ""ЛЮМАКС КОМПАНІ""",34407598,юридична особа
БАТЬКІВЩИНА,"Київ, вулиця Солом'янська, 11а",76,2019-12-18,205,Послуги зв’язку,Послуги зв’язку,296734,Голосіївська районна організація,21716820,Київ,Плата за телефон 2019. Договір № 205150153 від 2017-04-03.Без ПДВ,UA293007110000026002052614362,current,300.00,"ТОВ ""ЛАЙФСЕЛЛ""",22859846,юридична особа
БАТЬКІВЩИНА,"Львівська область, Львів, вулиця Січових Стрільців, 9",79,2019-12-18,4,"Оренда будинків і приміщень та експлуатаційні витрати (прибирання, страхування орендованих будинків, охорона, сигналізація, ремонт, вивіз сміття, тощо)",Оренда нерухомості,296623,Залізнична районна організація,33894966,Львівська область,Орендна плата за приміщення за грудень згідно рах. № Г-00000308 від 2019-12-01 року,UA403257960000026006300560545,current,2000.00,"ТОВ ""Науково-виробнича комерційна фірма ""Галвомсервіс""",19173571,юридична особа
БАТЬКІВЩИНА,"Львівська область, Сколівський район, Сколе",66,2019-12-18,17_1,Повернення внесків приватних внесків (донорам),Повернення приватних внесків (донорам),296486,Сколівська районна організація,25257125,Львівська область,"повернення помилково зарахованих коштів згідно ст. 15 п. 8 ЗУ ""Про політичні партії""",UA223257960000026002300562848,current,3000.00,Цмоканич Степан Васильович,,фізична особа
БАТЬКІВЩИНА,"Львівська область, Сколівський район, Сколе",66,2019-12-18,17,Повернення внесків приватних внесків (донорам),Повернення приватних внесків (донорам),296485,Сколівська районна організація,25257125,Львівська область,"повернення помилково зарахованих коштів згідно ст. 15 п. 8 ЗУ ""Про політичні партії""",UA223257960000026002300562848,current,3500.00,Цмоканич Степан Васильович,,фізична особа
БАТЬКІВЩИНА,"Львівська область, Сколівський район, Сколе",66,2019-12-18,17,Повернення внесків приватних внесків (донорам),Повернення приватних внесків (донорам),296484,Сколівська районна організація,25257125,Львівська область,"повернення помилково зарахованих коштів згідно ст. 15 п. 8 ЗУ ""Про політичні партії""",UA223257960000026002300562848,current,800.00,Цмоканич Степан Васильович,,фізична особа
БАТЬКІВЩИНА,"Львівська область, Сколівський район, Сколе",66,2019-12-18,17,Повернення внесків приватних внесків (донорам),Повернення приватних внесків (донорам),296483,Сколівська районна організація,25257125,Львівська область,"повернення помилково зарахованих коштів згідно ст. 15 п. 8 ЗУ ""Про політичні партії""",UA223257960000026002300562848,current,2200.00,Цмоканич Степан Васильович,,фізична особа
БАТЬКІВЩИНА,"Львівська область, Сколівський район, Сколе",66,2019-12-18,17,Повернення внесків приватних внесків (донорам),Повернення приватних внесків (донорам),296482,Сколівська районна організація,25257125,Львівська область,"повернення помилково зарахованих коштів згідно ст. 15 п. 8 ЗУ ""Про політичні партії""",UA223257960000026002300562848,current,4500.00,Цмоканич Степан Васильович,,фізична особа
БАТЬКІВЩИНА,"Львівська область, Сколівський район, Сколе",66,2019-12-18,17,Повернення внесків приватних внесків (донорам),Повернення приватних внесків (донорам),296481,Сколівська районна організація,25257125,Львівська область,"повернення помилково зарахованих коштів згідно ст. 15 п. 8 ЗУ ""Про політичні партії""",UA223257960000026002300562848,current,3000.00,Цмоканич Степан Васильович,,фізична особа
БАТЬКІВЩИНА,"Львівська область, Сколівський район, Сколе",66,2019-12-18,17,Повернення внесків приватних внесків (донорам),Повернення приватних внесків (донорам),296480,Сколівська районна організація,25257125,Львівська область,"повернення помилково зарахованих коштів згідно ст. 15 п. 8 ЗУ ""Про політичні партії""",UA223257960000026002300562848,current,3168.00,Цмоканич Степан Васильович,,фізична особа
БАТЬКІВЩИНА,"Львівська область, Сколівський район, Сколе",66,2019-12-18,17,Повернення внесків приватних внесків (донорам),Повернення приватних внесків (донорам),296479,Сколівська районна організація,25257125,Львівська область,"повернення помилково зарахованих коштів згідно ст. 15 п. 8 ЗУ ""Про політичні партії""",UA223257960000026002300562848,current,2000.00,Цмоканич Степан Васильович,,фізична особа
БАТЬКІВЩИНА,Київ,84,2019-12-18,53,"Заробітна плата, премії","Заробітна плата, лікарняні, вагітності, відрядження, компенсації",296469,Полтавська обласна організація,25784681,Полтавська область,зарплата за листопад 2019р.,26007261695,current,3359.26,Русіна Людмила Петрівна,,фізична особа
БАТЬКІВЩИНА,Київ,84,2019-12-18,52,"Заробітна плата, премії","Заробітна плата, лікарняні, вагітності, відрядження, компенсації",296468,Полтавська обласна організація,25784681,Полтавська область,зарплата за жовтень 2019р.,26007261695,current,3359.26,Русіна Людмила Петрівна,,фізична особа
БАТЬКІВЩИНА,Київ,84,2019-12-18,51,"Заробітна плата, премії","Заробітна плата, лікарняні, вагітності, відрядження, компенсації",296467,Полтавська обласна організація,25784681,Полтавська область,зарплата за вересень 2019р.,26007261695,current,3359.26,Русіна Людмила Петрівна,,фізична особа
БАТЬКІВЩИНА,"Черкаська область, Сміла, вулиця Перемоги, 18",49,2019-12-18,237,Публікування матеріалів у друкованих ЗМІ,Реклама в друкованих ЗМІ,296442,Черкаська обласна організація,25770087,Черкаська область,За друк матеріалу у газеті згідно рахунку 7 від 2019-01-08р. Без ПДВ,26003051521053,current,8.75,"ПП ""Обрії""",02476014,юридична особа
БАТЬКІВЩИНА,"Полтавська область, Полтавський район, Розсошенці, вулиця Коцюбинського, 10",79,2019-12-18,61,"Оренда будинків і приміщень та експлуатаційні витрати (прибирання, страхування орендованих будинків, охорона, сигналізація, ремонт, вивіз сміття, тощо)",Оренда нерухомості,296431,Полтавська обласна організація,25784681,Полтавська область,за оренду приміщення 01-11.2019р.,26007261695,current,6600.00,"Районний міжгосподарський комбінат сільського господарства агропромислового комплексу ""Райсількомунгосп""",05442760,юридична особа
БАТЬКІВЩИНА,"Полтавська область, Полтавський район, Розсошенці, вулиця Коцюбинського, 10",79,2019-12-18,61,"Оренда будинків і приміщень та експлуатаційні витрати (прибирання, страхування орендованих будинків, охорона, сигналізація, ремонт, вивіз сміття, тощо)",Оренда нерухомості,296430,Полтавська обласна організація,25784681,Полтавська область,за оренду приміщення у 12.2018р.,26007261695,current,1500.00,"Районний міжгосподарський комбінат сільського господарства агропромислового комплексу ""Райсількомунгосп""",05442760,юридична особа
БАТЬКІВЩИНА,"Київ, вулиця Михайла Грушевського, 1Д",70,2019-12-18,48,Банківські послуги,Інші витрати,296395,Краснопільська районна організація,24015897,Сумська область,Погашення заборгованості за розрахунково-касове обслуговування згідно угоди РКО N б/н від 2015-09-16,26002055020259,current,27.45,"ПАТ КБ ""Приватбанк""",14360570,юридична особа
БАТЬКІВЩИНА,"Київ, бульвар Тараса Шевченка, 18",76,2019-12-18,14,Послуги зв’язку,Послуги зв’язку,296376,Радехівська районна організація,25259791,Львівська область,За послуги згідно рахунку №460103000055032019-11-81 за листопад 2019 року,UA343257960000026006300560459,current,285.00,"ПАТ ""Укртелеком""",21560766,юридична особа
БАТЬКІВЩИНА,"Київ, вулиця Дегтярівська, 53",76,2019-12-18,64,Послуги зв’язку,Послуги зв’язку,296295,Луцька міська організація,25910022,Волинська область,оплата за телефонні послуги,26007055517909,current,184.52,"ПрАТ ""Київстар""",21673832,юридична особа
БАТЬКІВЩИНА,"Волинська область, Луцьк, вулиця Клима Савура, 29",79,2019-12-18,63,"Оренда будинків і приміщень та експлуатаційні витрати (прибирання, страхування орендованих будинків, охорона, сигналізація, ремонт, вивіз сміття, тощо)",Оренда нерухомості,296232,Луцька міська організація,25910022,Волинська область,орендна плата за грудень 2019 року згідно угоди,26007055517909,current,500.00,"ПАТ ""Луцьксантехмонтаж №536""",30248307,юридична особа
БАТЬКІВЩИНА,"Київ, вулиця Михайла Грушевського, 1Д",70,2019-12-18,LHH5V00077,Банківські послуги,Інші витрати,296193,Володимирецька районна організація,25930311,Рівненська область,комісія за обслуговування рахунку,UA823333910000026009054729281,current,29.92,"ПАТ КБ ""Приватбанк""",14360570,юридична особа
БАТЬКІВЩИНА,"Київ, вулиця Михайла Грушевського, 34",82,2019-12-18,2294,"Гонорари, в тому числі за надані консультаційні послуги","Гонорари, в тому числі за надані консультаційні послуги",296129,Центральний офіс,20069956,Україна,Сплата за наторіальні послуги,2604826373,state,2000.00,Охрімчук Ольга Володимирівна,3012512880,фізична особа
БАТЬКІВЩИНА,"Харківська область, Харків, вулиця Алчевських, 30",70,2019-12-18,RCO1945_1044,Банківські послуги,Інші витрати,296112,Полтавська обласна організація,25784681,Полтавська область,Списання коштів за банківське обслуговування згідно договоpу N0026-11-4078 від 11.10.219р.,26007261695,current,325.73,"ПАТ ""Мегабанк""",09804119,юридична особа
БАТЬКІВЩИНА,"Харківська область, Харків, вулиця Алчевських, 30",70,2019-12-18,RCO1945_1045,Банківські послуги,Інші витрати,296110,Полтавська обласна організація,25784681,Полтавська область,Списання коштів за банківське обслуговування згідно договоpу N0026-11-4078 від 11.10.219р.,26007261695,current,91.45,"ПАТ ""Мегабанк""",09804119,юридична особа
БАТЬКІВЩИНА,"Полтавська область, Полтава, вулиця Небесної Сотні, 1/23",61,2019-12-18,48,Військовий збір,Податкові платежі,296109,Полтавська обласна організація,25784681,Полтавська область,"військовий збір 1,5% із зарплати за 11.2019р.",26007261695,current,62.60,УДКСУ у м. Полтаві,38019510,юридична особа
БАТЬКІВЩИНА,"Полтавська область, Полтава, вулиця Небесної Сотні, 1/23",61,2019-12-18,46,Військовий збір,Податкові платежі,296108,Полтавська обласна організація,25784681,Полтавська область,"військовий збір 1,5% з оренд.плати за 11.2019р.",26007261695,current,55.50,УДКСУ у м. Полтаві,38019510,юридична особа
БАТЬКІВЩИНА,"Київ, вулиця Михайла Грушевського, 1Д",70,2019-12-18,CIO2UC0JFY,Банківські послуги,Інші витрати,296071,Криворізька міська організація,25840741,Дніпропетровська область,"Комісія за виконання платежів в національній валюті, згідно з відкритою офертою банку N б/н від 2017-04-10 та тарифів банку, без ПДВ.",26006053519096,current,3.00,"ПАТ КБ ""Приватбанк""",14360570,юридична особа
БАТЬКІВЩИНА,"Київ, вулиця Михайла Грушевського, 1Д",70,2019-12-18,CIO2UCMA8Y,Банківські послуги,Інші витрати,295956,Соломʼянська районна організація,21716903,Київ,Комісія за виконання платежів,UA253007110000026009052622829,current,3.00,"ПАТ КБ ""Приватбанк""",14360570,юридична особа
БАТЬКІВЩИНА,"Київ, вулиця Михайла Грушевського, 1Д",70,2019-12-18,CIO2UBG9TY,Банківські послуги,Інші витрати,295915,Київська міська організація,21709458,Київ,Комісія за виконання платежів,UA973007110000026006052720575,current,3.00,"ПАТ КБ ""Приватбанк""",14360570,юридична особа
БАТЬКІВЩИНА,"Київ, вулиця Михайла Грушевського, 1Д",70,2019-12-18,CIO2UCHEPY,Банківські послуги,Інші витрати,295896,Голосіївська районна організація,21716820,Київ,Комісія за виконання платежів,UA293007110000026002052614362,current,3.00,"ПАТ КБ ""Приватбанк""",14360570,юридична особа
БАТЬКІВЩИНА,"Київ, вулиця Михайла Грушевського, 1Д",70,2019-12-18,CIO2UCBTJY,Банківські послуги,Інші витрати,295894,Голосіївська районна організація,21716820,Київ,Комісія за виконання платежу,UA293007110000026002052614362,current,3.00,"ПАТ КБ ""Приватбанк""",14360570,юридична особа
БАТЬКІВЩИНА,"Київ, Голосіївський проспект, 17",79,2019-12-18,188,"Оренда будинків і приміщень та експлуатаційні витрати (прибирання, страхування орендованих будинків, охорона, сигналізація, ремонт, вивіз сміття, тощо)",Оренда нерухомості,295648,Голосіївська районна організація,21716820,Київ,"Плата за прибудинкову територію 2019. Договір № 966-0/17 від 2017-01-01. ПДВ в сумі 66,67 грн.",UA293007110000026002052614362,current,400.00,КП “Дирекція з управління та обслуговування житлового фонду Голосіївського пайону”,32375554,юридична особа
БАТЬКІВЩИНА,"Полтавська область, Карлівський район, Карлівка",79,2019-12-18,59,"Оренда будинків і приміщень та експлуатаційні витрати (прибирання, страхування орендованих будинків, охорона, сигналізація, ремонт, вивіз сміття, тощо)",Оренда нерухомості,295631,Полтавська обласна організація,25784681,Полтавська область,за оренду приміщення у 11.2019р.,26007261695,current,1336.39,"КП ""Видавництво ""Світанок""",02468204,юридична особа
БАТЬКІВЩИНА,"Полтавська область, Полтава, вулиця Європейська, 155",62,2019-12-18,50,Сплата ЄСВ,Податкові платежі,295452,Полтавська обласна організація,25784681,Полтавська область,"ЄСВ 22%, нарах.на зарплату за 11.2019р.",26007261695,current,918.06,ДПІ у м. Полтава ГУ ДФС у Полтавській області,39680655,юридична особа
БАТЬКІВЩИНА,"Київ, вулиця Михайла Грушевського, 1Д",70,2019-12-18,CIO2UDFHX9Y,Банківські послуги,Інші витрати,295367,Луцька міська організація,25910022,Волинська область,за розрахунково-касове обслуговування,26007055517909,current,3.00,"ПАТ КБ ""Приватбанк""",14360570,юридична особа
БАТЬКІВЩИНА,"Київ, вулиця Михайла Грушевського, 1Д",70,2019-12-18,CIO2UDFHCY,Банківські послуги,Інші витрати,295366,Луцька міська організація,25910022,Волинська область,за розрахунково-касове обслуговування,26007055517909,current,3.00,"ПАТ КБ ""Приватбанк""",14360570,юридична особа
БАТЬКІВЩИНА,"Полтавська область, Миргород, вулиця Незалежності, 20",79,2019-12-18,57,"Оренда будинків і приміщень та експлуатаційні витрати (прибирання, страхування орендованих будинків, охорона, сигналізація, ремонт, вивіз сміття, тощо)",Оренда нерухомості,295270,Полтавська обласна організація,25784681,Полтавська область,Оплата за тепло у 12.2019р. зг.рах. N 237 від 2019-12-11р.Без ПДВ.,26007261695,current,376.94,Відділ освіти Миргородської РДА,02145607,юридична особа
БАТЬКІВЩИНА,"Полтавська область, Миргород, вулиця Незалежності, 20",79,2019-12-18,55,"Оренда будинків і приміщень та експлуатаційні витрати (прибирання, страхування орендованих будинків, охорона, сигналізація, ремонт, вивіз сміття, тощо)",Оренда нерухомості,295268,Полтавська обласна організація,25784681,Полтавська область,Оплата за оренду нежитл прим.у 12.2019р. зг.дог. N 26 від 2018-08-01р.Без ПДВ.,26007261695,current,117.85,Відділ освіти Миргородської РДА,02145607,юридична особа
БАТЬКІВЩИНА,"Полтавська область, Миргород, вулиця Незалежності, 20",79,2019-12-18,56,"Оренда будинків і приміщень та експлуатаційні витрати (прибирання, страхування орендованих будинків, охорона, сигналізація, ремонт, вивіз сміття, тощо)",Оренда нерухомості,295267,Полтавська обласна організація,25784681,Полтавська область,Оплата за тепло у 11.2019р. зг.рах. N 237 від 2019-12-11р.Без ПДВ.,26007261695,current,43.92,Відділ освіти Миргородської РДА,02145607,юридична особа
БАТЬКІВЩИНА,"Київ, вулиця Богдана Хмельницького, 64",70,2019-12-18,RCO1945_558,Банківські послуги,Інші витрати,295053,Центральний офіс,20069956,Україна,Банківське обслуговування,2600426373,current,1.00,"ПАТ ""Мегабанк""",09804119,юридична особа
БАТЬКІВЩИНА,"Харківська область, Харків, вулиця Новгородська, 11",70,2019-12-17,4424,Банківські послуги,Інші витрати,297279,Харківська обласна організація,25792203,Харківська область,"Комісія банку за зарахування коштів на СКР працівників ХООПП ""ВО ""БАТЬКІВЩИНА"" - Заробітна плата та аванси згідно відомості N 85 від 2019-12-17",UA493808050000000026009378667,current,13.52,"Харківська обласна філія АТ ""Райффайзен банк Аваль""",23321095,юридична особа
БАТЬКІВЩИНА,"Львівська область, Самбір",79,2019-12-17,60,"Оренда будинків і приміщень та експлуатаційні витрати (прибирання, страхування орендованих будинків, охорона, сигналізація, ремонт, вивіз сміття, тощо)",Оренда нерухомості,296989,Яворівська районна організація,25258975,Львівська область,послуги охорони за грудень 2019 р.,UA573257960000026006300564507,current,400.00,Управління поліції охорони у Львівській області,40108887,юридична особа
БАТЬКІВЩИНА,"Львівська область, Пустомитівський район, Сокільники, вулиця Січових Стрільців, 1",76,2019-12-17,39,Послуги зв’язку,Послуги зв’язку,296849,Пустомитівська районна організація,25253883,Львівська область,"Оплата за телекомунікаційні послуги за вересень, жовтень, грудень 2019 року",UA073257960000026006300560460,current,644.00,"ТОВ ""Телекомунікаційна компанія""",25239647,юридична особа
БАТЬКІВЩИНА,"Київ, вулиця Віталія Шимановського, 2",76,2019-12-17,2293,Послуги зв’язку,Послуги зв’язку,296847,Центральний офіс,20069956,Україна,Сплата за послуги телефонії,2604826373,state,11859.44,"ТОВ ""СХІДНОЄВРОПЕЙСЬКІ КОНТАКТ-ЦЕНТРИ""",42790215,юридична особа
БАТЬКІВЩИНА,"Волинська область, Любомльський район, Любомль, вулиця Незалежності, 20",79,2019-12-17,148,"Оренда будинків і приміщень та експлуатаційні витрати (прибирання, страхування орендованих будинків, охорона, сигналізація, ремонт, вивіз сміття, тощо)",Оренда нерухомості,296820,Волинська обласна організація,25787544,Волинська область,"орендна плата за листопад, грудень 2019 року згідно угоди",26001924857727,current,3000.00,"ТОВ ""Фірма Промінь"" ЛТД""",03062421,юридична особа
БАТЬКІВЩИНА,"Харківська область, Харків, вулиця Бакуліна, 18",61,2019-12-17,4427,Військовий збір,Податкові платежі,296805,Харківська обласна організація,25792203,Харківська область,військовий збір з заробітної плати за 1 половину грудня 2019р.,UA493808050000000026009378667,current,31.50,УДКСУ у Шевченківському районі м. Харкова,37999654,юридична особа
БАТЬКІВЩИНА,"Харківська область, Харків, вулиця Пушкінська, 46",62,2019-12-17,4425,Сплата ЄСВ,Податкові платежі,296804,Харківська обласна організація,25792203,Харківська область,єдиний страх.внесок з заробітної плати за 1 половину грудня 2019р. 22%,UA493808050000000026009378667,current,462.00,Головне управління ДПС у Харківській о,43143704,юридична особа
БАТЬКІВЩИНА,"Харківська область, Харків, вулиця Бакуліна, 18",63,2019-12-17,4426,Податок на доходи,Податкові платежі,296803,Харківська обласна організація,25792203,Харківська область,податок з доходів фізосіб із зарплати за 1 половину грудня 2019р,UA493808050000000026009378667,current,378.00,УДКСУ у Шевченківському районі м. Харкова,37999654,юридична особа
БАТЬКІВЩИНА,"Волинська область, Ківерцівський район, Ківерці, вулиця Незалежності, 2",79,2019-12-17,151,"Оренда будинків і приміщень та експлуатаційні витрати (прибирання, страхування орендованих будинків, охорона, сигналізація, ремонт, вивіз сміття, тощо)",Оренда нерухомості,296786,Волинська обласна організація,25787544,Волинська область,"орендна плата за жовтень, листопад, грудень 2019року згідно угоди",26001924857727,current,6000.00,"ТОВ ""Надія""",03052322,юридична особа
БАТЬКІВЩИНА,"Київ, вулиця Маршала Малиновського, 6Б",52,2019-12-17,111,Інша реклама (без класифікації),Реклама (без класифікації),296750,Київська міська організація,21709458,Київ,"Оплата за рекламні послуги договір ПД-131219 від 2019-12-13, ДУ N1 від 2019-12-13,рахунокN1262 від 2019-12-16",UA973007110000026006052720575,current,14400.00,"ТОВ ""МЕДІА-ГРУП""",32205768,юридична особа
БАТЬКІВЩИНА,"Житомирська область, Житомир, вулиця Київська, 8",76,2019-12-17,85,Послуги зв’язку,Послуги зв’язку,296718,Житомирська обласна організація,25776533,Житомирська область,Абонентна плата за інтернет ресурс,UA873223020000026001001929301,current,1060.00,"ТОВ ""Імпульс""",13552037,юридична особа
БАТЬКІВЩИНА,"Львівська область, Львів, вулиця Шевченка, 6",76,2019-12-17,59,Послуги зв’язку,Послуги зв’язку,296647,Яворівська районна організація,25258975,Львівська область,оплата за телекомунікаційні послуги за листопад 2019 р.,UA573257960000026006300564507,current,225.00,"ТОВ ""Байт""",25234749,юридична особа
БАТЬКІВЩИНА,"Харківська область, Харків",84,2019-12-17,4423,"Заробітна плата, премії","Заробітна плата, лікарняні, вагітності, відрядження, компенсації",296630,Харківська обласна організація,25792203,Харківська область,"Заробітна плата (аванси) ХООПП ""ВО ""БАТЬКІВЩИНА"" за 1 половину грудня 2019р. згідно відомості N 85 від 2019-12-17",UA493808050000000026009378667,current,1690.50,Верба Вікторія Володимирівна,,фізична особа
БАТЬКІВЩИНА,"Львівська область, Сокальський район, Сокаль, вулиця Василя Стуса, 1",79,2019-12-17,86,"Оренда будинків і приміщень та експлуатаційні витрати (прибирання, страхування орендованих будинків, охорона, сигналізація, ремонт, вивіз сміття, тощо)",Оренда нерухомості,296489,Сокальська районна організація,25257579,Львівська область,Орендна плата за приміщення за грудень 2019 згідно рах. №165 від 2019-12-03 р.,UA463257960000026003300165846,current,4000.00,Сокальська райспоживспілка,01758087,юридична особа
БАТЬКІВЩИНА,"Волинська область, Ратнівський район, Ратне, вулиця Шевченка, 1",79,2019-12-17,150,"Оренда будинків і приміщень та експлуатаційні витрати (прибирання, страхування орендованих будинків, охорона, сигналізація, ремонт, вивіз сміття, тощо)",Оренда нерухомості,296436,Волинська обласна організація,25787544,Волинська область,"оплата ком.послуг рах.67,72",26001924857727,current,245.99,Ратнівська районна спілка споживчих товариств,01744197,юридична особа
БАТЬКІВЩИНА,"Київ, бульвар Тараса Шевченка, 18",76,2019-12-17,85,Послуги зв’язку,Послуги зв’язку,296408,Сокальська районна організація,25257579,Львівська область,Оплата за телекомунікаційні послуги з-но рах. №460600000057072019-11-63 за листопад 2019 р.,UA463257960000026003300165846,current,241.20,"ПАТ ""Укртелеком""",21560766,юридична особа
БАТЬКІВЩИНА,"Київ, бульвар Тараса Шевченка, 18",76,2019-12-17,2291,Послуги зв’язку,Послуги зв’язку,296338,Центральний офіс,20069956,Україна,Сплата за послуг телефонії,2604826373,state,31421.35,"ПАТ ""Укртелеком""",21560766,юридична особа
БАТЬКІВЩИНА,"Київ, вулиця Миколи Грінченка, 18",79,2019-12-17,2292,"Оренда будинків і приміщень та експлуатаційні витрати (прибирання, страхування орендованих будинків, охорона, сигналізація, ремонт, вивіз сміття, тощо)",Оренда нерухомості,296224,Центральний офіс,20069956,Україна,Оплата за оренду нежитлового приміщення,2604826373,state,900.00,"ПАТ""комплекс ""либідський""",32768518,юридична особа
БАТЬКІВЩИНА,"Київ, вулиця Михайла Грушевського, 1Д",70,2019-12-17,АТО2,Банківські послуги,Інші витрати,296048,Кіровоградська обласна організація,24146984,Кіровоградська область,комісія за обслуговування,26004312273001,current,3.00,"ПАТ КБ ""Приватбанк""",14360570,юридична особа
БАТЬКІВЩИНА,"Київ, вулиця Михайла Грушевського, 1Д",70,2019-12-17,CHO2U88U4Y,Банківські послуги,Інші витрати,295914,Київська міська організація,21709458,Київ,Комісія за виконання платежів,UA973007110000026006052720575,current,3.00,"ПАТ КБ ""Приватбанк""",14360570,юридична особа
БАТЬКІВЩИНА,"Львівська область, Львів, вулиця Володимира Винниченка, 8",79,2019-12-17,58,"Оренда будинків і приміщень та експлуатаційні витрати (прибирання, страхування орендованих будинків, охорона, сигналізація, ремонт, вивіз сміття, тощо)",Оренда нерухомості,295762,Яворівська районна організація,25258975,Львівська область,орендна плата згідно рахунку № 7464 за грудень 2019р.,UA573257960000026006300564507,current,387.14,"КП ЛОР ""Нерухомість та майно""",33358550,юридична особа
БАТЬКІВЩИНА,"Житомирська область, Житомир, вулиця Велика Бердичівська, 22",70,2019-12-17,6899449,Банківські послуги,Інші витрати,295621,Житомирська обласна організація,25776533,Житомирська область,Послуги банку,UA873223020000026001001929301,current,20.00,"ПАТ ""Айбокс Банк""",21570492,юридична особа
БАТЬКІВЩИНА,"Кіровоградська область, Кропивницький, проспект Винниченка, 1",43,2019-12-17,1264,Інші витрати,Інші витрати,295501,Кіровоградська обласна організація,24146984,Кіровоградська область,за реєстрацію змін до відомостей парторганізації згідно статуту,26004312273001,current,580.00,УДКСУ у м. Кропивницькому,38037409,юридична особа
БАТЬКІВЩИНА,"Київ, вулиця Єреванська, 1",70,2019-12-17,TR.9384279.839819494,Банківські послуги,Інші витрати,295310,Волинська обласна організація,25787544,Волинська область,погашення комісіі за рко,26001924857727,current,0.80,"АБ ""Укргазбанк""",23697280,юридична особа
БАТЬКІВЩИНА,"Київ, вулиця Єреванська, 1",70,2019-12-17,TR.9384279.331822936,Банківські послуги,Інші витрати,295309,Волинська обласна організація,25787544,Волинська область,погашення комісіі за рко,26001924857727,current,0.80,"АБ ""Укргазбанк""",23697280,юридична особа
БАТЬКІВЩИНА,"Київ, вулиця Єреванська, 1",70,2019-12-17,TR.9384279.117868700,Банківські послуги,Інші витрати,295308,Волинська обласна організація,25787544,Волинська область,погашення комісіі за рко,26001924857727,current,0.80,"АБ ""Укргазбанк""",23697280,юридична особа
БАТЬКІВЩИНА,"Київ, вулиця Єреванська, 1",70,2019-12-17,TR.9384279.437056054,Банківські послуги,Інші витрати,295307,Волинська обласна організація,25787544,Волинська область,погашення комісіі за рко,26001924857727,current,0.80,"АБ ""Укргазбанк""",23697280,юридична особа
БАТЬКІВЩИНА,"Київ, вулиця Єреванська, 1",70,2019-12-17,TR.9384279.767029990,Банківські послуги,Інші витрати,295306,Волинська обласна організація,25787544,Волинська область,погашення комісіі за рко,26001924857727,current,0.80,"АБ ""Укргазбанк""",23697280,юридична особа
БАТЬКІВЩИНА,"Волинська область, Старовижівський район, Стара Вижівка, вулиця Незалежності, 83",79,2019-12-17,149,"Оренда будинків і приміщень та експлуатаційні витрати (прибирання, страхування орендованих будинків, охорона, сигналізація, ремонт, вивіз сміття, тощо)",Оренда нерухомості,295283,Волинська обласна організація,25787544,Волинська область,"орендна плата за жовтень, листопад, грудень 2019року згідно угоди",26001924857727,current,4500.00,"ВАТ ""Старовижівська родючість""",05487811,юридична особа
БАТЬКІВЩИНА,"Львівська область, Пустомитівський район, Пустомити, вул. Грушевського, 35",79,2019-12-17,38,"Оренда будинків і приміщень та експлуатаційні витрати (прибирання, страхування орендованих будинків, охорона, сигналізація, ремонт, вивіз сміття, тощо)",Оренда нерухомості,295243,Пустомитівська районна організація,25253883,Львівська область,"Орендна плата за приміщення за жовтень, листопад, грудень 2019 року",UA073257960000026006300560460,current,2156.61,Відділ з питань управління та приватизації ГУ ДКСУ у Львівській області,38047883,юридична особа
БАТЬКІВЩИНА,"Волинська область, Маневицький район, Маневичі, вул. Горького, 9а",79,2019-12-17,147,"Оренда будинків і приміщень та експлуатаційні витрати (прибирання, страхування орендованих будинків, охорона, сигналізація, ремонт, вивіз сміття, тощо)",Оренда нерухомості,295241,Волинська обласна організація,25787544,Волинська область,"орендна плата за листопад, грудень 2019 року згідно угоди",26001924857727,current,3300.00,"Виробниче комерційне колективне підприємство ""Побутсервіс""",03052428,юридична особа
БАТЬКІВЩИНА,"Київ, вулиця Богдана Хмельницького, 64",70,2019-12-17,RCO1951_576,Банківські послуги,Інші витрати,295052,Центральний офіс,20069956,Україна,Банківське обслуговування,2600426373,current,15.00,"ПАТ ""Мегабанк""",09804119,юридична особа
БАТЬКІВЩИНА,"Луганська область, Лисичанськ, вулиця Макаренка, 158",58,2019-12-16,244,"Виготовлення друкованих матеріалів (плакатів, листівок, буклетів та інших агітаційних матеріалів)",Друкована агітація,297097,Лисичанська міська організація,25926767,Луганська область,постер на папері,UA253047950000026002053730540,current,9000.00,Зільберт Інна Петрівна,,фізична особа
БАТЬКІВЩИНА,"Луганська область, Лисичанськ, вулиця Макаренка, 158",58,2019-12-16,243,"Виготовлення друкованих матеріалів (плакатів, листівок, буклетів та інших агітаційних матеріалів)",Друкована агітація,297096,Лисичанська міська організація,25926767,Луганська область,постер на папері,UA253047950000026002053730540,current,9154.00,Зільберт Інна Петрівна,,фізична особа
БАТЬКІВЩИНА,"Львівська область, Львів, вулиця Джохара Дудаєва, 19",43,2019-12-16,1,Інші витрати,Інші витрати,296964,Сихівська районна організація,26307138,Львівська область,"за державну реєстрацію змін до відомостей про юридичну особу , код платежу 22010300",UA773257960000026009300560553,current,580.00,УДКСУ у Галицькому районі м. Львова,38007573,юридична особа
БАТЬКІВЩИНА,"Івано-Франківська область, Івано-Франківськ, вулиця Дністровська",63,2019-12-16,294,Податок на доходи,Податкові платежі,296948,Івано-Франківська обласна організація,25789520,Івано-Франківська область,ПДФО з зарплати за першу половину грудня 2019р.,26007300867,current,1087.79,УДКСУ у м. Івано-Франківську,37952250,юридична особа
БАТЬКІВЩИНА,"Київ, вулиця Турівська, 15",79,2019-12-16,2289,"Оренда будинків і приміщень та експлуатаційні витрати (прибирання, страхування орендованих будинків, охорона, сигналізація, ремонт, вивіз сміття, тощо)",Оренда нерухомості,296763,Центральний офіс,20069956,Україна,Сплата за оренду нежилого приміщення,2600426373,current,131000.00,"ТОВ ""МЦ-файнанс""",36473374,юридична особа
БАТЬКІВЩИНА,"Київ, бульвар Лесі Українки, 27",79,2019-12-16,2290,"Оренда будинків і приміщень та експлуатаційні витрати (прибирання, страхування орендованих будинків, охорона, сигналізація, ремонт, вивіз сміття, тощо)",Оренда нерухомості,296696,Центральний офіс,20069956,Україна,Сплата за оренду приміщення,2600426373,current,224000.00,"ТОВ ""ЕКОТЕХПРОМ""",32248975,юридична особа
БАТЬКІВЩИНА,"Луганська область, Сєвєродонецьк, вулиця Донецька, 35",49,2019-12-16,244,Публікування матеріалів у друкованих ЗМІ,Реклама в друкованих ЗМІ,296560,Лисичанська міська організація,25926767,Луганська область,за розміщення реклами,UA253047950000026002053730540,current,1470.00,"ТОВ ""Інтер-пульс""",21814942,юридична особа
БАТЬКІВЩИНА,"Волинська область, Ратнівський район, Ратне, вулиця Шевченка, 1",79,2019-12-16,146,"Оренда будинків і приміщень та експлуатаційні витрати (прибирання, страхування орендованих будинків, охорона, сигналізація, ремонт, вивіз сміття, тощо)",Оренда нерухомості,296435,Волинська обласна організація,25787544,Волинська область,"орендна плата за жовтень, листопад, грудень 2019 року згідно угоди",26001924857727,current,4500.00,Ратнівська районна спілка споживчих товариств,01744197,юридична особа
БАТЬКІВЩИНА,"Волинська область, Луцьк, вулиця Прогресу, 7",79,2019-12-16,143,"Оренда будинків і приміщень та експлуатаційні витрати (прибирання, страхування орендованих будинків, охорона, сигналізація, ремонт, вивіз сміття, тощо)",Оренда нерухомості,296323,Волинська обласна організація,25787544,Волинська область,орендна плата за грудень 2019 року згідно угоди,26001924857727,current,751.80,"ПАТ ""НАСК ""Оранта""",00034186,юридична особа
БАТЬКІВЩИНА,"Волинська область, Турійський район, Турійськ, вулиця Луцька, 16",79,2019-12-16,144,"Оренда будинків і приміщень та експлуатаційні витрати (прибирання, страхування орендованих будинків, охорона, сигналізація, ремонт, вивіз сміття, тощо)",Оренда нерухомості,295773,Волинська обласна організація,25787544,Волинська область,оплата оренди згідно рах.№60,26001924857727,current,1762.08,КП “Турійська районна друкарня”,02465981,юридична особа
БАТЬКІВЩИНА,"Івано-Франківська область, Івано-Франківськ, вулиця Дністровська",61,2019-12-16,293,Військовий збір,Податкові платежі,295743,Івано-Франківська обласна організація,25789520,Івано-Франківська область,військовий збір з зарплати за першу половину грудня 2019р.,26007300867,current,90.65,УДКСУ у м. Івано-Франківську,37952250,юридична особа
БАТЬКІВЩИНА,"Київ, вулиця Єреванська, 1",70,2019-12-16,292,Банківські послуги,Інші витрати,295742,Івано-Франківська обласна організація,25789520,Івано-Франківська область,проценти банку за перерахунок на карткові рахунки прпацівників,26007300867,current,24.32,"АБ ""Укргазбанк""",23697280,юридична особа
БАТЬКІВЩИНА,"Київ, вулиця Єреванська, 1",70,2019-12-16,TR.7019800. 158703471,Банківські послуги,Інші витрати,295741,Івано-Франківська обласна організація,25789520,Івано-Франківська область,за розрахункове обслуговування по рахунку,26007300867,current,0.80,"АБ ""Укргазбанк""",23697280,юридична особа
БАТЬКІВЩИНА,"Київ, вулиця Єреванська, 1",70,2019-12-16,TR.7019800. 636084874,Банківські послуги,Інші витрати,295740,Івано-Франківська обласна організація,25789520,Івано-Франківська область,за розрахункове обслуговування по рахунку,26007300867,current,0.80,"АБ ""Укргазбанк""",23697280,юридична особа
БАТЬКІВЩИНА,"Київ, вулиця Єреванська, 1",70,2019-12-16,TR.7019800. 403586218,Банківські послуги,Інші витрати,295739,Івано-Франківська обласна організація,25789520,Івано-Франківська область,за розрахункове обслуговування по рахунку,26007300867,current,0.80,"АБ ""Укргазбанк""",23697280,юридична особа
БАТЬКІВЩИНА,"Житомирська область, Житомир, вулиця Велика Бердичівська, 22",70,2019-12-16,6876409,Банківські послуги,Інші витрати,295618,Житомирська обласна організація,25776533,Житомирська область,Послуги банку,UA873223020000026001001929301,current,40.00,"ПАТ ""Айбокс Банк""",21570492,юридична особа
БАТЬКІВЩИНА,"Житомирська область, Житомир, вулиця Велика Бердичівська, 22",70,2019-12-16,6876410,Банківські послуги,Інші витрати,295617,Житомирська обласна організація,25776533,Житомирська область,Послуги банку,UA873223020000026001001929301,current,31.76,"ПАТ ""Айбокс Банк""",21570492,юридична особа
БАТЬКІВЩИНА,"Івано-Франківська область, Івано-Франківськ, вулиця Василіянок, 62А",84,2019-12-16,291,"Заробітна плата, премії","Заробітна плата, лікарняні, вагітності, відрядження, компенсації",295492,Івано-Франківська обласна організація,25789520,Івано-Франківська область,перехавані кошти на зарплату за першу половину грудня 2019р.,26007300867,current,4864.61,"Івано-Франківська обласна організація Всеукраїнське обʼєднання ""Батьківщина""",25789520,юридична особа
БАТЬКІВЩИНА,"Житомирська область, Житомир, вулиця Чуднівська, 20",79,2019-12-16,84,"Оренда будинків і приміщень та експлуатаційні витрати (прибирання, страхування орендованих будинків, охорона, сигналізація, ремонт, вивіз сміття, тощо)",Оренда нерухомості,295468,Житомирська обласна організація,25776533,Житомирська область,Оренда приміщення та комунальні послуги,UA873223020000026001001929301,current,35000.00,Житомирська обласна організація Українського Товариства охорони природи,03920244,юридична особа
БАТЬКІВЩИНА,"Івано-Франківська область, Івано-Франківськ, вулиця Незалежності, 20",62,2019-12-16,295,Сплата ЄСВ,Податкові платежі,295445,Івано-Франківська обласна організація,25789520,Івано-Франківська область,ЄСВ 22% з зарплати за першу половину грудня 2019р.,26007300867,current,1329.52,ГУ ДФС в Івано-Франківській області,39394463,юридична особа
БАТЬКІВЩИНА,"Волинська область, Горохівський район, Горохів, вулиця Сокальська, 2",79,2019-12-16,145,"Оренда будинків і приміщень та експлуатаційні витрати (прибирання, страхування орендованих будинків, охорона, сигналізація, ремонт, вивіз сміття, тощо)",Оренда нерухомості,295374,Волинська обласна організація,25787544,Волинська область,"оплата оренди і ком.послуг за грудень 2019 року рах.370,380",26001924857727,current,2695.13,Горохівська Райспоживспілка,01744240,юридична особа
БАТЬКІВЩИНА,"Київ, вулиця Єреванська, 1",70,2019-12-16,TR.9384279.21864010,Банківські послуги,Інші витрати,295305,Волинська обласна організація,25787544,Волинська область,погашення комісіі за рко,26001924857727,current,0.80,"АБ ""Укргазбанк""",23697280,юридична особа
БАТЬКІВЩИНА,"Київ, вулиця Єреванська, 1",70,2019-12-16,TR.9384279.338280444,Банківські послуги,Інші витрати,295304,Волинська обласна організація,25787544,Волинська область,погашення комісіі за рко,26001924857727,current,0.80,"АБ ""Укргазбанк""",23697280,юридична особа
БАТЬКІВЩИНА,"Київ, вулиця Єреванська, 1",70,2019-12-16,TR.9384279.758579504,Банківські послуги,Інші витрати,295303,Волинська обласна організація,25787544,Волинська область,погашення комісіі за рко,26001924857727,current,0.80,"АБ ""Укргазбанк""",23697280,юридична особа
БАТЬКІВЩИНА,"Київ, вулиця Єреванська, 1",70,2019-12-16,TR.9384279.656189352,Банківські послуги,Інші витрати,295302,Волинська обласна організація,25787544,Волинська область,погашення комісіі за рко,26001924857727,current,0.80,"АБ ""Укргазбанк""",23697280,юридична особа
БАТЬКІВЩИНА,"Житомирська область, Житомир, вулиця Київська, 17",79,2019-12-16,83,"Оренда будинків і приміщень та експлуатаційні витрати (прибирання, страхування орендованих будинків, охорона, сигналізація, ремонт, вивіз сміття, тощо)",Оренда нерухомості,295166,Житомирська обласна організація,25776533,Житомирська область,Оренда приміщення,UA873223020000026001001929301,current,1050.00,Андрушівська райспоживспілка,01749266,юридична особа
БАТЬКІВЩИНА,"Київ, вулиця Михайла Грушевського, 1Д",70,2019-12-16,CGO2TY5Z2Y,Банківські послуги,Інші витрати,295089,Лисичанська міська організація,25926767,Луганська область,комісія банка,UA253047950000026002053730540,current,3.00,"ПАТ КБ ""Приватбанк""",14360570,юридична особа
БАТЬКІВЩИНА,"Київ, вулиця Михайла Грушевського, 1Д",70,2019-12-16,CGO2TY5XFY,Банківські послуги,Інші витрати,295088,Лисичанська міська організація,25926767,Луганська область,комісія банка,UA253047950000026002053730540,current,3.00,"ПАТ КБ ""Приватбанк""",14360570,юридична особа
БАТЬКІВЩИНА,"Київ, вулиця Михайла Грушевського, 1Д",70,2019-12-16,CGO2TY5VIY,Банківські послуги,Інші витрати,295087,Лисичанська міська організація,25926767,Луганська область,комісія банка,UA253047950000026002053730540,current,3.00,"ПАТ КБ ""Приватбанк""",14360570,юридична особа
БАТЬКІВЩИНА,"Київ, вулиця Богдана Хмельницького, 64",70,2019-12-16,RCO2012_639,Банківські послуги,Інші витрати,295051,Центральний офіс,20069956,Україна,Банківське обслуговування,2600426373,current,6.00,"ПАТ ""Мегабанк""",09804119,юридична особа
БАТЬКІВЩИНА,"Харківська область, Великобурлуцький район, Великий Бурлук",79,2019-12-13,4410,"Оренда будинків і приміщень та експлуатаційні витрати (прибирання, страхування орендованих будинків, охорона, сигналізація, ремонт, вивіз сміття, тощо)",Оренда нерухомості,297285,Харківська обласна організація,25792203,Харківська область,"за оренду приміщення зг рах№10 від 17/10/19р.,податки сплачені 05/12/19р.п/д№4406,4407.",UA493808050000000026009378667,current,1709.61,Черничка Ігор Михайлович,,фізична особа
БАТЬКІВЩИНА,"Харківська область, Харків, вулиця Привокзальна, 2",79,2019-12-13,4421,"Оренда будинків і приміщень та експлуатаційні витрати (прибирання, страхування орендованих будинків, охорона, сигналізація, ремонт, вивіз сміття, тощо)",Оренда нерухомості,297267,Харківська обласна організація,25792203,Харківська область,відшкодування вартості спож послуг з утримання майна за жовтень 2019 р. зг дог №10/1603 від 2018-09-02р. у т.ч. ПДВ 20% - 54.41 грн.,UA493808050000000026009378667,current,326.46,"Харківська дирекція ПАТ ""Укрпошта""",22721970,юридична особа
БАТЬКІВЩИНА,"Харківська область, Харків, вулиця Привокзальна, 2",79,2019-12-13,4422,"Оренда будинків і приміщень та експлуатаційні витрати (прибирання, страхування орендованих будинків, охорона, сигналізація, ремонт, вивіз сміття, тощо)",Оренда нерухомості,297266,Харківська обласна організація,25792203,Харківська область,відшкодування вартості спож послуг з утримання майна за жовтень 2019 р. зг дог №10/3590 від 2018-12-21р. у т.ч. ПДВ 20% - 3.52 грн.,UA493808050000000026009378667,current,21.14,"Харківська дирекція ПАТ ""Укрпошта""",22721970,юридична особа
